{"text_format":"1","workbook":"xlsx","n_sheets":2,"sheets":["AGOSTO (2)","PIC AGOSTO "],"not_rendered":{"charts":0,"images":0,"macros":1,"external_links":0,"defined_names":3,"comments":2,"pivot_tables":0},"unopened":[],"bounds":{"document_bytes":16777216,"sheet_cells":100000,"rows_first":2000,"rows_last":500,"rows_between":2000,"halvings":0,"cell_chars":16384,"cell_head_chars":4096},"cells_cut":0,"cells_raw":0,"read":"whole","date_system":"1900"}

{"sheet":"AGOSTO (2)","index":0,"n_rows":476,"n_cols":14,"rows_kept":476,"cut":false,"hidden":false,"merged":[[0,1,0,5]]}
[null,"LISTADO CONTRATACION MES DE  AGOSTO 2020"]
["NO","CEDULA","NOMBRES APELLIDOS CONTRATISTA","ops  #año","OBJETO DEL CONTRATO","FECHA INICIO","FECHA TERMINACION ","VALOR MENSUAL","VALOR TOTAL ","CDP","RP","SUPERVISOR ","FECHA  SECOP ","LINK SECOP "]
[1,1129532724,"MICHELLY SANDOVAL ACUÑA","3144-2020-COVID19","AUDITOR MEDICO  - EPIDEMIOLOGA  COORDINACION- EMERGENCIA COVID19","03 de agosto de 2020","   31 de Agosto de 2020",6044000,{"$f":"+H3*1","v":6044000},3968,4969,"BETTY PERTUZ ","2020-08-15","https://www.contratos.gov.co/consultas/detalleProceso.do?numConstancia=20-4-11019962"]
[{"$f":"+A3+1","v":2},32870174,"SIRLEY PAOLA PEREZ CARMONA","3145-2020","AUDITOR DE CALIDAD Y SERVICIOS DE SALUD","03 de agosto de 2020","   31 de Agosto de 2020",5800000,5800000,3969,4970,"BETTY PERTUZ ","2020-08-15","https://www.contratos.gov.co/consultas/detalleProceso.do?numConstancia=20-4-11019967"]
[{"$f":"+A4+1","v":3},1140846298,"LENIN ALVAREZ PINEDA","3146-2020","AUDITOR DE SISTEMAS Y RESOLUCION 4505","03 de agosto de 2020","   31 de Agosto de 2020",3000000,3000000,3970,4971,"NILSA ARIZA MARQUEZ","2020-08-15","https://www.contratos.gov.co/consultas/detalleProceso.do?numConstancia=20-4-11019985"]
[4,22736159,"ARACELLY HERNANDEZ GARCIA ","3147-2020","AUXILIAR ADMINISTRATIVO TIC  Y SISTEMA DE INFORMACION","03 de agosto de 2020","   31 de Agosto de 2020",2500000,2500000,3971,4972,"ZULLY ROMERO","2020-08-15","https://www.contratos.gov.co/consultas/detalleProceso.do?numConstancia=20-4-11019993"]
[5,1042416953,"GABRIEL JOSE MONTIEL CERVANTES","3148-2020","INGENIERO DE REDES Y HARDWARE ","03 de agosto de 2020","   31 de Agosto de 2020",3000000,3000000,3972,4973,"ZULLY ROMERO","2020-08-15","https://www.contratos.gov.co/consultas/detalleProceso.do?numConstancia=20-4-11020096"]
[6,1043121395,"SHEYLA DEL CARMEN ESTRADA ARIZA","3149-2020","TECNICO DE SISTEMAS ","03 de agosto de 2020","   31 de Agosto de 2020",1270000,1270000,3973,4974,"ZULLY ROMERO","2020-08-15","https://www.contratos.gov.co/consultas/detalleProceso.do?numConstancia=20-4-11020141"]
[7,8762035,"CESAR AUGUSTO MERIÑO ESCORCIA ","3150-2020","ORIENTADOR","03 de agosto de 2020","   31 de Agosto de 2020",1270000,1270000,3974,4975,"SANDRA SANMARTIN","2020-08-15","https://www.contratos.gov.co/consultas/detalleProceso.do?numConstancia=20-4-11020149"]
[8,1140814033,"STEFANY RINCON TORRES","3151-2020-COVID19","PROFESIONAL COORD EQUIPO TOMA DE MUESTRAS COVID19  DEL HMI ","03 de agosto de 2020","   31 de Agosto de 2020",4000000,4000000,3975,4976,"BETTY PERTUZ ","2020-08-15","https://www.contratos.gov.co/consultas/detalleProceso.do?numConstancia=20-4-11020152"]
[9,1140874429,"ALBERTO DE LA OSSA DE AVILA","3152-2020","PROFESIONAL  PRESUPUESTO ","03 de agosto de 2020","   31 de Agosto de 2020",3000000,3000000,3976,4977,"JORGE OLMOS NAVARRO","2020-08-15","https://www.contratos.gov.co/consultas/detalleProceso.do?numConstancia=20-4-11020156"]
[10,22549719,"CARMEN MELINA BOLAÑO COTES ","3153-2020","AUXILIAR ADMINISTRATIVO  ESTADISTICA","03 de agosto de 2020","   31 de Agosto de 2020",2500000,2500000,3977,4978,"GENARO   GUTIERREZ DE PIÑERES","2020-08-15","https://www.contratos.gov.co/consultas/detalleProceso.do?numConstancia=20-4-11020249"]
[11,1001798325,"CINDY MILENA SARMIENTO MERIÑO","3154-2020","ESPECIALISTA TALENTO HUMANO ","03 de agosto de 2020","   31 de Agosto de 2020",5000000,5000000,3978,4979,"FABIAN  COLPAS OROZCO ","2020-08-15","https://www.contratos.gov.co/consultas/detalleProceso.do?numConstancia=20-4-11020255"]
[12,32769708,"CLAUDIA ARENAS ALVAREZ","3155-2020","PROFESIONAL DE APOYO  A   LA  OFICINA  DE  CONTROL INTERNO ","03 de agosto de 2020","   31 de Agosto de 2020",3500000,3500000,3979,4980,"SANDRA SANMARTIN","2020-08-15","https://www.contratos.gov.co/consultas/detalleProceso.do?numConstancia=20-4-11020257"]
[13,1043611198,"CRISTIAN JESUS RODRIGUEZ QUIROZ","3156-2020","PROFESIONAL DE APOYO  A   LA  OFICINA  DE  CONTROL INTERNO ","03 de agosto de 2020","   31 de Agosto de 2020",3000000,3000000,3980,4981,"SANDRA SANMARTIN","2020-08-15","https://www.contratos.gov.co/consultas/detalleProceso.do?numConstancia=20-4-11020275"]
[14,22704983,"EGUIS ODILA ROLONG LAGUNA","3157-2020","ABOGADO  TALENTO HUMANO","03 de agosto de 2020","   31 de Agosto de 2020",5000000,5000000,3981,4982,"FABIAN  COLPAS OROZCO ","2020-08-15","https://www.contratos.gov.co/consultas/detalleProceso.do?numConstancia=20-4-11020276"]
[15,32866006,"ERIKA MARIA  ASCENCIO MARQUEZ","3158-2020","PROFESIONAL CONTRATACION   Y  SISTEMAS DE INFORMACION TALENTO HUMANO","03 de agosto de 2020","   31 de Agosto de 2020",4000000,4000000,3982,4983,"FABIAN  COLPAS OROZCO ","2020-08-15","https://www.contratos.gov.co/consultas/detalleProceso.do?numConstancia=20-4-11020279"]
[16,8495176,"JAIME ALBERTO ALVAREZ NORIEGA","3159-2020","INGENIERO AMBIENTAL","03 de agosto de 2020","   31 de Agosto de 2020",3500000,3500000,3983,4984,"SANDRA SANMARTIN","2020-08-15","https://www.contratos.gov.co/consultas/detalleProceso.do?numConstancia=20-4-11020282"]
[17,72053529,"LEINER DARIO MEDINA HERRERA","3160-2020","PROFESIONAL  DE APOYO  A  LA OFICINA TALENTO HUMANO","03 de agosto de 2020","   31 de Agosto de 2020",3000000,3000000,3984,4985,"FABIAN  COLPAS OROZCO ","2020-08-15","https://www.contratos.gov.co/consultas/detalleProceso.do?numConstancia=20-4-11020288"]
[18,8571868,"ERINSON RAFAEL GUZMAN DE  LA HOZ","3161-2020","PROFESIONAL DE APOYO  CONTRATACION TALENTO HUMANO","03 de agosto de 2020","   31 de Agosto de 2020",3000000,3000000,3985,4986,"FABIAN  COLPAS OROZCO ","2020-08-15","https://www.contratos.gov.co/consultas/detalleProceso.do?numConstancia=20-4-11020296"]
[19,44205287,"MARTHA KATERINE MEJIA FRUTO","3162-2020","AUXILIAR ADMINISTRATIVO  RECEPCION ","03 de agosto de 2020","   31 de Agosto de 2020",1900000,1900000,3986,4987,"SANDRA SANMARTIN","2020-08-15","https://www.contratos.gov.co/consultas/detalleProceso.do?numConstancia=20-4-11020299"]
[20,1043876764,"MELANI ISABEL PERTUZ HERRERA","3163-2020","AUXILIAR ADMINISTRATIVO -  SUBGERENCIA ADMINISTRATIVA","03 de agosto de 2020","   31 de Agosto de 2020",2200000,2200000,3987,4988,"SANDRA SANMARTIN","2020-08-15","https://www.contratos.gov.co/consultas/detalleProceso.do?numConstancia=20-4-11020301"]
[21,72268005,"MILTON SOLARTE RODRIGUEZ","3164-2020","APOYO EN ANALISIS Y DESARROLLO DE  INFORMACION EN FACTURACION CENTRAL (RIPS)","03 de agosto de 2020","   31 de Agosto de 2020",3000000,3000000,3988,4989,"SANDRA SANMARTIN","2020-08-15","https://www.contratos.gov.co/consultas/detalleProceso.do?numConstancia=20-4-11020301"]
[22,55239101,"NATALI ANDREA NIEBLES JURADO","3165-2020","AUDITOR DE CALIDAD (LIDER DE UNIDAD)","03 de agosto de 2020","   31 de Agosto de 2020",5800000,5800000,3989,4990,"BETTY PERTUZ ","2020-08-15","https://www.contratos.gov.co/consultas/detalleProceso.do?numConstancia=20-4-11020307 "]
[23,1010179685,"NAYIVI OSPINA ARROYAVE","3166-2020","PROFESIONAL  SISTEMA DE GESTION Y SEGURIDAD EN EL TRABAJO","03 de agosto de 2020","   31 de Agosto de 2020",3500000,3500000,3990,4991,"FABIAN  COLPAS OROZCO ","2020-08-15","https://www.contratos.gov.co/consultas/detalleProceso.do?numConstancia=20-4-11020313"]
[24,8603175,"NILSON ORTEGA JIMENEZ","3167-2020","AUXILIAR ADMINISTRATIVO  TALENTO HUMANO","03 de agosto de 2020","   31 de Agosto de 2020",2000000,2000000,3991,4992,"FABIAN  COLPAS OROZCO ","2020-08-15","https://www.contratos.gov.co/consultas/detalleProceso.do?numConstancia=20-4-11020315"]
[25,1047340446,"OSCAR MAURICIO MARENCO ROMERO","3168-2020","ASISTENTE ADMINISTRATIVO ","03 de agosto de 2020","   31 de Agosto de 2020",1800000,1800000,3992,4993,"BETTY PERTUZ ","2020-08-15","https://www.contratos.gov.co/consultas/detalleProceso.do?numConstancia=20-4-11020317"]
[26,22446590,"ROSALBA CERPA MIRANDA ","3169-2020","AUXILIAR ADMINISTRATIVO -  SUBGERENCIA CIENTIFICA","03 de agosto de 2020","   31 de Agosto de 2020",1900000,1900000,3993,4994,"BETTY PERTUZ ","2020-08-15","https://www.contratos.gov.co/consultas/detalleProceso.do?numConstancia=20-4-11020324"]
[27,1140818354,"SAEN DAVID TAJAN NIEBLES","3170-2020","AUXILIAR ADMINISTRATIVO DE SISTEMAS DE INFORMACION EN PROMOCION Y PREVENCION","03 de agosto de 2020","   31 de Agosto de 2020",2000000,2000000,3994,4995,"NILSA ARIZA MARQUEZ","2020-08-15","https://www.contratos.gov.co/consultas/detalleProceso.do?numConstancia=20-4-11020326"]
[28,57105527,"ZOILA PATRICIA PABON HERNANDEZ","3171-2020","ASISTENTE COORDINACIÓN MÉDICA","03 de agosto de 2020","   31 de Agosto de 2020",3000000,3000000,3995,4996,"BETTY PERTUZ ","2020-08-15","https://www.contratos.gov.co/consultas/detalleProceso.do?numConstancia=20-4-11020334"]
[29,32825462,"ANAIS DE JESUS RODRIGUEZ DE  LAS AGUAS","3172-2020","PERSONAL  LIMPIEZA Y ASEO","03 de agosto de 2020","   31 de Agosto de 2020",1215000,1215000,3996,4997,"JAIME ALVAREZ NORIEGA","2020-08-15","https://www.contratos.gov.co/consultas/detalleProceso.do?numConstancia=20-4-11020335"]
[30,1041898122,"MELIZA MORALES PALLARES","3173-2020","AUXILIAR ADMINISTRATIVO  ","03 de agosto de 2020","   31 de Agosto de 2020",2000000,2000000,3997,4998,"SANDRA SANMARTIN","2020-08-15","https://www.contratos.gov.co/consultas/detalleProceso.do?numConstancia=20-4-11020337"]
[31,1042439853,"KERVY DIYAN JINETTE BARRIOS","3174-2020","AUXILIAR ADMINISTRATIVO  RESOLUCIÓN 2463","03 de agosto de 2020","   31 de Agosto de 2020",1900000,1900000,3998,4999,"BETTY PERTUZ ","2020-08-15","https://www.contratos.gov.co/consultas/detalleProceso.do?numConstancia=20-4-11020339"]
[32,1045732710,"VICTOR JOSE AGUILAR CRUZADO","3175-2020","AUXILIAR ADMINISTRATIVO- CONTRATACION  BIENES Y SERVICIOS","03 de agosto de 2020","   31 de Agosto de 2020",4000000,4000000,3999,5000,"ORNELLA FIORENTINO","2020-08-15","https://www.contratos.gov.co/consultas/detalleProceso.do?numConstancia=20-4-11020344"]
[33,8776312,"JORGE RIVERA MEZA","3176-2020","AUXILIAR RECURSOS FISICOS","03 de agosto de 2020","   31 de Agosto de 2020",1900000,{"$f":"+H35*1","v":1900000},4000,5001,"SANDRA SANMARTIN","2020-08-15","https://www.contratos.gov.co/consultas/detalleProceso.do?numConstancia=20-4-11020348"]
[34,1042971531,"JULIETH PAOLA FIGUEROA ZAMBRANO","3177-2020","AUXILIAR ADMINISTRATIVO CONTABLE","03 de agosto de 2020","   31 de Agosto de 2020",2500000,2500000,4001,5002,"JORGE OLMOS NAVARRO","2020-08-15","https://www.contratos.gov.co/consultas/detalleProceso.do?numConstancia=20-4-11020350"]
[35,32607428,"TEMILDA MARIA PERTUZ PEREZ","3178-2020","AUDITOR DE CALIDAD Y SERVICIOS DE SALUD","03 de agosto de 2020","   31 de Agosto de 2020",4000000,4000000,4002,5003,"BETTY PERTUZ ","2020-08-15","https://www.contratos.gov.co/consultas/detalleProceso.do?numConstancia=20-4-11020353"]
[36,1045721126,"MARYURIS JOANNA GALVAN NAVARRO","3179-2020","LIDER  LABORATORIO","03 de agosto de 2020","   31 de Agosto de 2020",5000000,5000000,4003,5004,"BETTY PERTUZ ","2020-08-15","https://www.contratos.gov.co/consultas/detalleProceso.do?numConstancia=20-4-11020354"]
[37,1140847982,"LEIDY DANIELA WILSON PEZZOTI","3180-2020"," AUXILIAR ADMINISTRATIVO VENTANILLA UNICA ","03 de agosto de 2020","   31 de Agosto de 2020",2200000,2200000,4004,5005,"SANDRA SANMARTIN","2020-08-15","https://www.contratos.gov.co/consultas/detalleProceso.do?numConstancia=20-4-11020355"]
[38,22804794,"KATHERINE GUERRERO SEPULVEDA","3181-2020","ABOGADO EXTERNO","03 de agosto de 2020","   31 de Agosto de 2020",5800000,5800000,4005,5006,"ORNELLA FIORENTINO","2020-08-15","https://www.contratos.gov.co/consultas/detalleProceso.do?numConstancia=20-4-11020357"]
[39,22504159,"FLOR MILENA GOICOCHEA OROZCO ","3182-2020","AUXILIAR  FACTURACION CENTRAL","03 de agosto de 2020","   31 de Agosto de 2020",2000000,2000000,4006,5007,"SANDRA SANMARTIN","2020-08-15","https://www.contratos.gov.co/consultas/detalleProceso.do?numConstancia=20-4-11020358"]
[40,72250386,"RONALD EMIL PADILLA ACUÑA","3183-2020","ABOGADO ","03 de agosto de 2020","   31 de Agosto de 2020",5000000,5000000,4007,5008,"ORNELLA FIORENTINO","2020-08-15","https://www.contratos.gov.co/consultas/detalleProceso.do?numConstancia=20-4-11020360"]
[41,32848040,"LEDIS MARIA MOLINA OQUENDO ","3184-2020","ABOGADO  CONTRATACION ","03 de agosto de 2020","   31 de Agosto de 2020",5000000,5000000,4008,5009,"ORNELLA FIORENTINO","2020-08-15","https://www.contratos.gov.co/consultas/detalleProceso.do?numConstancia=20-4-11020361"]
[42,1045166274,"ALBA MARINA RODRIGUEZ YANCE","3185-2020-COVID19","ASESORA SALUD PUBLICA EN LA SUBGERENCIA CIENTIFICA - PROYECTO PIC DEPARTAMENTAL COVID19","03 de agosto de 2020","   31 de Agosto de 2020",5800000,5800000,4009,5010,"JUAN  ESTEBAN SANCHEZ PAEZ ","2020-08-15","https://www.contratos.gov.co/consultas/detalleProceso.do?numConstancia=20-4-11020364"]
[43,44190767,"LUCIBELL ALVAREZ NAVARRO ","3186-2020","ASESORA SUBGERENCIA CIENTIFICA ","03 de agosto de 2020","   31 de Agosto de 2020",5800000,5800000,4010,5011,"JUAN  ESTEBAN SANCHEZ PAEZ ","2020-08-15","https://www.contratos.gov.co/consultas/detalleProceso.do?numConstancia=20-4-11020366"]
[44,5055447,"CARLOS ALBERTO CARBONELL ALVAREZ","3187-2020","AUDITOR DE CUENTAS MEDICAS ","03 de agosto de 2020","   31 de Agosto de 2020",5500000,5500000,4011,5012,"BETTY PERTUZ ","2020-08-15","https://www.contratos.gov.co/consultas/detalleProceso.do?numConstancia=20-4-11020367"]
[45,1045698343,"JOSE FRANCISCO INFANZON CASTRO ","3188-2020","INGENERIO MECANICO- RECURSOS FISICOS","03 de agosto de 2020","   31 de Agosto de 2020",5800000,5800000,4012,5013,"SANDRA SANMARTIN","2020-08-15","https://www.contratos.gov.co/consultas/detalleProceso.do?numConstancia=20-4-11020370"]
[46,40981378,"LIDYS CASTILLO TOVAR","3189-2020","PROFESIONAL OFICINA PAGADURIA  ","03 de agosto de 2020","   31 de Agosto de 2020",4000000,4000000,4013,5014,"LUIS DE MOYA","2020-08-15","https://www.contratos.gov.co/entidades/InsertarProcesoRegEspConDire.do"]
[47,32651445,"MARTIZA SARMIENTO  SANTOS ","3190-2020","ASESOR DE PLANEACION ESTRATÉGICA  Y SISTEMAS DE  GESTIÓN CALIDAD /AMBIENTE/SST ","03 de agosto de 2020","   31 de Agosto de 2020",5800000,5800000,4014,5015,"JUAN  ESTEBAN SANCHEZ PAEZ ","2020-08-15","https://www.contratos.gov.co/consultas/detalleProceso.do?numConstancia=20-4-11020373"]
[48,32863895,"LUZ ELENA MARRIAGA MONTERO ","3191-2020","PROFESIONAL PLANEACION ","03 de agosto de 2020","   31 de Agosto de 2020",4000000,4000000,4015,5016,"SANDRA SANMARTIN","2020-08-15","https://www.contratos.gov.co/consultas/detalleProceso.do?numConstancia=20-4-11020374"]
[49,72314953,"LEONEL DANIEL SILVA TAPIAS","3192-2020","REVISOR FISCAL","03 de agosto de 2020","   31 de Agosto de 2020",8255982,8255982,4016,5017,"JUAN  ESTEBAN SANCHEZ PAEZ ","2020-08-15","https://www.contratos.gov.co/consultas/detalleProceso.do?numConstancia=20-4-11020377"]
[50,1042997169,"CINDY PAOLA CERA MENDOZA ","3193-2020","PROFESIONAL PRESUPUESTO","03 de agosto de 2020","   31 de Agosto de 2020",3000000,3000000,4017,5018,"JORGE OLMOS NAVARRO","2020-08-15","https://www.contratos.gov.co/consultas/detalleProceso.do?numConstancia=20-4-11020379"]
[51,52618443,"NATALIA ALONSO CARVAJAL","3194-2020","ASESOR GERENCIA","03 de agosto de 2020","   31 de Agosto de 2020",5800000,5800000,4018,5019,"JUAN  ESTEBAN SANCHEZ PAEZ ","2020-08-15","https://www.contratos.gov.co/consultas/detalleProceso.do?numConstancia=20-4-11020380"]
[52,45757809,"MILADIS MARINA MARTINEZ MEDINA","3195-2020","LIDER SIAU","03 de agosto de 2020","   31 de Agosto de 2020",3000000,3000000,4019,5020,"BETTY PERTUZ ","2020-08-15","https://www.contratos.gov.co/consultas/detalleProceso.do?numConstancia=20-4-11020381"]
[53,1140871897,"JESICA FERNANDA DE CASTRO MANTILLA","3196-2020","INGENIERA QUIMICA ","03 de agosto de 2020","   31 de Agosto de 2020",4000000,4000000,4020,5021,"BETTY PERTUZ ","2020-08-15","https://www.contratos.gov.co/consultas/detalleProceso.do?numConstancia=20-4-11020383"]
[54,1042421404,"MARIAM DEL CARMEN CANTILLO MONTERO","3197-2020","AUDITOR DE CALIDAD Y SERVICIOS DE SALUD","03 de agosto de 2020","   31 de Agosto de 2020",4000000,4000000,4021,5022,"BETTY PERTUZ ","2020-08-15","https://www.contratos.gov.co/consultas/detalleProceso.do?numConstancia=20-4-11020385"]
[55,32852247,"NORELLYS PAOLA MACHACON PRIETO","3198-2020","APOYO  SISTEMA DE  GESTION","03 de agosto de 2020","   31 de Agosto de 2020",4000000,4000000,4022,5023,"BETTY PERTUZ ","2020-08-15","https://www.contratos.gov.co/consultas/detalleProceso.do?numConstancia=20-4-11020386"]
[56,8745568,"LUIS ENRIQUE PEREA VASQUEZ ","3199-2020","AUDITOR DE CUENTAS MEDICAS","03 de agosto de 2020","   31 de Agosto de 2020",4500000,4500000,4023,5024,"BETTY PERTUZ ","2020-08-15","https://www.contratos.gov.co/consultas/detalleProceso.do?numConstancia=20-4-11020387"]
[57,72228319,"BLADIMIR ALEXANDER  SARMIENTO QUIÑONES","3200-2020","TECNICO EN SISTEMAS Y ELECTRONICO ","03 de agosto de 2020","   31 de Agosto de 2020",1900000,1900000,4024,5025,"ZULLY ROMERO","2020-08-15","https://www.contratos.gov.co/consultas/detalleProceso.do?numConstancia=20-4-11020388"]
[58,1042424161,"YENSY ANGELINA ESCALANTE FERRER","3201-2020","AUXILIAR ADMINISTRATIVO CONTABLE","03 de agosto de 2020","   31 de Agosto de 2020",2000000,2000000,4025,5026,"JORGE OLMOS NAVARRO","2020-08-15","https://www.contratos.gov.co/consultas/detalleProceso.do?numConstancia=20-4-11020389"]
[59,72432594,"RUBEN DARIO UCROS ","3202-2020","AUXILIAR FACTURACION ","03 de agosto de 2020","   31 de Agosto de 2020",2100000,2100000,4026,5027,"SANDRA SANMARTIN","2020-08-15","https://www.contratos.gov.co/consultas/detalleProceso.do?numConstancia=20-4-11020392"]
[60,22642515,"NOHEMI ESPERANZA CASTRO LOPEZ","3203-2020","AUDITOR DE CALIDAD Y SERVICIOS DE SALUD","03 de agosto de 2020","   31 de Agosto de 2020",4000000,4000000,4027,5028,"BETTY PERTUZ ","2020-08-15","https://www.contratos.gov.co/consultas/detalleProceso.do?numConstancia=20-4-11020393"]
[61,8639410,"CESAR OCTAVIO VARGAS DURAN ","3204-2020","TECNICO AMBIENTAL ","03 de agosto de 2020","   31 de Agosto de 2020",2500000,2500000,4028,5029,"JAIME ALVAREZ NORIEGA","2020-08-15","https://www.contratos.gov.co/consultas/detalleProceso.do?numConstancia=20-4-11020394"]
[62,1047334999,"MARTHA INES SALCEDO HUN","3205-2020","ASESORA GESTION AMBIENTAL ","03 de agosto de 2020","   31 de Agosto de 2020",5800000,5800000,4029,5030,"JUAN  ESTEBAN SANCHEZ PAEZ ","2020-08-15","https://www.contratos.gov.co/consultas/detalleProceso.do?numConstancia=20-4-11020396"]
[63,1124026102,"LUISA FERNANDA PANA CARABALLO","3206-2020","LIDER PROCESOS FACTURACION CENTRAL","03 de agosto de 2020","   31 de Agosto de 2020",2500000,2500000,4030,5031,"SANDRA SANMARTIN","2020-08-15","https://www.contratos.gov.co/consultas/detalleProceso.do?numConstancia=20-4-11020399"]
[64,1045676054,"JHONNY ALVAREZ TORRENCILLA","3207-2020","INGENIERO  DE SISTEMAS - PROCESOS DE  SISTEMA DE INFORMACION EN  FACTURACION CENTRAL ","03 de agosto de 2020","   31 de Agosto de 2020",4000000,4000000,4031,5032,"SANDRA SANMARTIN","2020-08-15","https://www.contratos.gov.co/consultas/detalleProceso.do?numConstancia=20-4-11020402"]
[65,44156926,"GLADYS CECILIA ESCALANTE FERRER","3208-2020","AUDITOR DE CALIDAD Y SERVICIOS DE SALUD","03 de agosto de 2020","   31 de Agosto de 2020",4000000,{"$f":"+H67*1","v":4000000},4032,5033,"BETTY PERTUZ ","2020-08-15","https://www.contratos.gov.co/consultas/detalleProceso.do?numConstancia=20-4-11020403"]
[66,1140847587,"MAGANY JUDITH JARAMILLO MOLINA","3209-2020","INGENIERO DE SISTEMAS","03 de agosto de 2020","   31 de Agosto de 2020",3000000,3000000,4033,5034,"ZULLY ROMERO","2020-08-15","https://www.contratos.gov.co/consultas/detalleProceso.do?numConstancia=20-4-11020404"]
[{"$f":"+A68+1","v":67},1042451204,"LEIDIS ESTHER MIRANDA MARCHENA","3210-2020","PROFESIONAL CONTADURIA","03 de agosto de 2020","   31 de Agosto de 2020",3000000,3000000,4034,5035,"JORGE OLMOS NAVARRO","2020-08-15","https://www.contratos.gov.co/consultas/detalleProceso.do?numConstancia=20-4-11020405"]
[68,55225494,"ULDYS ESTHER PONZON PORTO","3211-2020","LIDER SERVICIOS MEDICOS","03 de agosto de 2020","   31 de Agosto de 2020",3700000,3700000,4035,5036,"BETTY PERTUZ ","2020-08-15","https://www.contratos.gov.co/consultas/detalleProceso.do?numConstancia=20-4-11020406"]
[69,1043023724,"JAILINE  SOLANO MERCADO ","3212-2020","ASESOR FINANCIERO ","03 de agosto de 2020","   31 de Agosto de 2020",5800000,5800000,4036,5037,"JUAN  ESTEBAN SANCHEZ PAEZ ","2020-08-15","https://www.contratos.gov.co/consultas/detalleProceso.do?numConstancia=20-4-11020408"]
[70,1143465478,"YULEIMY LISETH YANCE CAMARGO","3213-2020","AUXILIAR ADMINISTRATIVO  OFICINA JURIDICA","03 de agosto de 2020","   31 de Agosto de 2020",2200000,2200000,4037,5038,"ORNELLA FIORENTINO","2020-08-15","https://www.contratos.gov.co/consultas/detalleProceso.do?numConstancia=20-4-11020409"]
[71,1041899345,"YESMITH ADRIANA VIZCAINO CARRILLO","3214-2020","ASISTENTE ADMINISTRATIVO","03 de agosto de 2020","   31 de Agosto de 2020",1900000,1900000,4038,5039,"FABIAN  COLPAS OROZCO ","2020-08-15","https://www.contratos.gov.co/consultas/detalleProceso.do?numConstancia=20-4-11020413"]
[72,85468633,"GREGORIO  RUIZ  PACHECO","3215-2020","ABOGADO  EXTERNO  TALENTO  HUMANO ","03 de agosto de 2020","   31 de Agosto de 2020",4000000,4000000,4039,5040,"FABIAN  COLPAS OROZCO ","2020-08-15","https://www.contratos.gov.co/consultas/detalleProceso.do?numConstancia=20-4-11020417"]
[73,32829531,"MILENA DONADO OCHOA","3216-2020","APOYO  COORDINACION  ODONTOLOGIA ","03 de agosto de 2020","   31 de Agosto de 2020",4000000,4000000,4040,5041,"BETTY PERTUZ ","2020-08-15","https://www.contratos.gov.co/consultas/detalleProceso.do?numConstancia=20-4-11020420"]
[74,57270649,"MARTHA MATILDE JIMENEZ ROMERO","3217-2020","AUDITOR DE CALIDAD Y SERVICIOS DE SALUD","03 de agosto de 2020","   31 de Agosto de 2020",4000000,4000000,4041,5042,"BETTY PERTUZ ","2020-08-15","https://www.contratos.gov.co/consultas/detalleProceso.do?numConstancia=20-4-11020421"]
[75,72095954,"JUAN  CARLOS  BARROS CARO ","3218-2020","ASESOR GERENCIA","03 de agosto de 2020","   31 de Agosto de 2020",4500000,4500000,4042,5043,"JUAN  ESTEBAN SANCHEZ PAEZ ","2020-08-15","https://www.contratos.gov.co/consultas/detalleProceso.do?numConstancia=20-4-11020423"]
[76,19619279,"GUSTAVO SEGUNDO FLORIDO HATUN ","3219-2020","AUDITOR DE CALIDAD Y SERVICIOS DE SALUD","03 de agosto de 2020","   31 de Agosto de 2020",5000000,5000000,4043,5044,"BETTY PERTUZ ","2020-08-15","https://www.contratos.gov.co/consultas/detalleProceso.do?numConstancia=20-4-11020424"]
[77,27895505,"SANDRA GARCIA PEÑA","3220-2020","AUXILIAR FACTURACION","03 de agosto de 2020","   31 de Agosto de 2020",1500000,1500000,4044,5045,"SANDRA SANMARTIN","2020-08-15","https://www.contratos.gov.co/consultas/detalleProceso.do?numConstancia=20-4-11020425"]
[78,22644596,"GRACIELA BUSTOS RIVEROS","3221-2020","AUXILIAR ADMINISTRATIVO  FACTURACIÒN","03 de agosto de 2020","   31 de Agosto de 2020",2000000,2000000,4045,5046,"SANDRA SANMARTIN","2020-08-15","https://www.contratos.gov.co/consultas/detalleProceso.do?numConstancia=20-4-11020432"]
[79,1042471178,"KAREM OLIANNA MONTOYA GIL ","3222-2020","AUXILIAR ADMINISTRATIVO ","03 de agosto de 2020","   31 de Agosto de 2020",1700000,1700000,4046,5047,"SANDRA SANMARTIN","2020-08-15","https://www.contratos.gov.co/consultas/detalleProceso.do?numConstancia=20-4-11020435"]
[80,1002067698,"RUTH MARINA DIAZ MAYORCA","3223-2020","AUXILIAR FACTURACION  CENTRAL ","03 de agosto de 2020","   31 de Agosto de 2020",2500000,2500000,4047,5048,"SANDRA SANMARTIN","2020-08-15","https://www.contratos.gov.co/consultas/detalleProceso.do?numConstancia=20-4-11020436"]
[81,1042351489,"YISLEY ZARETH BADILLO SARMIENTO","3224-2020","ENFERMERA JEFE","03 de agosto de 2020","   31 de Agosto de 2020",2300000,2300000,4048,5049,"BETTY PERTUZ ","2020-08-15","https://www.contratos.gov.co/consultas/detalleProceso.do?numConstancia=20-4-11020438"]
[82,1048217027,"ONEIDA SAMIRA MARQUEZ NARVAEZ","3225-2020","PROFESIONAL - POLITOLOGA","03 de agosto de 2020","   31 de Agosto de 2020",4000000,4000000,4049,5050,"GENARO   GUTIERREZ DE PIÑERES","2020-08-15","https://www.contratos.gov.co/consultas/detalleProceso.do?numConstancia=20-4-11020439"]
[83,22665320,"CLAUDIA DE LA CRUZ LEYVA","3226-2020","AUDITOR DE CALIDAD Y SERVICIOS DE SALUD","03 de agosto de 2020","   31 de Agosto de 2020",5800000,5800000,4050,5051,"JUAN  ESTEBAN SANCHEZ PAEZ ","2020-08-15","https://www.contratos.gov.co/consultas/detalleProceso.do?numConstancia=20-4-11020443"]
[84,72151642,"RUBEN  DARIO  LOZADA BARROS","3227-2020","CONTADOR ","03 de agosto de 2020","   31 de Agosto de 2020",4000000,4000000,4051,5052,"LUIS DE MOYA","2020-08-15","https://www.contratos.gov.co/consultas/detalleProceso.do?numConstancia=20-4-11020444"]
[85,72236961,"EDWARD ENRIQUE SANCHEZ URZOLA ","3228-2020","MENSAJERO ","03 de agosto de 2020","   31 de Agosto de 2020",1700000,1700000,4052,5053,"SANDRA SANMARTIN","2020-08-15","https://www.contratos.gov.co/consultas/detalleProceso.do?numConstancia=20-4-11020447"]
[86,77030162,"YECITH  MARTINEZ QUINTERO ","3229-2020","ASISTETE ADMINISTRATIVO ","03 de agosto de 2020","   31 de Agosto de 2020",1800000,1800000,4053,5054,"SANDRA SANMARTIN","2020-08-15","https://www.contratos.gov.co/consultas/detalleProceso.do?numConstancia=20-4-11020450"]
[87,1129571476,"ILIANA MATOS RAMOS ","3230-2020","ABOGADO","03 de agosto de 2020","   31 de Agosto de 2020",4000000,4000000,4054,5055,"ORNELLA FIORENTINO","2020-08-15","https://www.contratos.gov.co/consultas/detalleProceso.do?numConstancia=20-4-11020452"]
[88,32869223,"LUCILA ISABEL FONTALVO HERRERA","3231-2020","AUXILIAR  ADMINISTRATIVO  TALENTO HUMANO","03 de agosto de 2020","   31 de Agosto de 2020",2200000,2200000,4055,5056,"FABIAN  COLPAS OROZCO ","2020-08-15","https://www.contratos.gov.co/consultas/detalleProceso.do?numConstancia=20-4-11020453"]
[89,72220231,"SERGIO  IVAN KUNCEL MAURY","3232-2020","ASESOR GERENCIA","03 de agosto de 2020","   31 de Agosto de 2020",5000000,5000000,4056,5057,"JUAN  ESTEBAN SANCHEZ PAEZ ","2020-08-15","https://www.contratos.gov.co/consultas/detalleProceso.do?numConstancia=20-4-11020454"]
[90,84453299,"LUIS  FERNANDO CUELLAR CANTILLO","3233-2020","ASESOR FINANCIERO ","03 de agosto de 2020","   31 de Agosto de 2020",3000000,3000000,4057,5058,"JORGE OLMOS NAVARRO","2020-08-15","https://www.contratos.gov.co/consultas/detalleProceso.do?numConstancia=20-4-11020457"]
[91,8680252,"ALVARO SAMUEL PULGAR LEMUS","3234-2020","ORIENTADOR","03 de agosto de 2020","   31 de Agosto de 2020",1270000,1270000,4058,5059,"SANDRA SANMARTIN","2020-08-15","https://www.contratos.gov.co/consultas/detalleProceso.do?numConstancia=20-4-11020458"]
[92,72293492,"RODOLFO ENRIQUE NARVAEZ  GUTIERREZ ","3235-2020","PROFESIONAL ESTADISTICA","03 de agosto de 2020","   31 de Agosto de 2020",3000000,3000000,4059,5060,"GENARO   GUTIERREZ DE PIÑERES","2020-08-15","https://www.contratos.gov.co/consultas/detalleProceso.do?numConstancia=20-4-11020461"]
[93,22732194,"MARLEY VASQUEZ VARGAS","3236-2020","LIDER DE  FACTURACION  EN CENTROS DE SALUD","03 de agosto de 2020","   31 de Agosto de 2020",1700000,1700000,4060,5061,"SANDRA SANMARTIN","2020-08-15","https://www.contratos.gov.co/consultas/detalleProceso.do?numConstancia=20-4-11020466"]
[94,44190907,"YENIS AHUMADA LECHUGA","3237-2020","ESPECIALISTA  - SALUD OCUPACIONAL ","03 de agosto de 2020","   31 de Agosto de 2020",5000000,5000000,4061,5062,"JUAN  ESTEBAN SANCHEZ PAEZ ","2020-08-15","https://www.contratos.gov.co/consultas/detalleProceso.do?numConstancia=20-4-11020467"]
[95,55307392,"LLILIANA   PATRICIA   PASTRANA  PARODI","3238-2020","AUXILIAR ADMINISTRATIVO -FACTURACION","03 de agosto de 2020","   31 de Agosto de 2020",2000000,{"$f":"+H97*1","v":2000000},4062,5063,"SANDRA SANMARTIN","2020-08-15","https://www.contratos.gov.co/consultas/detalleProceso.do?numConstancia=20-4-11020468"]
[96,32892034,"SANDY MARIA DE LA HOZ JIMENEZ","3239-2020","ASESOR  DE ´ PRESUPUESTO ","03 de agosto de 2020","   31 de Agosto de 2020",4500000,4500000,4063,5064,"SANDRA SANMARTIN","2020-08-15","https://www.contratos.gov.co/consultas/detalleProceso.do?numConstancia=20-4-11020471"]
[97,22819397,"MARIBEL PONCE  MACHACADO ","3240-2020","AUDITOR DE CALIDAD Y SERVICIOS DE SALUD","03 de agosto de 2020","   31 de Agosto de 2020",3500000,3500000,4064,5065,"BETTY PERTUZ ","2020-08-15","https://www.contratos.gov.co/consultas/detalleProceso.do?numConstancia=20-4-11020472"]
[98,72328953,"FRANCISCO ALCIDES CARRANZA MENDOZA","3241-2020","AUXILIAR RECURSOS FISICOS","03 de agosto de 2020","   31 de Agosto de 2020",2500000,2500000,4065,5066,"SANDRA SANMARTIN","2020-08-15","https://www.contratos.gov.co/consultas/detalleProceso.do?numConstancia=20-4-11020473"]
[99,72286138,"MANUEL ALFONSO LOPEZ SANTANA","3242-2020","ABOGADO ","03 de agosto de 2020","   31 de Agosto de 2020",4000000,4000000,4066,5067,"ORNELLA FIORENTINO","2020-08-15","https://www.contratos.gov.co/consultas/detalleProceso.do?numConstancia=20-4-11020474"]
[100,1042455811,"LEIDY MARCELA GARCIA TORRES","3243-2020","AUXILIAR ADMINISTRATIVO-VENTANILLA UNICA ","03 de agosto de 2020","   31 de Agosto de 2020",2500000,2500000,4067,5068,"SANDRA SANMARTIN","2020-08-15","https://www.contratos.gov.co/consultas/detalleProceso.do?numConstancia=20-4-11020478"]
[101,32623574,"NANCY MARINA TAPIERO ACOSTA","3244-2020","ABOGADO ","03 de agosto de 2020","   31 de Agosto de 2020",4000000,4000000,4068,5069,"JUAN  ESTEBAN SANCHEZ PAEZ ","2020-08-15","https://www.contratos.gov.co/consultas/detalleProceso.do?numConstancia=20-4-11020479"]
[102,8733921,"LUIS LEONARDO ANTOLINEZ FERNANDEZ","3245-2020","ABOGADO ","03 de agosto de 2020","   31 de Agosto de 2020",5000000,5000000,4069,5070,"ORNELLA FIORENTINO","2020-08-15","https://www.contratos.gov.co/consultas/detalleProceso.do?numConstancia=20-4-11020481"]
[103,32854523,"DINA MARGARITA GOMEZ MORALES","3246-2020","FISIOTERAPEUTA","03 de agosto de 2020","   31 de Agosto de 2020",3000000,3000000,4070,5071,"JUAN  ESTEBAN SANCHEZ PAEZ ","2020-08-15","https://www.contratos.gov.co/consultas/detalleProceso.do?numConstancia=20-4-11020485"]
[104,1143439595,"DAYANA PAOLA OTALORA AMAYA","3247-2020","DIGITADOR PAI WEB ","03 de agosto de 2020","   31 de Agosto de 2020",1458000,1458000,4071,5072,"YURANIS BONIFAS","2020-08-15","https://www.contratos.gov.co/consultas/detalleProceso.do?numConstancia=20-4-11020486"]
[105,22468261,"KANYA MALLERLY BERNAL BECERRA ","3248-2020","DIGITADOR PAI WEB ","03 de agosto de 2020","   31 de Agosto de 2020",2200000,2200000,4072,5073,"YURANIS BONIFAS","2020-08-15","https://www.contratos.gov.co/consultas/detalleProceso.do?numConstancia=20-4-11020523"]
[106,1001798861,"MARTHA LAURA VIZCAINO PEREZ","3249-2020","DIGITADOR PAI WEB ","03 de agosto de 2020","   31 de Agosto de 2020",1458000,1458000,4073,5074,"YURANIS BONIFAS","2020-08-15","https://www.contratos.gov.co/consultas/detalleProceso.do?numConstancia=20-4-11020524"]
[107,1143132965,"YERLIS PAOLA GAMARRA BORJA","3250-2020","DIGITADOR PAI WEB ","03 de agosto de 2020","   31 de Agosto de 2020",1800000,1800000,4074,5075,"YURANIS BONIFAS","2020-08-15","https://www.contratos.gov.co/consultas/detalleProceso.do?numConstancia=20-4-11020525"]
[108,8566775,"ALEJANDRO LIBARDO ALEMAN MARQUEZ","3251-2020","AUXILIAR DE ARCHIVO ","03 de agosto de 2020","   31 de Agosto de 2020",1500000,1500000,4075,5076,"SANDRA SANMARTIN","2020-08-15","https://www.contratos.gov.co/consultas/detalleProceso.do?numConstancia=20-4-11020526"]
[109,15666678,"ALFREDO ANTONIO RAMIREZ PEREIRA","3252-2020","LIDER ARCHIVO  CENTRAL","03 de agosto de 2020","   31 de Agosto de 2020",3000000,3000000,4076,5077,"SANDRA SANMARTIN","2020-08-15","https://www.contratos.gov.co/consultas/detalleProceso.do?numConstancia=20-4-11020528"]
[110,32813366,"ANA GONZALEZ ZAMBRANO","3253-2020","AUXILIAR DE ARCHIVO ","03 de agosto de 2020","   31 de Agosto de 2020",1500000,1500000,4077,5078,"SANDRA SANMARTIN","2020-08-15","https://www.contratos.gov.co/consultas/detalleProceso.do?numConstancia=20-4-11020529"]
[111,32772038,"ELIANA BEATRIZ ABRIL DE LA ROSA ","3254-2020"," GESTION DOCUMENTAL TALENTO HUMANO","03 de agosto de 2020","31 de Agosto de 2020",1900000,1900000,4078,5079,"FABIAN  COLPAS OROZCO ","2020-08-15","https://www.contratos.gov.co/consultas/detalleProceso.do?numConstancia=20-4-11020530"]
[112,1007045398,"ELIEZER VEGA ARAGON","3255-2020","AUXILIAR DE ARCHIVO ","03 de agosto de 2020","   31 de Agosto de 2020",1500000,1500000,4079,5080,"SANDRA SANMARTIN","2020-08-15","https://www.contratos.gov.co/consultas/detalleProceso.do?numConstancia=20-4-11020531"]
[113,1042448309,"GERALDINE ALEXANDRA MEDRANO IGLESIAS","3256-2020","AUXILIAR DE ARCHIVO ","03 de agosto de 2020","   31 de Agosto de 2020",1900000,1900000,4080,5081,"SANDRA SANMARTIN","2020-08-15","https://www.contratos.gov.co/consultas/detalleProceso.do?numConstancia=20-4-11020532"]
[114,1047337864,"MARTHA MARÍA ARIZA FONTALVO","3257-2020","AUXILIAR DE ARCHIVO ","03 de agosto de 2020","   31 de Agosto de 2020",1500000,1500000,4081,5082,"SANDRA SANMARTIN","2020-08-15","https://www.contratos.gov.co/consultas/detalleProceso.do?numConstancia=20-4-11020534"]
[115,32826802,"ROCIO ISABEL FRIAS COLPAS","3258-2020","PERSONAL  LIMPIEZA Y ASEO","03 de agosto de 2020","   31 de Agosto de 2020",1215000,1215000,4082,5083,"JAIME ALVAREZ NORIEGA","2020-08-15","https://www.contratos.gov.co/consultas/detalleProceso.do?numConstancia=20-4-11020535"]
[116,32826839,"BEATRIZ ISABEL SANMARTIN ESCORCIA","3259-2020","VACUNADORA  PAI WEB","03 de agosto de 2020","   31 de Agosto de 2020",1400000,1400000,4083,5084,"YURANIS BONIFAS","2020-08-15","https://www.contratos.gov.co/consultas/detalleProceso.do?numConstancia=20-4-11020536"]
[117,8647518,"LUIS CARLOS MERCADO MARTINEZ","3260-2020","AUXILIAR DE ARCHIVO ","03 de agosto de 2020","   31 de Agosto de 2020",2000000,2000000,4084,5085,"SANDRA SANMARTIN","2020-08-15","https://www.contratos.gov.co/consultas/detalleProceso.do?numConstancia=20-4-11020537"]
[118,1007124107,"JEAN CARLOS PEÑA CERVANTES","3261-2020","AUXILIAR DE ARCHIVO ","03 de agosto de 2020","   31 de Agosto de 2020",1900000,1900000,4085,5086,"SANDRA SANMARTIN","2020-08-15","https://www.contratos.gov.co/consultas/detalleProceso.do?numConstancia=20-4-11020539"]
[119,32818371,"IVETTE CECILIA SARMIENTO DONADO ","3262-2020","AUXILIAR DE ARCHIVO ","03 de agosto de 2020","   31 de Agosto de 2020",1500000,1500000,4086,5087,"SANDRA SANMARTIN","2020-08-15","https://www.contratos.gov.co/consultas/detalleProceso.do?numConstancia=20-4-11020541"]
[120,40993662,"YEIMIS ESTHER DE LAS AGUAS ARIZA","3263-2020","AUXILIAR DE ARCHIVO ","03 de agosto de 2020","   31 de Agosto de 2020",2000000,2000000,4087,5088,"SANDRA SANMARTIN","2020-08-15","https://www.contratos.gov.co/consultas/detalleProceso.do?numConstancia=20-4-11020543"]
[121,72098736,"EVARISTO RAFAEL BARRIOS DE LA ROSA","3264-2020","TECNICO DE  ALMACEN","03 de agosto de 2020","   31 de Agosto de 2020",2300000,2300000,4088,5089,"ESTARLEN LECHUGA","2020-08-15","https://www.contratos.gov.co/consultas/detalleProceso.do?numConstancia=20-4-11020546"]
[122,1001893516,"ANDREA ALEJANDRA CERVANTES CORNIN","3265-2020","AUXILIAR DE ARCHIVO ","03 de agosto de 2020","   31 de Agosto de 2020",1900000,1900000,4089,5090,"SANDRA SANMARTIN","2020-08-15","https://www.contratos.gov.co/consultas/detalleProceso.do?numConstancia=20-4-11020547"]
[123,22664852,"VILMAIRA JUDITH BOLANO VALENCIA","3266-2020","GESTION DOCUMENTAL TALENTO HUMANO","03 de agosto de 2020","   31 de Agosto de 2020",1700000,1700000,4090,5091,"FABIAN  COLPAS OROZCO ","2020-08-15","https://www.contratos.gov.co/consultas/detalleProceso.do?numConstancia=20-4-11020548"]
[124,32816898,"ISABEL OSORIO BARRIOS","3267-2020","VACUNADORA PAI WEB ","03 de agosto de 2020","   31 de Agosto de 2020",1400000,1400000,4091,5092,"YURANIS BONIFAS","2020-08-15","https://www.contratos.gov.co/consultas/detalleProceso.do?numConstancia=20-4-11020552"]
[125,1001800132,"YARIMA CHARRIS BOLAÑO ","3268-2020","GESTION DOCUMENTAL TALENTO HUMANO","03 de agosto de 2020","   31 de Agosto de 2020",1700000,1700000,4092,5093,"FABIAN  COLPAS OROZCO ","2020-08-15","https://www.contratos.gov.co/consultas/detalleProceso.do?numConstancia=20-4-11020553"]
[126,55221348,"MERCEDES SUSANA ESTARITA GUTIERREZ DE PIÑERES","3269-2020","AUXILIAR DE ARCHIVO ","03 de agosto de 2020","   31 de Agosto de 2020",2000000,2000000,4093,5094,"SANDRA SANMARTIN","2020-08-16","https://www.contratos.gov.co/consultas/detalleProceso.do?numConstancia=20-4-11020554"]
[127,1001878251,"MAYRA ALEJANDRA ESCORCIA DE LA HOZ","3270-2020","AUXILIAR DE ARCHIVO ","03 de agosto de 2020","   31 de Agosto de 2020",1500000,1500000,4094,5095,"SANDRA SANMARTIN","2020-08-16","https://www.contratos.gov.co/consultas/detalleProceso.do?numConstancia=20-4-11020555"]
[128,22446125,"GENOVEVA MARIA LLANES JEREZ","3271-2020","VACUNADORA PAI WEB ","03 de agosto de 2020","   31 de Agosto de 2020",1400000,1400000,4095,5096,"YURANIS BONIFAS","2020-08-16","https://www.contratos.gov.co/consultas/detalleProceso.do?numConstancia=20-4-11020556"]
[129,72098690,"JAVIER ENRIQUE BARANDICA","3272-2020","TECNICO DE  ALMACEN","03 de agosto de 2020","   31 de Agosto de 2020",2300000,2300000,4096,5097,"ESTARLEN LECHUGA","2020-08-16","https://www.contratos.gov.co/consultas/detalleProceso.do?numConstancia=20-4-11020578"]
[130,1043002864,"JAIRO ISACC BARRIOS AVILA","3273-2020","AUXILIAR DE ARCHIVO ","03 de agosto de 2020","   31 de Agosto de 2020",1900000,1900000,4097,5098,"SANDRA SANMARTIN","2020-08-16","https://www.contratos.gov.co/consultas/detalleProceso.do?numConstancia=20-4-11020580"]
[{"$f":"+A132+1","v":131},1001881009,"ARMANDO JOSE JINETE BARRIOS","3274-2020","AUXILIAR DE ARCHIVO ","03 de agosto de 2020","   31 de Agosto de 2020",1500000,1500000,4098,5099,"SANDRA SANMARTIN","2020-08-16","https://www.contratos.gov.co/consultas/detalleProceso.do?numConstancia=20-4-11020581"]
[132,32788911,"PEGGY ESTHER CARRILLO MUÑOZ","3275-2020","DIGITADOR PAI WEB ","03 de agosto de 2020","   31 de Agosto de 2020",1458000,1458000,4099,5100,"YURANIS BONIFAS","2020-08-16","https://www.contratos.gov.co/consultas/detalleProceso.do?numConstancia=20-4-11020582"]
[133,32820220,"YARLENE DEL SOCORRO DE AVILA DE ALBA","3276-2020","VACUNADORA PAI WEB ","03 de agosto de 2020","   31 de Agosto de 2020",1400000,1400000,4100,5101,"YURANIS BONIFAS","2020-08-16","https://www.contratos.gov.co/consultas/detalleProceso.do?numConstancia=20-4-11020583"]
[134,32619158,"ISABEL HERRERA PACHECO ","3277-2020","VACUNADORA PAI WEB ","03 de agosto de 2020","   31 de Agosto de 2020",1400000,1400000,4101,5102,"YURANIS BONIFAS","2020-08-16","https://www.contratos.gov.co/consultas/detalleProceso.do?numConstancia=20-4-11020585"]
[135,79678698,"WILSON PASTOR RUIZ ORELLANO","3278-2020","AUXILIAR DE ARCHIVO ","03 de agosto de 2020","   31 de Agosto de 2020",1700000,1700000,4102,5103,"SANDRA SANMARTIN","2020-08-16","https://www.contratos.gov.co/consultas/detalleProceso.do?numConstancia=20-4-11020586"]
[136,1043605412,"SANDRA MILENA REALES ARIZA ","3279-2020","AUXILIAR DE ARCHIVO ","03 de agosto de 2020","   31 de Agosto de 2020",1700000,1700000,4103,5104,"SANDRA SANMARTIN","2020-08-16","https://www.contratos.gov.co/consultas/detalleProceso.do?numConstancia=20-4-11020588"]
[137,55250327,"YURANIS BONIFAS CAÑAS","3280-2020","COORDINADORA PAIWEB","03 de agosto de 2020","   31 de Agosto de 2020",3000000,3000000,4104,5105,"NILSA ARIZA MARQUEZ","2020-08-16","https://www.contratos.gov.co/consultas/detalleProceso.do?numConstancia=20-4-11020589"]
[138,1043027730,"MANUEL JOSE URICOCHEA VASQUEZ","3281-2020","GESTION  DOCUMENTAL TALENTO HUMANO ","03 de agosto de 2020","   31 de Agosto de 2020",1900000,1900000,4105,5106,"FABIAN  COLPAS OROZCO ","2020-08-16","https://www.contratos.gov.co/consultas/detalleProceso.do?numConstancia=20-4-11020590"]
[139,1043010710,"LUIS FERNANDO ESTRADA GUERRERO ","3282-2020","AUXILIAR DE ARCHIVO ","03 de agosto de 2020","   31 de Agosto de 2020",1900000,1900000,4106,5107,"SANDRA SANMARTIN","2020-08-16","https://www.contratos.gov.co/consultas/detalleProceso.do?numConstancia=20-4-11020591"]
[140,1041901335,"JENNIFER LABARRERA RUA","3283-2020","DIGITADOR PAI WEB ","03 de agosto de 2020","   31 de Agosto de 2020",1458000,1458000,4107,5108,"YURANIS BONIFAS","2020-08-16","https://www.contratos.gov.co/consultas/detalleProceso.do?numConstancia=20-4-11020592"]
[141,1047350428,"ELENA PATRICIA RIVAS VERONA ","3284-2020","DIGITADOR PAI WEB ","03 de agosto de 2020","   31 de Agosto de 2020",1458000,1458000,4108,5109,"YURANIS BONIFAS","2020-08-16","https://www.contratos.gov.co/consultas/detalleProceso.do?numConstancia=20-4-11020593"]
[142,73140179,"JULIO CESAR LOPEZ ROMERO","3285-2020","DIGITADOR PAI WEB ","03 de agosto de 2020","   31 de Agosto de 2020",1458000,{"$f":"+H144*1","v":1458000},4109,5110,"YURANIS BONIFAS","2020-08-16","https://www.contratos.gov.co/consultas/detalleProceso.do?numConstancia=20-4-11020596"]
[143,8762665,"ELIECER DE JESUS CALLE QUINTERO","3286-2020","TECNICO ALMACEN ","03 de agosto de 2020","   31 de Agosto de 2020",1900000,1900000,4110,5111,"ESTARLEN LECHUGA","2020-08-16","https://www.contratos.gov.co/consultas/detalleProceso.do?numConstancia=20-4-11020597"]
[144,1234888398,"STEFANY CECILIA MANOTAS CERDA ","3287-2020","DIGITADOR PAI WEB ","03 de agosto de 2020","   31 de Agosto de 2020",1458000,1458000,4111,5112,"YURANIS BONIFAS","2020-08-16","https://www.contratos.gov.co/consultas/detalleProceso.do?numConstancia=20-4-11020598"]
[145,1041890825,"JHOSIMAR GUETTE CANTILLO","3288-2020","GESTION  DOCUMENTAL TALENTO HUMANO ","03 de agosto de 2020","   31 de Agosto de 2020",1700000,1700000,4112,5113,"FABIAN  COLPAS OROZCO ","2020-08-16","https://www.contratos.gov.co/consultas/detalleProceso.do?numConstancia=20-4-11020600"]
[146,32730545,"NASLY DEL CARMEN CAMPO MARTINEZ","3289-2020","AUXILIAR DE ARCHIVO ","03 de agosto de 2020","   31 de Agosto de 2020",1600000,1600000,4113,5114,"SANDRA SANMARTIN","2020-08-16","https://www.contratos.gov.co/consultas/detalleProceso.do?numConstancia=20-4-11020601"]
[147,22741244,"ARLETH PATRICIA CARRILLO GARVIN","3290-2020","ENFERMERA JEFE DE PROMOCIÓN Y MANTENIMIENTO DE LA SALUD","03 de agosto de 2020","   31 de Agosto de 2020",2300000,2300000,4114,5115,"NILSA ARIZA MARQUEZ","2020-08-16","https://www.contratos.gov.co/consultas/detalleProceso.do?numConstancia=20-4-11020603"]
[148,1140889995,"CAROLAY JHOANA LUNA GOMEZ","3291-2020","ASISTENTE ADMINISTRATIVO COORDINACION  MEDICA ","03 de agosto de 2020","   31 de Agosto de 2020",1900000,1900000,4115,5116,"SERGIO BOVEA MARIN","2020-08-16","https://www.contratos.gov.co/consultas/detalleProceso.do?numConstancia=20-4-11020604"]
[149,55309225,"ADRIANA BALLESTAS MARTINEZ","3292-2020","MEDICO DE URGENCIA","03 de agosto de 2020","   31 de Agosto de 2020",3072000,3072000,4116,5117,"SERGIO BOVEA MARIN","2020-08-16","https://www.contratos.gov.co/consultas/detalleProceso.do?numConstancia=20-4-11020606"]
[150,1042428171,"ALEX ENRIQUE VILLARREAL IBAÑEZ","3293-2020","ODONTOLOGO","03 de agosto de 2020","   31 de Agosto de 2020",1900000,1900000,4117,5118,"SERGIO BOVEA MARIN","2020-08-16","https://www.contratos.gov.co/consultas/detalleProceso.do?numConstancia=20-4-11020607"]
[151,22523223,"ALEXANDRA ESTHER MOLINA PEREZ","3294-2020","PERSONAL  LIMPIEZA Y ASEO URGENCIA","03 de agosto de 2020","   31 de Agosto de 2020",1653600,1653600,4118,5119,"JAIME ALVAREZ NORIEGA","2020-08-23","https://www.contratos.gov.co/consultas/detalleProceso.do?numConstancia=20-4-11020609"]
[152,72000601,"ALEXIS JAVIER SUAREZ CABALLERO","3295-2020","AUXILIAR DE FACTURACIÓN  URGENCIA","03 de agosto de 2020","   31 de Agosto de 2020",1680000,1680000,4119,5120,"SANDRA SANMARTIN","2020-08-24","https://www.contratos.gov.co/consultas/detalleProceso.do?numConstancia=20-4-11020611"]
[153,8697543,"ALVARO ARENAS GONZALEZ","3296-2020","MEDICO DE RUTA INTEGRAL MATERNO PERINATAL ","03 de agosto de 2020","   31 de Agosto de 2020",5088000,5088000,4120,5121,"SERGIO BOVEA MARIN","2020-08-16","https://www.contratos.gov.co/consultas/detalleProceso.do?numConstancia=20-4-11020613"]
[154,8501206,"AUGUSTO RAFAEL VALENCIA OCAMPO","3297-2020","AUXILIAR DE FACTURACIÓN  URGENCIA","03 de agosto de 2020","   31 de Agosto de 2020",1680000,1680000,4121,5122,"SANDRA SANMARTIN","2020-08-16","https://www.contratos.gov.co/consultas/detalleProceso.do?numConstancia=20-4-11020614"]
[155,1140872217,"BLEYDIS LORAINE PELAEZ LOBO","3298-2020","MEDICO DE URGENCIA","03 de agosto de 2020","   31 de Agosto de 2020",3072000,3072000,4122,5123,"SERGIO BOVEA MARIN","2020-08-16","https://www.contratos.gov.co/consultas/detalleProceso.do?numConstancia=20-4-11020616"]
[156,44158949,"CARMEN PACHECO VARELA","3299-2020","PERSONAL  LIMPIEZA Y ASEO URGENCIA","03 de agosto de 2020","   31 de Agosto de 2020",1653600,1653600,4123,5124,"JAIME ALVAREZ NORIEGA","2020-08-16","https://www.contratos.gov.co/consultas/detalleProceso.do?numConstancia=20-4-11020620"]
[157,32712485,"CASILDA LARA SOLANO ","3300-2020","MEDICO DE RUTA INTEGRAL MATERNO PERINATAL ","03 de agosto de 2020","   31 de Agosto de 2020",2120000,2120000,4124,5125,"SERGIO BOVEA MARIN","2020-08-16","https://www.contratos.gov.co/consultas/detalleProceso.do?numConstancia=20-4-11020621"]
[158,1042442558,"DANISA PAOLA BARRIOS DE ALBA","3301-2020","NUTRICIONISTA","03 de agosto de 2020","   31 de Agosto de 2020",2760000,2760000,4125,5126,"SERGIO BOVEA MARIN","2020-08-16","https://www.contratos.gov.co/consultas/detalleProceso.do?numConstancia=20-4-11020636"]
[159,1082405551,"DESIRETH ESTRADA FERNANDEZ","3302-2020","ENFERMERA JEFE DE PROMOCIÓN Y MANTENIMIENTO DE LA SALUD","03 de agosto de 2020","   31 de Agosto de 2020",{"$f":"2300000","v":2300000},{"$f":"+H161*1","v":2300000},4126,5127,"SERGIO BOVEA MARIN","2020-08-16","https://www.contratos.gov.co/consultas/detalleProceso.do?numConstancia=20-4-11020640"]
[160,32818082,"DIVINA LUZ NIETO ZAMBRANO","3303-2020","PERSONAL  LIMPIEZA Y ASEO URGENCIA","03 de agosto de 2020","   31 de Agosto de 2020",1653600,1653600,4127,5128,"JAIME ALVAREZ NORIEGA","2020-08-16","https://www.contratos.gov.co/consultas/detalleProceso.do?numConstancia=20-4-11020641"]
[161,8734956,"EFRAIN CANTILLO GUERRERO","3304-2020","CONDUCTOR DE AMBULANCIA","03 de agosto de 2020","   31 de Agosto de 2020",2160000,2160000,4128,5129,"BETTY PERTUZ ","2020-08-16","https://www.contratos.gov.co/consultas/detalleProceso.do?numConstancia=20-4-11020643"]
[162,8750161,"EFRAIN DE LA HOZ ROCHEL","3305-2020","MEDICO DE URGENCIA","03 de agosto de 2020","   31 de Agosto de 2020",3072000,3072000,4129,5130,"SERGIO BOVEA MARIN","2020-08-16","https://www.contratos.gov.co/consultas/detalleProceso.do?numConstancia=20-4-11020645"]
[163,1042436156,"EMELY ESCORCIA MARTINEZ","3306-2020","ENFERMERA JEFE URGENCIAS ","03 de agosto de 2020","   31 de Agosto de 2020",2280000,2280000,4130,5131,"SERGIO BOVEA MARIN","2020-08-16","https://www.contratos.gov.co/consultas/detalleProceso.do?numConstancia=20-4-11020653"]
[164,22693401,"EMILIA ANTONIA BARCELO DE PARRA","3307-2020","PERSONAL  LIMPIEZA Y ASEO URGENCIA","03 de agosto de 2020","   31 de Agosto de 2020",1653600,1653600,4131,5132,"JAIME ALVAREZ NORIEGA","2020-08-16","https://www.contratos.gov.co/consultas/detalleProceso.do?numConstancia=20-4-11020655"]
[165,8718276,"ENRIQUE PACHECO PACHECO ","3308-2020","MEDICO DE URGENCIA","03 de agosto de 2020","   31 de Agosto de 2020",3072000,3072000,4132,5133,"SERGIO BOVEA MARIN","2020-08-16","https://www.contratos.gov.co/consultas/detalleProceso.do?numConstancia=20-4-11020659"]
[166,32821813,"ESPERANZA OROZCO MORENO","3309-2020","AUXILIAR DE ENFERMERIA URGENCIAS","03 de agosto de 2020","   31 de Agosto de 2020",1653600,1653600,4133,5134,"SERGIO BOVEA MARIN","2020-08-16","https://www.contratos.gov.co/consultas/detalleProceso.do?numConstancia=20-4-11020660"]
[167,1042448518,"GIANINA ANDREA GRAVINI DE LA HOZ","3310-2020","MEDICO DE URGENCIA","03 de agosto de 2020","   31 de Agosto de 2020",3072000,3072000,4134,5135,"SERGIO BOVEA MARIN","2020-08-16","https://www.contratos.gov.co/consultas/detalleProceso.do?numConstancia=20-4-11020663"]
[168,49555306,"GLADYS DIAZ MARIN","3311-2020","AUXILIAR DE FACTURACIÓN  URGENCIA","03 de agosto de 2020","   31 de Agosto de 2020",1680000,1680000,4135,5136,"SANDRA SANMARTIN","2020-08-16","https://www.contratos.gov.co/consultas/detalleProceso.do?numConstancia=20-4-11020666"]
[169,1042440903,"HEIDY MARTINEZ GUTIERREZ","3312-2020","AUXILIAR DE FACTURACIÓN  URGENCIA","03 de agosto de 2020","   31 de Agosto de 2020",1680000,1680000,4136,5137,"SANDRA SANMARTIN","2020-08-16","https://www.contratos.gov.co/consultas/detalleProceso.do?numConstancia=20-4-11020674"]
[170,32861543,"INGRID NAVARRO CARRILLO","3313-2020","FISIOTERAPEUTA ","03 de agosto de 2020","   31 de Agosto de 2020",5800000,5800000,4137,5138,"SERGIO BOVEA MARIN","2020-08-16","https://www.contratos.gov.co/consultas/detalleProceso.do?numConstancia=20-4-11020676"]
[171,72429926,"JAIRO ESCOBAR ROMERO","3314-2020","MEDICO DE URGENCIA","03 de agosto de 2020","   31 de Agosto de 2020",3072000,3072000,4138,5139,"SERGIO BOVEA MARIN","2020-08-16","https://www.contratos.gov.co/consultas/detalleProceso.do?numConstancia=20-4-11020679"]
[172,32869709,"JENECIS BARRERA MIRANDA","3315-2020","ENFERMERA JEFE DE RUTA INTEGRAL MATERNO PERINATAL","03 de agosto de 2020","   31 de Agosto de 2020",2760000,2760000,4139,5140,"SERGIO BOVEA MARIN","2020-08-16","https://www.contratos.gov.co/consultas/detalleProceso.do?numConstancia=20-4-11020680"]
[173,1042444925,"JESUS MORENO DE ALBA","3316-2020","AUXILIAR DE FACTURACIÓN  URGENCIA","03 de agosto de 2020","   31 de Agosto de 2020",1680000,1680000,4140,5141,"SANDRA SANMARTIN","2020-08-16","https://www.contratos.gov.co/consultas/detalleProceso.do?numConstancia=20-4-11020681"]
[174,44161544,"JHOANA CATALINA SANDOVAL ESCORCIA","3317-2020","ENFERMERA JEFE URGENCIAS ","03 de agosto de 2020","   31 de Agosto de 2020",2280000,2280000,4141,5142,"SERGIO BOVEA MARIN","2020-08-16","https://www.contratos.gov.co/consultas/detalleProceso.do?numConstancia=20-4-11020684"]
[175,32810582,"JOSEFINA CARO VITOLA","3318-2020","AUXILIAR DE ENFERMERIA URGENCIAS","03 de agosto de 2020","   31 de Agosto de 2020",1653600,1653600,4142,5143,"SERGIO BOVEA MARIN","2020-08-16","https://www.contratos.gov.co/consultas/detalleProceso.do?numConstancia=20-4-11020686"]
[176,32771594,"JUANA DIAZ CARABALLO","3319-2020","AUXILIAR DE ENFERMERIA URGENCIAS","03 de agosto de 2020","   31 de Agosto de 2020",1653600,1653600,4143,5144,"SERGIO BOVEA MARIN","2020-08-16","https://www.contratos.gov.co/consultas/detalleProceso.do?numConstancia=20-4-11020696"]
[177,1043841968,"KAREN DAYANA FONSECA MUÑOZ","3320-2020","MEDICO DE URGENCIA","03 de agosto de 2020","   31 de Agosto de 2020",3072000,3072000,4144,5145,"SERGIO BOVEA MARIN","2020-08-16","https://www.contratos.gov.co/consultas/detalleProceso.do?numConstancia=20-4-11020700"]
[178,55313269,"KAREN MARTINEZ BRANGO","3321-2020","AUXILIAR DE ENFERMERIA URGENCIAS","03 de agosto de 2020","   31 de Agosto de 2020",1653600,1653600,4145,5146,"SERGIO BOVEA MARIN","2020-08-16","https://www.contratos.gov.co/consultas/detalleProceso.do?numConstancia=20-4-11020707"]
[179,22534402,"KATERINE RUA SUAREZ","3322-2020","AUXILIAR DE FACTURACIÓN  URGENCIA","03 de agosto de 2020","   31 de Agosto de 2020",1680000,1680000,4146,5147,"SANDRA SANMARTIN","2020-08-16","https://www.contratos.gov.co/consultas/detalleProceso.do?numConstancia=20-4-11020709"]
[180,1045697885,"LAURA ALANDETE CASTRO","3323-2020","MEDICO DE URGENCIA","03 de agosto de 2020","   31 de Agosto de 2020",3072000,3072000,4147,5148,"SERGIO BOVEA MARIN","2020-08-16","https://www.contratos.gov.co/consultas/detalleProceso.do?numConstancia=20-4-11020710"]
[181,1045712889,"LEYDILLY ROJANO GOMEZ","3324-2020","ENFERMERA JEFE URGENCIAS ","03 de agosto de 2020","   31 de Agosto de 2020",2280000,2280000,4148,5149,"SERGIO BOVEA MARIN","2020-08-16","https://www.contratos.gov.co/consultas/detalleProceso.do?numConstancia=20-4-11020712"]
[182,1042426533,"LIZ CATERINE ARROYO ROMERO","3325-2020","AUXILIAR DE FARMACIA ","03 de agosto de 2020","   31 de Agosto de 2020",1524000,1524000,4149,5150,"BETTY PERTUZ ","2020-08-16","https://www.contratos.gov.co/consultas/detalleProceso.do?numConstancia=20-4-11020714"]
[183,8672260,"LUIS MIGUEL REYES LANCE","3326-2020","ORIENTADOR","03 de agosto de 2020","   31 de Agosto de 2020",1524000,1524000,4150,5151,"SERGIO BOVEA MARIN","2020-08-16","https://www.contratos.gov.co/consultas/detalleProceso.do?numConstancia=20-4-11020717"]
[184,32825666,"LUZ STELLA RUIZ SUAREZ","3327-2020","AUXILIAR DE ENFERMERIA DE RUTA INTEGRAL MATERNO PERINATAL","03 de agosto de 2020","   31 de Agosto de 2020",1399200,1399200,4151,5152,"SERGIO BOVEA MARIN","2020-08-16","https://www.contratos.gov.co/consultas/detalleProceso.do?numConstancia=20-4-11020720"]
[185,1140849940,"MAICOL JOSE MOLINA SOTO","3328-2020","MEDICO DE URGENCIA","03 de agosto de 2020","   31 de Agosto de 2020",3072000,3072000,4152,5153,"SERGIO BOVEA MARIN","2020-08-16","https://www.contratos.gov.co/consultas/detalleProceso.do?numConstancia=20-4-11020724"]
[186,22644933,"MARGARITA PACHECO GUTIERREZ","3329-2020","HIGIENISTA ORAL","03 de agosto de 2020","   31 de Agosto de 2020",2332000,2332000,4153,5154,"SERGIO BOVEA MARIN","2020-08-16","https://www.contratos.gov.co/consultas/detalleProceso.do?numConstancia=20-4-11020725"]
[187,1042450048,"MARIA ALEJANDRA DE LA HOZ TOSCANO","3330-2020","MEDICO DE URGENCIA","03 de agosto de 2020","   31 de Agosto de 2020",3072000,3072000,4154,5155,"SERGIO BOVEA MARIN","2020-08-16","https://www.contratos.gov.co/consultas/detalleProceso.do?numConstancia=20-4-11020728"]
[188,1004093696,"MARIA ALTAMAR OROZCO","3331-2020","AUXILIAR DE ENFERMERIA URGENCIAS","03 de agosto de 2020","   31 de Agosto de 2020",1653600,1653600,4155,5156,"SERGIO BOVEA MARIN","2020-08-16","https://www.contratos.gov.co/consultas/detalleProceso.do?numConstancia=20-4-11020730"]
[189,32789239,"MARIA DEL CARMEN GUERRERO OJEDA","3332-2020","ORIENTADOR","03 de agosto de 2020","   31 de Agosto de 2020",1524000,1524000,4156,5157,"SERGIO BOVEA MARIN","2020-08-16","https://www.contratos.gov.co/consultas/detalleProceso.do?numConstancia=20-4-11020732"]
[190,1129572439,"SHIRLEY CONSUEGRA OLAYA","3333-2020","REFERENCIA Y CONTRAREFERENCIA","03 de agosto de 2020","   31 de Agosto de 2020",1524000,1524000,4157,5158,"SERGIO BOVEA MARIN","2020-08-16","https://www.contratos.gov.co/consultas/detalleProceso.do?numConstancia=20-4-11020733"]
[191,32879250,"MARIA SEGURA MEJIA","3334-2020","AUXILIAR DE FACTURACIÓN  URGENCIA","03 de agosto de 2020","   31 de Agosto de 2020",1680000,1680000,4158,5159,"SANDRA SANMARTIN","2020-08-16","https://www.contratos.gov.co/consultas/detalleProceso.do?numConstancia=20-4-11020734"]
[192,72158729,"MARLON CAMILO JORDAN HERRERA","3335-2020","REFERENCIA Y CONTRAREFERENCIA","03 de agosto de 2020","   31 de Agosto de 2020",1776000,1776000,4159,5160,"SERGIO BOVEA MARIN","2020-08-16","https://www.contratos.gov.co/consultas/detalleProceso.do?numConstancia=20-4-11020738"]
[193,22457575,"MELBA MEZA PERDOMO","3336-2020","TRABAJADORA SOCIAL ","03 de agosto de 2020","   31 de Agosto de 2020",2200000,2200000,4160,5161,"SERGIO BOVEA MARIN","2020-08-16","https://www.contratos.gov.co/consultas/detalleProceso.do?numConstancia=20-4-11020740"]
[194,8507626,"MIGUEL ALVAREZ SALCEDO","3337-2020","CONDUCTOR DE AMBULANCIA","03 de agosto de 2020","   31 de Agosto de 2020",2160000,2160000,4161,5162,"BETTY PERTUZ ","2020-08-16","https://www.contratos.gov.co/consultas/detalleProceso.do?numConstancia=20-4-11020741"]
[{"$f":"+A196+1","v":195},32829349,"NADIA BOVEA NIETO","3338-2020","AUXILIAR DE ENFERMERIA URGENCIAS","03 de agosto de 2020","   31 de Agosto de 2020",1653600,1653600,4162,5163,"SERGIO BOVEA MARIN","2020-08-16","https://www.contratos.gov.co/consultas/detalleProceso.do?numConstancia=20-4-11020744"]
[196,55307414,"NATALY DE LAS SALAS ORTEGA","3339-2020","PSICOLOGA","03 de agosto de 2020","   31 de Agosto de 2020",3000000,3000000,4163,5164,"BETTY PERTUZ ","2020-08-16","https://www.contratos.gov.co/consultas/detalleProceso.do?numConstancia=20-4-11020746"]
[197,32783935,"NELBY CORRALES HOYOS","3340-2020","AUXILIAR DE ENFERMERIA URGENCIAS","03 de agosto de 2020","   31 de Agosto de 2020",1653600,1653600,4164,5165,"SERGIO BOVEA MARIN","2020-08-16","https://www.contratos.gov.co/consultas/detalleProceso.do?numConstancia=20-4-11020747"]
[198,32819548,"NELLY GALAN HEILBRON","3341-2020","AUXILIAR DE ENFERMERIA PROMOTORA EN SALUD","03 de agosto de 2020","   31 de Agosto de 2020",1215000,1215000,4165,5166,"SERGIO BOVEA MARIN","2020-08-16","https://www.contratos.gov.co/consultas/detalleProceso.do?numConstancia=20-4-11020749"]
[199,72222215,"NILSON ALMARALES GARIZABALO","3342-2020","MEDICO  MATERNIDAD SEGURA Y URGENCIA","03 de agosto de 2020","   31 de Agosto de 2020",6212000,6212000,4166,5167,"SERGIO BOVEA MARIN","2020-08-16","https://www.contratos.gov.co/consultas/detalleProceso.do?numConstancia=20-4-11020789"]
[200,22646712,"NINI JOHANA SOLANO MORENO","3343-2020","ENFERMERA JEFE URGENCIAS ","03 de agosto de 2020","   31 de Agosto de 2020",2280000,2280000,4167,5168,"SERGIO BOVEA MARIN","2020-08-16","https://www.contratos.gov.co/consultas/detalleProceso.do?numConstancia=20-4-11020790"]
[201,22564359,"NINI JOHANNA QUIROZ SANTOS","3344-2020","MEDICO DE URGENCIA","03 de agosto de 2020","   31 de Agosto de 2020",3072000,3072000,4168,5169,"SERGIO BOVEA MARIN","2020-08-16","https://www.contratos.gov.co/consultas/detalleProceso.do?numConstancia=20-4-11020792"]
[202,39282489,"NORIS SOFIA BERTEL PEREZ","3345-2020","PERSONAL  LIMPIEZA Y ASEO URGENCIA","03 de agosto de 2020","   31 de Agosto de 2020",1653600,1653600,4169,5170,"JAIME ALVAREZ NORIEGA","2020-08-16","https://www.contratos.gov.co/consultas/detalleProceso.do?numConstancia=20-4-11020793"]
[203,72144602,"RICARDO ISAAC OROZCO BARROS","3346-2020","CONDUCTOR DE AMBULANCIA","03 de agosto de 2020","   31 de Agosto de 2020",2160000,2160000,4170,5171,"SERGIO BOVEA MARIN","2020-08-16","https://www.contratos.gov.co/consultas/detalleProceso.do?numConstancia=20-4-11020795"]
[204,22527122,"RUBY DEL CARMEN BOSSIO HERRERA","3347-2020","AUXILIAR DE ENFERMERIA URGENCIAS","03 de agosto de 2020","   31 de Agosto de 2020",1653600,1653600,4171,5172,"SERGIO BOVEA MARIN","2020-08-16","https://www.contratos.gov.co/consultas/detalleProceso.do?numConstancia=20-4-11020796"]
[205,1042426990,"SANDRA MARCELA PEREZ BERMEJO","3348-2020","MEDICO DE URGENCIA","03 de agosto de 2020","   31 de Agosto de 2020",3072000,3072000,4172,5173,"SERGIO BOVEA MARIN","2020-08-16","https://www.contratos.gov.co/consultas/detalleProceso.do?numConstancia=20-4-11020797"]
[206,1042430978,"TATIANA BARRIOSNUEVO CERA","3349-2020","AUXILIAR DE ENFERMERIA URGENCIAS","03 de agosto de 2020","   31 de Agosto de 2020",1653600,1653600,4173,5174,"SERGIO BOVEA MARIN","2020-08-16","https://www.contratos.gov.co/consultas/detalleProceso.do?numConstancia=20-4-11020798"]
[207,32874863,"TATIANA PAEZ DE LA CRUZ","3350-2020","AUXILIAR DE ENFERMERIA URGENCIAS","03 de agosto de 2020","   31 de Agosto de 2020",1653600,1653600,4174,5175,"SERGIO BOVEA MARIN","2020-08-16","https://www.contratos.gov.co/consultas/detalleProceso.do?numConstancia=20-4-11020801"]
[208,32884590,"TATIANA SUAREZ CABALLERO ","3351-2020","AUXILIAR DE ENFERMERIA DE RUTA INTEGRAL MATERNO PERINATAL","03 de agosto de 2020","   31 de Agosto de 2020",1399200,1399200,4175,5176,"SERGIO BOVEA MARIN","2020-08-16","https://www.contratos.gov.co/consultas/detalleProceso.do?numConstancia=20-4-11020802"]
[209,1048271951,"WENDY OFELIA BARRAZA PUA","3352-2020","AUXILIAR DE ENFERMERIA URGENCIAS","03 de agosto de 2020","   31 de Agosto de 2020",1653600,1653600,4176,5177,"SERGIO BOVEA MARIN","2020-08-16","https://www.contratos.gov.co/consultas/detalleProceso.do?numConstancia=20-4-11020876"]
[210,1042456068,"XILENA PACHECO OSPINO ","3353-2020","AUXILIAR DE ENFERMERIA URGENCIAS","03 de agosto de 2020","   31 de Agosto de 2020",1653600,1653600,4177,5178,"SERGIO BOVEA MARIN","2020-08-16","https://www.contratos.gov.co/consultas/detalleProceso.do?numConstancia=20-4-11020878"]
[211,44153255,"XIMENA ESCORCIA CASTRO","3354-2020","MEDICO DE URGENCIA","03 de agosto de 2020","   31 de Agosto de 2020",3072000,3072000,4178,5179,"SERGIO BOVEA MARIN","2020-08-16","https://www.contratos.gov.co/consultas/detalleProceso.do?numConstancia=20-4-11020881"]
[212,1042437499,"XIOMARA ALEJANDRA MAURY PACHECO ","3355-2020","ENFERMERA JEFE URGENCIAS ","03 de agosto de 2020","   31 de Agosto de 2020",2280000,2280000,4179,5180,"SERGIO BOVEA MARIN","2020-08-16","https://www.contratos.gov.co/consultas/detalleProceso.do?numConstancia=20-4-11020882"]
[213,1042425681,"YESMITH ALEXI GARIZABALO RETAMOSO ","3356-2020","MEDICO DE URGENCIA","03 de agosto de 2020","   31 de Agosto de 2020",3072000,3072000,4180,5181,"SERGIO BOVEA MARIN","2020-08-16","https://www.contratos.gov.co/consultas/detalleProceso.do?numConstancia=20-4-11020884"]
[214,32739126,"YIRA DEL CARMEN PEÑALOZA AREVALO","3357-2020","PERSONAL  LIMPIEZA Y ASEO URGENCIA","03 de agosto de 2020","   31 de Agosto de 2020",1653600,1653600,4181,5182,"JAIME ALVAREZ NORIEGA","2020-08-16","https://www.contratos.gov.co/consultas/detalleProceso.do?numConstancia=20-4-11020905"]
[215,32896400,"YISEL BEATRIZ ARROYO SUAREZ","3358-2020","AUXILIAR DE FACTURACIÓN  URGENCIA","03 de agosto de 2020","   31 de Agosto de 2020",1680000,1680000,4182,5183,"SANDRA SANMARTIN","2020-08-16","https://www.contratos.gov.co/consultas/detalleProceso.do?numConstancia=20-4-11020907"]
[216,55230396,"YORLETH MALENA FLOREZ ABRIL","3359-2020","MEDICO DE URGENCIA","03 de agosto de 2020","   31 de Agosto de 2020",3072000,3072000,4183,5184,"SERGIO BOVEA MARIN","2020-08-16","https://www.contratos.gov.co/consultas/detalleProceso.do?numConstancia=20-4-11020912"]
[217,44155518,"YURLEY FONTALVO RIVALDO ","3360-2020","MEDICO DE URGENCIA","03 de agosto de 2020","   31 de Agosto de 2020",3072000,3072000,4184,5185,"SERGIO BOVEA MARIN","2020-08-16","https://www.contratos.gov.co/consultas/detalleProceso.do?numConstancia=20-4-11020915"]
[218,32865503,"ZULAI DONADO PARODIS ","3361-2020","AUXILIAR DE ENFERMERIA DE PROMOCIÓN Y MANTENIMIENTO DE LA SALUD","03 de agosto de 2020","   31 de Agosto de 2020",1166000,1166000,4185,5186,"SERGIO BOVEA MARIN","2020-08-16","https://www.contratos.gov.co/consultas/detalleProceso.do?numConstancia=20-4-11020919"]
[219,32703436,"VILMA ZUÑIGA GONZALEZ","3362-2020","AUXILIAR DE ODONTOLOGIA","03 de agosto de 2020","   31 de Agosto de 2020",1166000,1166000,4186,5187,"SERGIO BOVEA MARIN","2020-08-16","https://www.contratos.gov.co/consultas/detalleProceso.do?numConstancia=20-4-11020921"]
[220,1129519216,"MILAGRO HERRERA MOJICA","3363-2020","MEDICO DE URGENCIA","03 de agosto de 2020","   31 de Agosto de 2020",3072000,3072000,4187,5188,"SERGIO BOVEA MARIN","2020-08-16","https://www.contratos.gov.co/consultas/detalleProceso.do?numConstancia=20-4-11020924"]
[221,1042419634,"SUANY DEL CRISTO CADRAZCO  IMBETT","3364-2020","MEDICO DE URGENCIA","03 de agosto de 2020","   31 de Agosto de 2020",3072000,3072000,4188,5189,"SERGIO BOVEA MARIN","2020-08-16","https://www.contratos.gov.co/consultas/detalleProceso.do?numConstancia=20-4-11020925"]
[222,1048279224,"MAICOL LAURENS FABREGAS","3365-2020","ORIENTADOR","03 de agosto de 2020","   31 de Agosto de 2020",2000000,2000000,4189,5190,"SERGIO BOVEA MARIN","2020-08-16","https://www.contratos.gov.co/consultas/detalleProceso.do?numConstancia=20-4-11020926"]
[223,8634413,"GIL ANTONIO BERDUGO NOVA","3366-2020","AUXILIAR DE ENFERMERIA URGENCIAS","03 de agosto de 2020","   31 de Agosto de 2020",1653000,{"$f":"+H225*1","v":1653000},4190,5191,"SERGIO BOVEA MARIN","2020-08-16","https://www.contratos.gov.co/consultas/detalleProceso.do?numConstancia=20-4-11020947"]
[224,44154490,"HEIDY LUZ CARRILLO DIAZ","3367-2020","AUXILIAR DE FACTURACION URGENCIA","03 de agosto de 2020","   31 de Agosto de 2020",1680000,1680000,4191,5192,"SANDRA SANMARTIN","2020-08-16","https://www.contratos.gov.co/consultas/detalleProceso.do?numConstancia=20-4-11020948"]
[225,1140855017,"STEPHANY LORRAINE NIEBLES ZULUAGA ","3368-2020","ENFERMERA JEFE DE PROMOCIÓN Y MANTENIMIENTO DE LA SALUD","03 de agosto de 2020","   31 de Agosto de 2020",2300000,2300000,4192,5193,"SERGIO BOVEA MARIN","2020-08-16","https://www.contratos.gov.co/consultas/detalleProceso.do?numConstancia=20-4-11020950"]
[226,1143447904,"STEFFANY BRIGGITTE ALVAREZ LLERENA","3369-2020","RESOLUCION 0273","03 de agosto de 2020","   31 de Agosto de 2020",1653000,1653000,4193,5194,"SERGIO BOVEA MARIN","2020-08-16","https://www.contratos.gov.co/consultas/detalleProceso.do?numConstancia=20-4-11020953"]
[227,22570149,"ELENA BAENA PEÑA","3370-2020","AUXILIAR DE FACTURACION URGENCIA","03 de agosto de 2020","   31 de Agosto de 2020",1680000,1680000,4194,5195,"SANDRA SANMARTIN","2020-08-16","https://www.contratos.gov.co/consultas/detalleProceso.do?numConstancia=20-4-11020955"]
[228,8705578,"FERMIN NAVARRO STEFANELL","3371-2020","MEDICO GINECOLOGO DE RUTA INTEGRAL MATERNO PERINATAL","03 de agosto de 2020","   31 de Agosto de 2020",7500000,7500000,4195,5196,"SERGIO BOVEA MARIN","2020-08-16","https://www.contratos.gov.co/consultas/detalleProceso.do?numConstancia=20-4-11020957"]
[229,72428579,"IVAN ANDRES DOMINGUEZ SAGBINI","3372-2020","MEDICO GINECOLOGO DE RUTA INTEGRAL MATERNO PERINATAL","03 de agosto de 2020","   31 de Agosto de 2020",7500000,7500000,4196,5197,"SERGIO BOVEA MARIN","2020-08-16","https://www.contratos.gov.co/consultas/detalleProceso.do?numConstancia=20-4-11020958"]
[230,44159754,"YANIRE CARLINA CASTRO ESCALANTE","3373-2020","MEDICO GINECOLOGO DE RUTA INTEGRAL MATERNO PERINATAL","03 de agosto de 2020","   31 de Agosto de 2020",7500000,7500000,4197,5198,"SERGIO BOVEA MARIN","2020-08-16","https://www.contratos.gov.co/consultas/detalleProceso.do?numConstancia=20-4-11020959"]
[231,19585247,"GENITO VILLAMIL CONTRERAS","3374-2020","CONDUCTOR DE AMBULANCIA","03 de agosto de 2020","   31 de Agosto de 2020",2160000,2160000,4198,5199,"BETTY PERTUZ ","2020-08-16","https://www.contratos.gov.co/consultas/detalleProceso.do?numConstancia=20-4-11020961"]
[232,1001877015,"JHORGI MISAEL MENESES BERRIO","3375-2020","MEDICO DE URGENCIA ","03 de agosto de 2020","   31 de Agosto de 2020",3072000,3072000,4199,5200,"SERGIO BOVEA MARIN","2020-08-16","https://www.contratos.gov.co/consultas/detalleProceso.do?numConstancia=20-4-11020962"]
[233,32763358,"LOLA SABALZA MARTINEZ","3376-2020","AUXILIAR DE ENFERMERIA URGENCIA","03 de agosto de 2020","   31 de Agosto de 2020",1653000,1653000,4200,5201,"SERGIO BOVEA MARIN","2020-08-16","https://www.contratos.gov.co/consultas/detalleProceso.do?numConstancia=20-4-11020963"]
[234,22565455,"KARIN PAOLA VIZCAINO  SOLANO","3377-2020","MEDICO DE RUTA INTEGRAL MATERNO PERINATAL Y CONSULTA EXTERNA","03 de agosto de 2020","   31 de Agosto de 2020",3604000,3604000,4201,5202,"SERGIO BOVEA MARIN","2020-08-16","https://www.contratos.gov.co/consultas/detalleProceso.do?numConstancia=20-4-11020965"]
[235,72430943,"JOHN HENRY REYES VERGARA ","3378-2020","ORIENTADOR","03 de agosto de 2020","   31 de Agosto de 2020",1524000,1524000,4202,5203,"SERGIO BOVEA MARIN","2020-08-16","https://www.contratos.gov.co/consultas/detalleProceso.do?numConstancia=20-4-11020966"]
[236,1045729651,"KAROLAY PAOLA GARCIA OSPINO","3379-2020-COVID19","MEDICO- EMERGENCIA COVID19","03 de agosto de 2020","   31 de Agosto de 2020",4240000,4240000,4203,5204,"CESAR ARRIETA","2020-08-16","https://www.contratos.gov.co/consultas/detalleProceso.do?numConstancia=20-4-11020967"]
[237,8635888,"JORGE EMILIO MUÑOZ AVILA","3380-2020","ORIENTADOR","03 de agosto de 2020","   31 de Agosto de 2020",1500000,1500000,4204,5205,"CARLOS VISBAL JIMENEZ","2020-08-16","https://www.contratos.gov.co/consultas/detalleProceso.do?numConstancia=20-4-11020968"]
[238,1140845475,"LAURY DEL CARMEN PACHECO SANCHEZ","3381-2020","ODONTOLOGO","03 de agosto de 2020","   31 de Agosto de 2020",{"$f":"1900000*2","v":3800000},3800000,4205,5206,"CARLOS VISBAL JIMENEZ","2020-08-16","https://www.contratos.gov.co/consultas/detalleProceso.do?numConstancia=20-4-11020974"]
[239,8721508,"ALONSO JOSÉ RIQUETT DE LA HOZ","3382-2020","MEDICO DE PROMOCIÓN Y MANTENIMIENTO DE LA SALUD","03 de agosto de 2020","   31 de Agosto de 2020",2120000,2120000,4206,5207,"CARLOS VISBAL JIMENEZ","2020-08-16","https://www.contratos.gov.co/consultas/detalleProceso.do?numConstancia=20-4-11020982"]
[240,1045704276,"ANA MILENA HERRERA ALVIS ","3383-2020-COVID19","ENFERMERA JEFE DE PROMOCIÓN Y MANTENIMIENTO DE LA SALUD- EMERGENCIA COVID19","03 de agosto de 2020","   31 de Agosto de 2020",3810000,3810000,4207,5208,"CARLOS VISBAL JIMENEZ","2020-08-16","https://www.contratos.gov.co/consultas/detalleProceso.do?numConstancia=20-4-11020984"]
[241,26900583,"JANETH JIMENEZ PEÑA","3384-2020","TRABAJADORA SOCIAL ","03 de agosto de 2020","   31 de Agosto de 2020",2500000,2500000,4208,5209,"CARLOS VISBAL JIMENEZ","2020-08-16","https://www.contratos.gov.co/consultas/detalleProceso.do?numConstancia=20-4-11020986"]
[242,1043001061,"JOCELIN PAOLA GOMEZ AGUIRRE ","3385-2020","AUXILIAR DE ENFERMERIA","03 de agosto de 2020","   31 de Agosto de 2020",1166000,1166000,4209,5210,"BETTY PERTUZ ","2020-08-16","https://www.contratos.gov.co/consultas/detalleProceso.do?numConstancia=20-4-11020991"]
[243,72242552,"JUAN CAMILO CASTILLO ARIZA","3386-2020","MEDICO CONSULTA EXTERNA","03 de agosto de 2020","   31 de Agosto de 2020",4240000,4240000,4210,5211,"CARLOS VISBAL JIMENEZ","2020-08-16","https://www.contratos.gov.co/consultas/detalleProceso.do?numConstancia=20-4-11020995"]
[244,1042443708,"JULIETH ANDREA CAMACHO CHACON","3387-2020-COVID19","ENFERMERA JEFE- EMERGENCIA COVID19","03 de agosto de 2020","   31 de Agosto de 2020",3810000,3810000,4211,5212,"CARLOS VISBAL JIMENEZ","2020-08-16","https://www.contratos.gov.co/consultas/detalleProceso.do?numConstancia=20-4-11021000"]
[245,1042422315,"MAYRA ALEJANDRA GARCIA CASTILLO","3388-2020-COVID19","FISIOTERAPEUTA- EMERGENCIA COVID19 ","03 de agosto de 2020","   31 de Agosto de 2020",2850000,2850000,4212,5213,"CARLOS VISBAL JIMENEZ","2020-08-16","https://www.contratos.gov.co/consultas/detalleProceso.do?numConstancia=20-4-11021020"]
[246,22693871,"MIRIAM VILLAREAL DE ALBA","3389-2020","PERSONAL  LIMPIEZA Y ASEO","03 de agosto de 2020","   31 de Agosto de 2020",1215000,1215000,4213,5214,"JAIME ALVAREZ NORIEGA","2020-08-16","https://www.contratos.gov.co/consultas/detalleProceso.do?numConstancia=20-4-11021021"]
[247,32740234,"NIDIA VEGA CORREA","3390-2020","PERSONAL  LIMPIEZA Y ASEO","03 de agosto de 2020","   31 de Agosto de 2020",1215000,1215000,4214,5215,"JAIME ALVAREZ NORIEGA","2020-08-16","https://www.contratos.gov.co/consultas/detalleProceso.do?numConstancia=20-4-11021022"]
[248,1045680952,"WILLIAM RAFAEL DAVIDSON URIETA","3391-2020","MEDICO CONSULTA EXTERNA ","03 de agosto de 2020","   31 de Agosto de 2020",2120000,2120000,4215,5216,"CARLOS VISBAL JIMENEZ","2020-08-16","https://www.contratos.gov.co/consultas/detalleProceso.do?numConstancia=20-4-11021023"]
[249,32769312,"DORIS PADILLA MOLINA ","3392-2020","AUXILIAR DE ODONTOLOGIA","03 de agosto de 2020","   31 de Agosto de 2020",1166000,1166000,4216,5217,"CARLOS VISBAL JIMENEZ","2020-08-16","https://www.contratos.gov.co/consultas/detalleProceso.do?numConstancia=20-4-11021025"]
[250,1001934574,"CARLOS MARIO HERAS CORCHO","3393-2020-COVID19","MEDICO CONSULTA EXTERNA- EMERGENCIA COVID19","03 de agosto de 2020","   31 de Agosto de 2020",5600000,5600000,4217,5218,"CARLOS VISBAL JIMENEZ","2020-08-16","https://www.contratos.gov.co/consultas/detalleProceso.do?numConstancia=20-4-11021030"]
[251,1045700355,"EDUARDO LUIS PAUTH HERNANDEZ","3394-2020-COVID19","MEDICO CONSULTA EXTERNA -EMERGENCIA COVID19","03 de agosto de 2020","   31 de Agosto de 2020",4540000,4540000,4218,5219,"CARLOS VISBAL JIMENEZ","2020-08-16","https://www.contratos.gov.co/consultas/detalleProceso.do?numConstancia=20-4-11021089"]
[252,22647051,"EDELMIRA DUQUE LAMADRID","3395-2020","FISIOTERAPEUTA","03 de agosto de 2020","   31 de Agosto de 2020",1900000,1900000,4219,5220,"CARLOS VISBAL JIMENEZ","2020-08-16","https://www.contratos.gov.co/consultas/detalleProceso.do?numConstancia=20-4-11021094"]
[253,1045674051,"SHIRLY PAOLA GUZMAN GUZMAN ","3396-2020","ODONTOLOGO","03 de agosto de 2020","   31 de Agosto de 2020",1900000,1900000,4220,5221,"VICTOR MIRANDA","2020-08-16","https://www.contratos.gov.co/consultas/detalleProceso.do?numConstancia=20-4-11021100"]
[254,8777621,"ALEXANDER MIGUEL SALAZAR CABALLERO","3397-2020","AUXILIAR FACTURACION","03 de agosto de 2020","   31 de Agosto de 2020",1400000,1400000,4221,5222,"SANDRA SANMARTIN","2020-08-16","https://www.contratos.gov.co/consultas/detalleProceso.do?numConstancia=20-4-11021101"]
[255,32583401,"ELSY LIZETH CHARRIS CONTRERAS","3398-2020","MEDICO CONSULTA EXTERNA ","03 de agosto de 2020","   31 de Agosto de 2020",2120000,2120000,4222,5223,"VICTOR MIRANDA","2020-08-16","https://www.contratos.gov.co/consultas/detalleProceso.do?numConstancia=20-4-11021105"]
[256,22551160,"GISELL MILENA HERRERA ZUÑIGA","3399-2020","MEDICO CONSULTA EXTERNA ","03 de agosto de 2020","   31 de Agosto de 2020",2120000,2120000,4223,5224,"VICTOR MIRANDA","2020-08-16","https://www.contratos.gov.co/consultas/detalleProceso.do?numConstancia=20-4-11021108"]
[257,1143449271,"HELEN YIRE MALDONADO MIRANDA","3400-2020","AUXILIAR DE ODONTOLOGIA","03 de agosto de 2020","   31 de Agosto de 2020",1166000,1166000,4224,5225,"VICTOR MIRANDA","2020-08-16","https://www.contratos.gov.co/consultas/detalleProceso.do?numConstancia=20-4-11021110"]
[258,1042444832,"JHONNATAN ALFONSO DE LA HOZ BARRIOS","3401-2020","MEDICO CONSULTA EXTERNA ","03 de agosto de 2020","   31 de Agosto de 2020",4240000,4240000,4225,5226,"VICTOR MIRANDA","2020-08-16","https://www.contratos.gov.co/consultas/detalleProceso.do?numConstancia=20-4-11021118"]
[{"$f":"+A260+1","v":259},8704073,"JOSE ALFREDO JIMENEZ CASTRO","3402-2020","ORIENTADOR","03 de agosto de 2020","   31 de Agosto de 2020",1270000,1270000,4226,5227,"VICTOR MIRANDA","2020-08-16","https://www.contratos.gov.co/consultas/detalleProceso.do?numConstancia=20-4-11021121"]
[260,39013975,"MARTHA MARMOL ARIAS","3403-2020","PERSONAL  LIMPIEZA Y ASEO","03 de agosto de 2020","   31 de Agosto de 2020",1215000,1215000,4227,5228,"JAIME ALVAREZ NORIEGA","2020-08-16","https://www.contratos.gov.co/consultas/detalleProceso.do?numConstancia=20-4-11021141"]
[261,1047228049,"MARIA FERNANDA DE LA HOZ DE MOYA","3404-2020","ENFERMERA JEFE CONSULTA EXTERNA ","03 de agosto de 2020","   31 de Agosto de 2020",2500000,2500000,4228,5229,"VICTOR MIRANDA","2020-08-16","https://www.contratos.gov.co/consultas/detalleProceso.do?numConstancia=20-4-11021143"]
[262,32703101,"JANETH DEL CARMEN GUZMAN CANTILLO","3405-2020","LIDER DE  FACTURACION  EN CENTROS DE SALUD","03 de agosto de 2020","   31 de Agosto de 2020",1600000,1600000,4229,5230,"SANDRA SANMARTIN","2020-08-16","https://www.contratos.gov.co/consultas/detalleProceso.do?numConstancia=20-4-11021144"]
[263,1045670289,"HOLMAN ALEXANDER AVILA FERNANDEZ","3406-2020","AUXILIAR  FACTURACION ","03 de agosto de 2020","   31 de Agosto de 2020",3000000,3000000,4230,5231,"SANDRA SANMARTIN","2020-08-16","https://www.contratos.gov.co/consultas/detalleProceso.do?numConstancia=20-4-11021147"]
[264,1140895535,"ADRIANA PAOLA GONZALEZ ROMERO ","3407-2020","ENFERMERA JEFE CONSULTA EXTERNA ","03 de agosto de 2020","   31 de Agosto de 2020",2120000,2120000,4231,5232,"AIX PALACIO","2020-08-16","https://www.contratos.gov.co/consultas/detalleProceso.do?numConstancia=20-4-11021149"]
[265,1139614174,"ALONSO MATEO LLANES ARIZA","3408-2020","MEDICO CONSULTA EXTERNA ","03 de agosto de 2020","   31 de Agosto de 2020",2120000,2120000,4232,5233,"AIX PALACIO","2020-08-16","https://www.contratos.gov.co/consultas/detalleProceso.do?numConstancia=20-4-11021151"]
[266,7407679,"AMEFI PACHECO CERA","3409-2020","ORIENTADOR","03 de agosto de 2020","   31 de Agosto de 2020",1270000,1270000,4233,5234,"AIX PALACIO","2020-08-16","https://www.contratos.gov.co/consultas/detalleProceso.do?numConstancia=20-4-11021154"]
[267,60311278,"EVA FLOREZ PARRA ","3410-2020","MEDICO CONSULTA EXTERNA ","03 de agosto de 2020","   31 de Agosto de 2020",2500000,2500000,4234,5235,"AIX PALACIO","2020-08-16","https://www.contratos.gov.co/consultas/detalleProceso.do?numConstancia=20-4-11021156"]
[268,32608240,"MARIA DE JESUS VELASQUEZ CAPERA","3411-2020","PERSONAL  LIMPIEZA Y ASEO","03 de agosto de 2020","   31 de Agosto de 2020",1215000,1215000,4235,5236,"JAIME ALVAREZ NORIEGA","2020-08-16","https://www.contratos.gov.co/consultas/detalleProceso.do?numConstancia=20-4-11021158"]
[269,32828506,"NINOSKA CELESTE BARCELÓ OVIEDO","3412-2020","PSICOLOGA SIAU","03 de agosto de 2020","   31 de Agosto de 2020",2200000,2200000,4236,5237,"AIX PALACIO","2020-08-16","https://www.contratos.gov.co/consultas/detalleProceso.do?numConstancia=20-4-11021161"]
[270,44152277,"OLGA GARIZABALO PERTUZ","3413-2020","AUXILIAR DE ODONTOLOGIA","03 de agosto de 2020","   31 de Agosto de 2020",1166000,1166000,4237,5238,"AIX PALACIO","2020-08-16","https://www.contratos.gov.co/consultas/detalleProceso.do?numConstancia=20-4-11021162"]
[271,32878246,"SHIRLY ISABEL RECIO COLLANTE","3414-2020","AUXILIAR DE ENFERMERIA CONSULTA EXTERNA ","03 de agosto de 2020","   31 de Agosto de 2020",1166000,1166000,4238,5239,"AIX PALACIO","2020-08-16","https://www.contratos.gov.co/consultas/detalleProceso.do?numConstancia=20-4-11021164"]
[272,32866918,"ZULMA LEONOR MARTINEZ IGLESIAS","3415-2020","ODONTOLOGO","03 de agosto de 2020","   31 de Agosto de 2020",1900000,1900000,4239,5240,"AIX PALACIO","2020-08-16","https://www.contratos.gov.co/consultas/detalleProceso.do?numConstancia=20-4-11021167"]
[273,22465848,"ADRIANA OROZCO CANTILLO","3416-2020","PERSONAL  LIMPIEZA Y ASEO","03 de agosto de 2020","   31 de Agosto de 2020",1215000,1215000,4240,5241,"JAIME ALVAREZ NORIEGA","2020-08-16","https://www.contratos.gov.co/consultas/detalleProceso.do?numConstancia=20-4-11021169"]
[274,22524112,"DIANA SANDOVAL MANGA","3417-2020","ENFERMERA JEFE PROGRAMAS ESPECIALES","03 de agosto de 2020","   31 de Agosto de 2020",1900000,1900000,4241,5242,"LUIS CARLOS DE LEON BERNIER","2020-08-16","https://www.contratos.gov.co/consultas/detalleProceso.do?numConstancia=20-4-11021177"]
[275,1045747916,"LEIDY DIANA PAEZ OROZCO","3418-2020","ENFERMERA JEFE  CONSULTA EXTERNA ","03 de agosto de 2020","   31 de Agosto de 2020",1900000,1900000,4242,5243,"LUIS CARLOS DE LEON BERNIER","2020-08-16","https://www.contratos.gov.co/consultas/detalleProceso.do?numConstancia=20-4-11021197"]
[276,1143450666,"YERLIS PAOLA FONTALVO LAMBRAÑO","3419-2020","AUXILIAR DE FACTURACION","03 de agosto de 2020","   31 de Agosto de 2020",1400000,1400000,4243,5244,"SANDRA SANMARTIN","2020-08-16","https://www.contratos.gov.co/consultas/detalleProceso.do?numConstancia=20-4-11021200"]
[277,1143266403,"YUNERIZ PEREZ DE LA HOZ","3420-2020","AUXILIAR DE ENFERMERIA","03 de agosto de 2020","   31 de Agosto de 2020",1166000,1166000,4244,5245,"LUIS CARLOS DE LEON BERNIER","2020-08-16","https://www.contratos.gov.co/consultas/detalleProceso.do?numConstancia=20-4-11021202"]
[278,8667553,"JUAN EMILIO SANDOVAL BOLIVAR ","3421-2020","ODONTOLOGO","03 de agosto de 2020","   31 de Agosto de 2020",1900000,1900000,4245,5246,"LUIS GRANADOS GOMEZ","2020-08-16","https://www.contratos.gov.co/consultas/detalleProceso.do?numConstancia=20-4-11021204"]
[279,32869290,"ARGENEDITH YEPEZ ESCALANTE ","3422-2020","MEDICO DE PROMOCIÓN Y MANTENIMIENTO DE LA SALUD","03 de agosto de 2020","   31 de Agosto de 2020",2120000,2120000,4246,5247,"LUIS GRANADOS GOMEZ","2020-08-16","https://www.contratos.gov.co/consultas/detalleProceso.do?numConstancia=20-4-11021205"]
[280,1001875491,"CINDY MILENA VARELA ARIAS ","3423-2020","PERSONAL  LIMPIEZA Y ASEO","03 de agosto de 2020","   31 de Agosto de 2020",1215000,1215000,4247,5248,"JAIME ALVAREZ NORIEGA","2020-08-16","https://www.contratos.gov.co/consultas/detalleProceso.do?numConstancia=20-4-11021207"]
[281,32896364,"DAILYS CAROLINA PEREZ GUETTE","3424-2020","ODONTOLOGO","03 de agosto de 2020","   31 de Agosto de 2020",1900000,1900000,4248,5249,"LUIS GRANADOS GOMEZ","2020-08-16","https://www.contratos.gov.co/consultas/detalleProceso.do?numConstancia=20-4-11021208"]
[282,22585192,"DIANA LUZ ACOSTA DEMARES","3425-2020","AUXILIAR ADMINISTRATIVO COORDINACION MEDICA","03 de agosto de 2020","   31 de Agosto de 2020",1900000,1900000,4249,5250,"LUIS GRANADOS GOMEZ","2020-08-16","https://www.contratos.gov.co/consultas/detalleProceso.do?numConstancia=20-4-11021211"]
[283,32819600,"DOLIS PEDROZO TORRES","3426-2020","PERSONAL  LIMPIEZA Y ASEO","03 de agosto de 2020","   31 de Agosto de 2020",1215000,1215000,4250,5251,"JAIME ALVAREZ NORIEGA","2020-08-16","https://www.contratos.gov.co/consultas/detalleProceso.do?numConstancia=20-4-11021216"]
[284,1074712390,"EVELIN CRISTINA ZULETA SANCHEZ ","3427-2020","ENFERMERA JEFE DE PROMOCIÓN Y MANTENIMIENTO DE LA SALUD","03 de agosto de 2020","   31 de Agosto de 2020",2300000,2300000,4251,5252,"LUIS GRANADOS GOMEZ","2020-08-16","https://www.contratos.gov.co/consultas/detalleProceso.do?numConstancia=20-4-11021217"]
[285,8507198,"FRANCISCO PEÑALOZA PEREZ","3428-2020","MEDICO CONSULTA EXTERNA ","03 de agosto de 2020","   31 de Agosto de 2020",2120000,2120000,4252,5253,"LUIS GRANADOS GOMEZ","2020-08-16","https://www.contratos.gov.co/consultas/detalleProceso.do?numConstancia=20-4-11021219"]
[286,1042448135,"GISELLA CAMILA ACOSTA SEGURA","3429-2020","AUXILIAR SERVICIOS AMIGABLES ","03 de agosto de 2020","   31 de Agosto de 2020",1500000,1500000,4253,5254,"NILSA ARIZA MARQUEZ","2020-08-16","https://www.contratos.gov.co/consultas/detalleProceso.do?numConstancia=20-4-11021220"]
[287,8675558,"JESUS ALFREDO MALDONADO MEJIA ","3430-2020","ORIENTADOR","03 de agosto de 2020","   31 de Agosto de 2020",1270000,{"$f":"+H289*1","v":1270000},4254,5255,"LUIS GRANADOS GOMEZ","2020-08-16","https://www.contratos.gov.co/consultas/detalleProceso.do?numConstancia=20-4-11021223"]
[288,1042442139,"JOSHIKY ESTHER AHUMADA PACHECO","3431-2020","ENFERMERA JEFE DE PROMOCIÓN Y MANTENIMIENTO DE LA SALUD","03 de agosto de 2020","   31 de Agosto de 2020",2300000,2300000,4255,5256,"LUIS GRANADOS GOMEZ","2020-08-16","https://www.contratos.gov.co/consultas/detalleProceso.do?numConstancia=20-4-11021224"]
[289,32646304,"LILIAN ESTHER ANTEQUERA MANTILLA","3432-2020","AUXILIAR DE ENFERMERIA","03 de agosto de 2020","   31 de Agosto de 2020",1166000,1166000,4256,5257,"LUIS GRANADOS GOMEZ","2020-08-16","https://www.contratos.gov.co/consultas/detalleProceso.do?numConstancia=20-4-11021229"]
[290,72142837,"MANUEL GUSTAVO PABA GUETE","3433-2020","PSICOLOGO EN PROMOCION Y PREVENCION","03 de agosto de 2020","   31 de Agosto de 2020",3000000,3000000,4257,5258,"NILSA ARIZA MARQUEZ","2020-08-16","https://www.contratos.gov.co/consultas/detalleProceso.do?numConstancia=20-4-11021232"]
[291,1140883085,"MARIA FATIMA HERNANDEZ ORTIZ","3434-2020","AUXILIAR SERVICIOS AMIGABLES ","03 de agosto de 2020","   31 de Agosto de 2020",1270000,1270000,4258,5259,"NILSA ARIZA MARQUEZ","2020-08-16","https://www.contratos.gov.co/consultas/detalleProceso.do?numConstancia=20-4-11021233"]
[292,32695840,"MARIA HERRERA CUADROS","3435-2020","HIGIENISTA ORAL SERVICIOS AMIGABLES","03 de agosto de 2020","   31 de Agosto de 2020",2332000,2332000,4259,5260,"LUIS GRANADOS GOMEZ","2020-08-16","https://www.contratos.gov.co/consultas/detalleProceso.do?numConstancia=20-4-11021236"]
[293,32819834,"MARIBEL NIEBLES ESCORCIA","3436-2020","AUXILIAR DE ODONTOLOGIA","03 de agosto de 2020","   31 de Agosto de 2020",1166000,1166000,4260,5261,"LUIS GRANADOS GOMEZ","2020-08-16","https://www.contratos.gov.co/consultas/detalleProceso.do?numConstancia=20-4-11021239"]
[294,1042418352,"MERJORIE CABEZA CASTILLO","3437-2020","AUXILIAR DE ENFERMERIA DE PROMOCIÓN Y MANTENIMIENTO DE LA SALUD","03 de agosto de 2020","   31 de Agosto de 2020",1166000,1166000,4261,5262,"LUIS GRANADOS GOMEZ","2020-08-17","https://www.contratos.gov.co/consultas/detalleProceso.do?numConstancia=20-4-11021253"]
[295,22532699,"MILENA SILVA BARRAZA","3438-2020","AUXILIAR DE FACTURACION","03 de agosto de 2020","   31 de Agosto de 2020",1400000,1400000,4262,5263,"SANDRA SANMARTIN","2020-08-17","https://www.contratos.gov.co/consultas/detalleProceso.do?numConstancia=20-4-11021255"]
[296,32822947,"NOHORA ISABEL POLO ORTIZ","3439-2020","TRABAJADORA SOCIAL ","03 de agosto de 2020","   31 de Agosto de 2020",2200000,2200000,4263,5264,"LUIS GRANADOS GOMEZ","2020-08-17","https://www.contratos.gov.co/consultas/detalleProceso.do?numConstancia=20-4-11021257"]
[297,8770590,"RAFAEL MOVILLA FLOREZ ","3440-2020","LIDER DE  FACTURACION  EN CENTROS DE SALUD","03 de agosto de 2020","   31 de Agosto de 2020",1600000,1600000,4264,5265,"SANDRA SANMARTIN","2020-08-17","https://www.contratos.gov.co/consultas/detalleProceso.do?numConstancia=20-4-11021259"]
[298,56087561,"YAMILZA ESTHER MURGAS ORTIZ","3441-2020","AUXILIAR DE ENFERMERIA","03 de agosto de 2020","   31 de Agosto de 2020",1166000,1166000,4265,5266,"LUIS GRANADOS GOMEZ","2020-08-17","https://www.contratos.gov.co/consultas/detalleProceso.do?numConstancia=20-4-11021261"]
[299,1042440818,"YISELL PAOLA SANDOVAL BARRETO","3442-2020","MEDICO CONSULTA EXTERNA ","03 de agosto de 2020","   31 de Agosto de 2020",2120000,2120000,4266,5267,"LUIS GRANADOS GOMEZ","2020-08-17","https://www.contratos.gov.co/consultas/detalleProceso.do?numConstancia=20-4-11021264"]
[300,32623541,"MAGALYS ESPITIA RAMOS","3443-2020","PERSONAL  LIMPIEZA Y ASEO URGENCIA","03 de agosto de 2020","   31 de Agosto de 2020",1653600,1653600,4267,5268,"JAIME ALVAREZ NORIEGA","2020-08-17","https://www.contratos.gov.co/consultas/detalleProceso.do?numConstancia=20-4-11021265"]
[301,1140853943,"LEIDY VANESSA BUSTILLO FORMARIS","3444-2020","ODONTOLOGO","03 de agosto de 2020","   31 de Agosto de 2020",1900000,1900000,4268,5269,"DIANA MARTINEZ PACHECO","2020-08-17","https://www.contratos.gov.co/consultas/detalleProceso.do?numConstancia=20-4-11021268"]
[302,1047338042,"AMINTA PARDO GUZMAN","3445-2020","AUXILIAR DE ENFERMERIA CONSULTA EXTERNA  ","03 de agosto de 2020","   31 de Agosto de 2020",1166000,1166000,4269,5270,"DIANA MARTINEZ PACHECO","2020-08-17","https://www.contratos.gov.co/consultas/detalleProceso.do?numConstancia=20-4-11021269"]
[303,1045688469,"AMY MOVILLA COMAS","3446-2020","ENFERMERA JEFE CONSULTA EXTERNA  Y PROGRAMA DE  RIESGO CARDIOVASCULAR","03 de agosto de 2020","   31 de Agosto de 2020",2300000,2300000,4270,5271,"DIANA MARTINEZ PACHECO","2020-08-17","https://www.contratos.gov.co/consultas/detalleProceso.do?numConstancia=20-4-11021272"]
[304,32866058,"CLAUDIA CABARCAS ARROYO","3447-2020","TRABAJADORA SOCIAL","03 de agosto de 2020","   31 de Agosto de 2020",2200000,2200000,4271,5272,"DIANA MARTINEZ PACHECO","2020-08-17","https://www.contratos.gov.co/consultas/detalleProceso.do?numConstancia=20-4-11021278"]
[305,1047358567,"JENNIFER PAULA FRUTO MALDONADO ","3448-2020","MEDICO CONSULTA EXTERNA ","03 de agosto de 2020","   31 de Agosto de 2020",2120000,2120000,4272,5273,"DIANA MARTINEZ PACHECO","2020-08-17","https://www.contratos.gov.co/consultas/detalleProceso.do?numConstancia=20-4-11021280"]
[306,8754502,"JORGE DE LA HOZ DE LA HOZ","3449-2020","ORIENTADOR","03 de agosto de 2020","   31 de Agosto de 2020",1270000,1270000,4273,5274,"DIANA MARTINEZ PACHECO","2020-08-17","https://www.contratos.gov.co/consultas/detalleProceso.do?numConstancia=20-4-11021283"]
[307,55220183,"KETTY PILAR INSIGNARES MATOS ","3450-2020","PSICOLOGA","03 de agosto de 2020","   31 de Agosto de 2020",2800000,2800000,4274,5275,"DIANA MARTINEZ PACHECO","2020-08-17","https://www.contratos.gov.co/consultas/detalleProceso.do?numConstancia=20-4-11021285"]
[308,32796648,"LILIANA OROZCO ROJAS ","3451-2020","ODONTOLOGO","03 de agosto de 2020","   31 de Agosto de 2020",1900000,1900000,4275,5276,"DIANA MARTINEZ PACHECO","2020-08-17","https://www.contratos.gov.co/consultas/detalleProceso.do?numConstancia=20-4-11021286"]
[309,22738424,"LINA MARGARITA TORO GARCIA","3452-2020","MEDICO PROGRAMA CARDIOVASCULAR","03 de agosto de 2020","   31 de Agosto de 2020",4600000,4600000,4276,5277,"DIANA MARTINEZ PACHECO","2020-08-17","https://www.contratos.gov.co/consultas/detalleProceso.do?numConstancia=20-4-11021287"]
[310,32666054,"LUCY CHING ANAYA ","3453-2020","MEDICO CONSULTA EXTERNA ","03 de agosto de 2020","   31 de Agosto de 2020",2120000,2120000,4277,5278,"DIANA MARTINEZ PACHECO","2020-08-17","https://www.contratos.gov.co/consultas/detalleProceso.do?numConstancia=20-4-11021289"]
[311,22444561,"LUZ MARINA DONADO BARRIOS ","3454-2020","LIDER DE  FACTURACION  EN CENTROS DE SALUD","03 de agosto de 2020","   31 de Agosto de 2020",1600000,1600000,4278,5279,"SANDRA SANMARTIN","2020-08-17","https://www.contratos.gov.co/consultas/detalleProceso.do?numConstancia=20-4-11021290"]
[312,22694593,"MARLENE JUDITH GARIZABALO PERTUZ","3455-2020","PERSONAL  LIMPIEZA Y ASEO","03 de agosto de 2020","   31 de Agosto de 2020",1215000,1215000,4279,5280,"JAIME ALVAREZ NORIEGA","2020-08-17","https://www.contratos.gov.co/consultas/detalleProceso.do?numConstancia=20-4-11021292"]
[313,32896837,"MARYULIS PATRICIA CRUZ JIMENEZ","3456-2020","ENFERMERA JEFE DE PROMOCIÓN Y MANTENIMIENTO DE LA SALUD","03 de agosto de 2020","   31 de Agosto de 2020",2300000,2300000,4280,5281,"DIANA MARTINEZ PACHECO","2020-08-17","https://www.contratos.gov.co/consultas/detalleProceso.do?numConstancia=20-4-11021293"]
[314,55307582,"PAOLA VALENCIA GUERRERO","3457-2020","MEDICO PROGRAMA CARDIOVASCULAR","03 de agosto de 2020","   31 de Agosto de 2020",2300000,2300000,4281,5282,"DIANA MARTINEZ PACHECO","2020-08-17","https://www.contratos.gov.co/consultas/detalleProceso.do?numConstancia=20-4-11021295"]
[315,22692801,"SUNILDA ESTHER SAURIT ESCORCIA","3458-2020","AUXILIAR DE ENFERMERIA","03 de agosto de 2020","   31 de Agosto de 2020",1166000,1166000,4282,5283,"DIANA MARTINEZ PACHECO","2020-08-17","https://www.contratos.gov.co/consultas/detalleProceso.do?numConstancia=20-4-11021296"]
[316,1007908949,"VERONICA POLET TODARO PEDROZO","3459-2020","MEDICO CONSULTA EXTERNA /APOYO PROGRAMA CARDIOVASCULAR ","03 de agosto de 2020","   31 de Agosto de 2020",2300000,2300000,4283,5284,"DIANA MARTINEZ PACHECO","2020-08-17","https://www.contratos.gov.co/consultas/detalleProceso.do?numConstancia=20-4-11021297"]
[317,32876060,"YAKELIN BOLAÑO MIRANDA","3460-2020","AUXILIAR DE ODONTOLOGIA","03 de agosto de 2020","   31 de Agosto de 2020",1166000,1166000,4284,5285,"DIANA MARTINEZ PACHECO","2020-08-17","https://www.contratos.gov.co/consultas/detalleProceso.do?numConstancia=20-4-11021298"]
[318,26694748,"MARTA LIGIA BARRANCO MEZA ","3461-2020","PERSONAL  LIMPIEZA Y ASEO","03 de agosto de 2020","   31 de Agosto de 2020",1215000,1215000,4285,5286,"JAIME ALVAREZ NORIEGA","2020-08-17","https://www.contratos.gov.co/consultas/detalleProceso.do?numConstancia=20-4-11021543"]
[319,1143138226,"CATTERINNE ESTEFANY ESTRADA CARDENAS","3462-2020","AUXILIAR DE FACTURACION ","03 de agosto de 2020","   31 de Agosto de 2020",1400000,1400000,4286,5287,"SANDRA SANMARTIN","2020-08-17","https://www.contratos.gov.co/consultas/detalleProceso.do?numConstancia=20-4-11021553"]
[320,1042452768,"KATHERYN PAOLA BLANCO VARGAS","3463-2020","ENFERMERIA JEFE  MATENIMIENTO  DE LA SALUD ","03 de agosto de 2020","   31 de Agosto de 2020",2300000,2300000,4287,5288,"DIANA MARTINEZ PACHECO","2020-08-17","https://www.contratos.gov.co/consultas/detalleProceso.do?numConstancia=20-4-11021557"]
[321,1042447104,"IVOR ANDRES SANJUAN PEREZ","3464-2020","ORIENTADOR","03 de agosto de 2020","   31 de Agosto de 2020",1600000,1600000,4288,5289,"YARELIS GUERRA CORREA","2020-08-17","https://www.contratos.gov.co/consultas/detalleProceso.do?numConstancia=20-4-11021562"]
[322,32814077,"JUDITH TORRES CASTILLO","3465-2020","LIDER DE  FACTURACION  EN CENTROS DE SALUD","03 de agosto de 2020","   31 de Agosto de 2020",1600000,1600000,4289,5290,"SANDRA SANMARTIN","2020-08-17","https://www.contratos.gov.co/consultas/detalleProceso.do?numConstancia=20-4-11021564"]
[{"$f":"+A324+1","v":323},1045706259,"ANDREA CAROLINA HERRERA ORTEGA","3466-2020","MEDICO CONSULTA EXTERNA ","03 de agosto de 2020","   31 de Agosto de 2020",2120000,2120000,4290,5291,"YARELIS GUERRA CORREA","2020-08-17","https://www.contratos.gov.co/consultas/detalleProceso.do?numConstancia=20-4-11021570"]
[324,7938572,"BRAYNERD ALVAREZ JIMENEZ ","3467-2020","MEDICO CONSULTA EXTERNA  Y CARDIOVASCULAR","03 de agosto de 2020","   31 de Agosto de 2020",4600000,4600000,4291,5292,"YARELIS GUERRA CORREA","2020-08-17","https://www.contratos.gov.co/consultas/detalleProceso.do?numConstancia=20-4-11021577"]
[325,1046873154,"CARLOS AUGUSTO ANGULO BANDERA","3468-2020","ORIENTADOR","03 de agosto de 2020","   31 de Agosto de 2020",1700000,1700000,4292,5293,"YARELIS GUERRA CORREA","2020-08-17","https://www.contratos.gov.co/consultas/detalleProceso.do?numConstancia=20-4-11021580"]
[326,22732766,"ESMIRIS MARIA JIMENEZ GOMEZ","3469-2020","PERSONAL  LIMPIEZA Y ASEO","03 de agosto de 2020","   31 de Agosto de 2020",1215000,1215000,4293,5294,"JAIME ALVAREZ NORIEGA","2020-08-17","https://www.contratos.gov.co/consultas/detalleProceso.do?numConstancia=20-4-11021583"]
[327,44159527,"FLORINDA DE LA HOZ PACHECO ","3470-2020","ENFERMERA JEFE DE PROMOCIÓN Y MANTENIMIENTO DE LA SALUD","03 de agosto de 2020","   31 de Agosto de 2020",2300000,2300000,4294,5295,"YARELIS GUERRA CORREA","2020-08-17","https://www.contratos.gov.co/consultas/detalleProceso.do?numConstancia=20-4-11021586"]
[328,24341220,"GLADYS OTALVARO BOTERO","3471-2020","AUXILIAR FACTURACION ","03 de agosto de 2020","   31 de Agosto de 2020",1400000,1400000,4295,5296,"SANDRA SANMARTIN","2020-08-17","https://www.contratos.gov.co/consultas/detalleProceso.do?numConstancia=20-4-11021589"]
[329,22739758,"LAURA MELENDEZ SALAZAR","3472-2020","ODONTOLOGO","03 de agosto de 2020","   31 de Agosto de 2020",1900000,1900000,4296,5297,"YARELIS GUERRA CORREA","2020-08-17","https://www.contratos.gov.co/consultas/detalleProceso.do?numConstancia=20-4-11021594"]
[330,32703976,"MARI ENITH PUELLO BELTRAN","3473-2020","AUXILIAR DE ENFERMERIA CONSULTA EXTERNA ","03 de agosto de 2020","   31 de Agosto de 2020",1166000,1166000,4297,5298,"BETTY PERTUZ ","2020-08-17","https://www.contratos.gov.co/consultas/detalleProceso.do?numConstancia=20-4-11021597"]
[331,26762874,"MARYURIS ALTAHONA  MORENO ","3474-2020","MEDICO DE RUTA INTEGRAL MATERNO PERINATAL ","03 de agosto de 2020","   31 de Agosto de 2020",2544000,2544000,4298,5299,"YARELIS GUERRA CORREA","2020-08-17","https://www.contratos.gov.co/consultas/detalleProceso.do?numConstancia=20-4-11021602"]
[332,32729889,"MERLY ISABEL BARRAZA TOLEDO","3475-2020","AUXILIAR DE ENFERMERIA CONSULTA EXTERNA ","03 de agosto de 2020","   31 de Agosto de 2020",1166000,1166000,4299,5300,"YARELIS GUERRA CORREA","2020-08-17","https://www.contratos.gov.co/consultas/detalleProceso.do?numConstancia=20-4-11021607"]
[333,26910232,"NELCY ALMARALES AYALA","3476-2020","TRABAJADORA SOCIAL ","03 de agosto de 2020","   31 de Agosto de 2020",2200000,2200000,4300,5301,"YARELIS GUERRA CORREA","2020-08-17","https://www.contratos.gov.co/consultas/detalleProceso.do?numConstancia=20-4-11021609"]
[334,32664177,"ROSIRIS MONTES REDONDO","3477-2020","AUXILIAR DE ODONTOLOGIA","03 de agosto de 2020","   31 de Agosto de 2020",1166000,1166000,4301,5302,"YARELIS GUERRA CORREA","2020-08-17","https://www.contratos.gov.co/consultas/detalleProceso.do?numConstancia=20-4-11021610"]
[335,1143456204,"SANDRA MARCELA OVIEDO ROCA","3478-2020","ENFERMERA JEFE ","03 de agosto de 2020","   31 de Agosto de 2020",2300000,2300000,4302,5303,"YARELIS GUERRA CORREA","2020-08-17","https://www.contratos.gov.co/consultas/detalleProceso.do?numConstancia=20-4-11021614"]
[336,1042441044,"SASKIA STEFANIA SOTOMAYOR SOLANO","3479-2020","PERSONAL  LIMPIEZA Y ASEO","03 de agosto de 2020","   31 de Agosto de 2020",1270000,1270000,4303,5304,"JAIME ALVAREZ NORIEGA","2020-08-17","https://www.contratos.gov.co/consultas/detalleProceso.do?numConstancia=20-4-11021615"]
[337,22532041,"SORAYA  MARIA BACA RODRIGUEZ","3480-2020","PSICOLOGA","03 de agosto de 2020","   15 de Agosto de 2020",{"$f":"2800000/30*15","v":1400000},1400000,4304,5305,"YARELIS GUERRA CORREA","2020-08-17","https://www.contratos.gov.co/consultas/detalleProceso.do?numConstancia=20-4-11021619"]
[338,8771123,"TEDDY VARGAS MONTERO","3481-2020","ODONTOLOGO","03 de agosto de 2020","   31 de Agosto de 2020",1900000,1900000,4305,5306,"YARELIS GUERRA CORREA","2020-08-17","https://www.contratos.gov.co/consultas/detalleProceso.do?numConstancia=20-4-11021622"]
[339,72429429,"YAIR BARRAZA CERVANTES ","3482-2020","MEDICO PROGRAMA CARDIOVASCULAR","03 de agosto de 2020","   31 de Agosto de 2020",2300000,2300000,4306,5307,"YARELIS GUERRA CORREA","2020-08-17","https://www.contratos.gov.co/consultas/detalleProceso.do?numConstancia=20-4-11021624"]
[340,8530634,"RONALD  ENRIQUE ARENAS  MEYER ","3483-2020","CONDUCTOR DE AMBULANCIA","03 de agosto de 2020","   31 de Agosto de 2020",2160000,2160000,4307,5308,"BETTY PERTUZ ","2020-08-17","https://www.contratos.gov.co/consultas/detalleProceso.do?numConstancia=20-4-11021626"]
[341,1143133250,"LUIS EDUARDO NIEBLES SARMIENTO ","3484-2020","AUXILIAR DE FACTURACION URGENCIA","03 de agosto de 2020","   31 de Agosto de 2020",1680000,1680000,4308,5309,"SANDRA SANMARTIN","2020-08-17","https://www.contratos.gov.co/consultas/detalleProceso.do?numConstancia=20-4-11021628"]
[342,22646602,"MARTHA CECILIA PICO OROZCO","3485-2020","AUXILIAR DE AUTORIZACIONES ","03 de agosto de 2020","   31 de Agosto de 2020",1653600,1653600,4309,5310,"BETTY PERTUZ ","2020-08-17","https://www.contratos.gov.co/entidades/InsertarProcesoRegEspConDire.do"]
[343,72238499,"CARLOS ANTONIO MATTOS MIRANDA","3486-2020","REFERENCIA Y CONTRAREFERENCIA","03 de agosto de 2020","   31 de Agosto de 2020",1776000,1776000,4310,5311,"WILFRAN JIMENEZ DE LA PEÑA","2020-08-17","https://www.contratos.gov.co/consultas/detalleProceso.do?numConstancia=20-4-11021633"]
[344,8505956,"ALBERTO NAVARRO MORALES","3487-2020","AUXILIAR DE FACTURACION URGENCIA","03 de agosto de 2020","   31 de Agosto de 2020",1680000,1680000,4311,5312,"SANDRA SANMARTIN","2020-08-17","https://www.contratos.gov.co/consultas/detalleProceso.do?numConstancia=20-4-11021634"]
[345,1045716759,"ALFREDO ANGULO JULIAO","3488-2020","AUXILIAR DE FACTURACION URGENCIA","03 de agosto de 2020","   31 de Agosto de 2020",1680000,1680000,4312,5313,"SANDRA SANMARTIN","2020-08-17","https://www.contratos.gov.co/consultas/detalleProceso.do?numConstancia=20-4-11021638"]
[346,32780077,"BELKIS  BOSSIO ESCORCIA","3489-2020","MEDICO DE URGENCIA","03 de agosto de 2020","   31 de Agosto de 2020",3072000,3072000,4313,5314,"WILFRAN JIMENEZ DE LA PEÑA","2020-08-17","https://www.contratos.gov.co/consultas/detalleProceso.do?numConstancia=20-4-11021640"]
[347,32736237,"BETTY ROMERO RODRIGUEZ ","3490-2020","PERSONAL  LIMPIEZA Y ASEO URGENCIA","03 de agosto de 2020","   31 de Agosto de 2020",1653600,1653600,4314,5315,"JAIME ALVAREZ NORIEGA","2020-08-17","https://www.contratos.gov.co/consultas/detalleProceso.do?numConstancia=20-4-11021657"]
[348,1042446319,"BRUNYS DEL CARMEN RAMIREZ MUÑOZ","3491-2020","AUXILIAR  PROMOTORA EN SALUD","03 de agosto de 2020","   31 de Agosto de 2020",1458000,1458000,4315,5316,"WILFRAN JIMENEZ DE LA PEÑA","2020-08-17","https://www.contratos.gov.co/consultas/detalleProceso.do?numConstancia=20-4-11021663"]
[349,32618430,"CARMEN ROBLES DE LASCARRO","3492-2020","PERSONAL  LIMPIEZA Y ASEO URGENCIA","03 de agosto de 2020","   31 de Agosto de 2020",1653600,1653600,4316,5317,"JAIME ALVAREZ NORIEGA","2020-08-17","https://www.contratos.gov.co/consultas/detalleProceso.do?numConstancia=20-4-11021668"]
[350,1042418998,"CLAUDIA AREVALO CERVANTES","3493-2020","ENFERMERA JEFE DE PROMOCIÓN Y MANTENIMIENTO DE LA SALUD","03 de agosto de 2020","   31 de Agosto de 2020",2300000,2300000,4317,5318,"WILFRAN JIMENEZ DE LA PEÑA","2020-08-17","https://www.contratos.gov.co/consultas/detalleProceso.do?numConstancia=20-4-11021673"]
[351,32749353,"CLAUDIA VALENCIA AGUDELO ","3494-2020","AUXILIAR DE ENFERMERIA DE RUTA INTEGRAL MATERNO PERINATAL","03 de agosto de 2020","   31 de Agosto de 2020",1399200,{"$f":"+H353*1","v":1399200},4318,5319,"WILFRAN JIMENEZ DE LA PEÑA","2020-08-17","https://www.contratos.gov.co/consultas/detalleProceso.do?numConstancia=20-4-11021678"]
[352,32818534,"CONSUELO MENDOZA CASTRO ","3495-2020","AUXILIAR DE ENFERMERIA DE RUTA INTEGRAL MATERNO PERINATAL","03 de agosto de 2020","   31 de Agosto de 2020",1166000,1166000,4319,5320,"WILFRAN JIMENEZ DE LA PEÑA","2020-08-17","https://www.contratos.gov.co/consultas/detalleProceso.do?numConstancia=20-4-11021683"]
[353,72436677,"DANILO ENRIQUE GRAVINI DE LA HOZ","3496-2020","AUXILIAR DE ENFERMERIA URGENCIAS","03 de agosto de 2020","   31 de Agosto de 2020",1653600,1653600,4320,5321,"WILFRAN JIMENEZ DE LA PEÑA","2020-08-17","https://www.contratos.gov.co/consultas/detalleProceso.do?numConstancia=20-4-11021693"]
[354,1042436934,"DAYANA PAOLA TORRES SOLANO","3497-2020","MEDICO DE URGENCIA","03 de agosto de 2020","   31 de Agosto de 2020",4132000,4132000,4321,5322,"WILFRAN JIMENEZ DE LA PEÑA","2020-08-17","https://www.contratos.gov.co/consultas/detalleProceso.do?numConstancia=20-4-11021696"]
[355,1042436213,"DESIRET PAOLA PINTO NARVAEZ","3498-2020","ENFERMERA JEFE URGENCIAS ","03 de agosto de 2020","   31 de Agosto de 2020",2280000,2280000,4322,5323,"WILFRAN JIMENEZ DE LA PEÑA","2020-08-17","https://www.contratos.gov.co/consultas/detalleProceso.do?numConstancia=20-4-11021711"]
[356,1042420928,"DINA DEL CARMEN  CUELLO DONADO","3499-2020","AUXILIAR DE FACTURACION URGENCIA","03 de agosto de 2020","   31 de Agosto de 2020",1680000,1680000,4323,5324,"SANDRA SANMARTIN","2020-08-17","https://www.contratos.gov.co/consultas/detalleProceso.do?numConstancia=20-4-11021727"]
[357,8735248,"EDGAR CERVANTES MELGAREJO","3500-2020","MEDICO DE PROMOCIÓN Y MANTENIMIENTO DE LA SALUD","03 de agosto de 2020","   31 de Agosto de 2020",2120000,2120000,4324,5325,"WILFRAN JIMENEZ DE LA PEÑA","2020-08-17","https://www.contratos.gov.co/consultas/detalleProceso.do?numConstancia=20-4-11021732"]
[358,72181563,"EDGARDO THORNE GLENN","3501-2020","ODONTOLOGO","03 de agosto de 2020","   31 de Agosto de 2020",1900000,1900000,4325,5326,"WILFRAN JIMENEZ DE LA PEÑA","2020-08-17","https://www.contratos.gov.co/consultas/detalleProceso.do?numConstancia=20-4-11021733"]
[359,78302933,"EDIE JAIR GIL","3502-2020","TECNOLOGO EN RADIOLOGIA","03 de agosto de 2020","   31 de Agosto de 2020",1800000,1800000,4326,5327,"WILFRAN JIMENEZ DE LA PEÑA","2020-08-17","https://www.contratos.gov.co/consultas/detalleProceso.do?numConstancia=20-4-11021736"]
[360,1045675420,"EIBANIA MOLINA VENERA","3503-2020","AUXILIAR DE ENFERMERIA URGENCIAS","03 de agosto de 2020","   31 de Agosto de 2020",1653600,1653600,4327,5328,"WILFRAN JIMENEZ DE LA PEÑA","2020-08-17","https://www.contratos.gov.co/consultas/detalleProceso.do?numConstancia=20-4-11021739"]
[361,32871139,"ELLA VIZCAINO SENIOR","3504-2020","ENFERMERA JEFE DE RUTA INTEGRAL MATERNO PERINATAL","03 de agosto de 2020","   31 de Agosto de 2020",2760000,2760000,4328,5329,"WILFRAN JIMENEZ DE LA PEÑA","2020-08-17","https://www.contratos.gov.co/consultas/detalleProceso.do?numConstancia=20-4-11021742"]
[362,1143147791,"ERNESTO JUNIOR ROJANO MEZA","3505-2020","TECNOLOGO EN RADIOLOGIA","03 de agosto de 2020","   31 de Agosto de 2020",1800000,1800000,4329,5330,"WILFRAN JIMENEZ DE LA PEÑA","2020-08-17","https://www.contratos.gov.co/consultas/detalleProceso.do?numConstancia=20-4-11021744"]
[363,44157204,"ESTHER CECILIA SOLANO BARROS","3506-2020","MEDICO DE URGENCIA","03 de agosto de 2020","   31 de Agosto de 2020",3072000,3072000,4330,5331,"WILFRAN JIMENEZ DE LA PEÑA","2020-08-17","https://www.contratos.gov.co/consultas/detalleProceso.do?numConstancia=20-4-11021748"]
[364,55305321,"GELMIS SARAY MARTINEZ DIPPE","3507-2020","AGENTE CALL CENTER","03 de agosto de 2020","   31 de Agosto de 2020",1378000,1378000,4331,5332,"SANDRA SANMARTIN","2020-08-17","https://www.contratos.gov.co/consultas/detalleProceso.do?numConstancia=20-4-11021752"]
[365,32756610,"GENNY GUZMAN NAVARRO","3508-2020","MEDICO DE URGENCIA","03 de agosto de 2020","   31 de Agosto de 2020",3072000,3072000,4332,5333,"WILFRAN JIMENEZ DE LA PEÑA","2020-08-17","https://www.contratos.gov.co/consultas/detalleProceso.do?numConstancia=20-4-11021755"]
[366,32825276,"GIOVANNA  ESTHER AFRICANO NAVARRO","3509-2020","NUTRICIONISTA","03 de agosto de 2020","   31 de Agosto de 2020",2760000,2760000,4333,5334,"WILFRAN JIMENEZ DE LA PEÑA","2020-08-17","https://www.contratos.gov.co/consultas/detalleProceso.do?numConstancia=20-4-11021758"]
[367,30568187,"HAIDE MEJIA PRADO","3510-2020","PERSONAL  LIMPIEZA Y ASEO URGENCIA","03 de agosto de 2020","   31 de Agosto de 2020",1653600,1653600,4334,5335,"JAIME ALVAREZ NORIEGA","2020-08-17","https://www.contratos.gov.co/consultas/detalleProceso.do?numConstancia=20-4-11021759"]
[368,33005079,"IDALMIS NAVARRO ARROYO","3511-2020","PERSONAL  LIMPIEZA Y ASEO URGENCIA","03 de agosto de 2020","   31 de Agosto de 2020",1653600,1653600,4335,5336,"JAIME ALVAREZ NORIEGA","2020-08-17","https://www.contratos.gov.co/consultas/detalleProceso.do?numConstancia=20-4-11021764"]
[369,72072808,"JARID BERDUGO COBO ","3512-2020","REFERENCIA Y CONTRAREFERENCIA","03 de agosto de 2020","   31 de Agosto de 2020",1776000,1776000,4336,5337,"WILFRAN JIMENEZ DE LA PEÑA","2020-08-17","https://www.contratos.gov.co/consultas/detalleProceso.do?numConstancia=20-4-11021767"]
[370,1143453456,"JEAN DAVID MONTALVO ZULETA","3513-2020","AGENTE CALL CENTER","03 de agosto de 2020","   31 de Agosto de 2020",1378000,1378000,4337,5338,"SANDRA SANMARTIN","2020-08-17","https://www.contratos.gov.co/consultas/detalleProceso.do?numConstancia=20-4-11021770"]
[371,8740611,"JESUS RECUERO LAMADRID","3514-2020","ORIENTADOR","03 de agosto de 2020","   31 de Agosto de 2020",1524000,1524000,4338,5339,"WILFRAN JIMENEZ DE LA PEÑA","2020-08-17","https://www.contratos.gov.co/consultas/detalleProceso.do?numConstancia=20-4-11021773"]
[372,1045706679,"JONATHAN ACOSTA MORENO","3515-2020","MEDICO DE URGENCIA","03 de agosto de 2020","   31 de Agosto de 2020",3072000,3072000,4339,5340,"WILFRAN JIMENEZ DE LA PEÑA","2020-08-17","https://www.contratos.gov.co/consultas/detalleProceso.do?numConstancia=20-4-11021774"]
[373,26853643,"JUDITH CHARRIS MACHADO ","3516-2020","ENFERMERA JEFE URGENCIAS ","03 de agosto de 2020","   31 de Agosto de 2020",2280000,2280000,4340,5341,"WILFRAN JIMENEZ DE LA PEÑA","2020-08-17","https://www.contratos.gov.co/consultas/detalleProceso.do?numConstancia=20-4-11021778"]
[374,32712489,"JULIA ESTELLA RIVERA TREJOS","3517-2020","MEDICO DE URGENCIA","03 de agosto de 2020","   31 de Agosto de 2020",3072000,3072000,4341,5342,"WILFRAN JIMENEZ DE LA PEÑA","2020-08-17","https://www.contratos.gov.co/consultas/detalleProceso.do?numConstancia=20-4-11021782"]
[375,1129513283,"KARINE MILENA LEONES MARQUEZ","3518-2020","AUXILIAR DE FARMACIA ","03 de agosto de 2020","   31 de Agosto de 2020",1524000,1524000,4342,5343,"BETTY PERTUZ ","2020-08-17","https://www.contratos.gov.co/consultas/detalleProceso.do?numConstancia=20-4-11021783"]
[376,1083433669,"KARLA MARIA SUAREZ MUÑOZ","3519-2020","AUXILIAR DE ENFERMERIA URGENCIAS","03 de agosto de 2020","   31 de Agosto de 2020",1653600,1653600,4343,5344,"WILFRAN JIMENEZ DE LA PEÑA","2020-08-17","https://www.contratos.gov.co/consultas/detalleProceso.do?numConstancia=20-4-11021786"]
[377,32894662,"KATTY MACIAS PONTON ","3520-2020","MEDICO DE URGENCIA","03 de agosto de 2020","   31 de Agosto de 2020",3072000,3072000,4344,5345,"WILFRAN JIMENEZ DE LA PEÑA","2020-08-17","https://www.contratos.gov.co/consultas/detalleProceso.do?numConstancia=20-4-11021787"]
[378,22642874,"KELLYS JOHANA URUETA SUAREZ","3521-2020","PERSONAL  LIMPIEZA Y ASEO URGENCIA","03 de agosto de 2020","   31 de Agosto de 2020",1653600,1653600,4345,5346,"JAIME ALVAREZ NORIEGA","2020-08-17","https://www.contratos.gov.co/consultas/detalleProceso.do?numConstancia=20-4-11021790"]
[379,1129581013,"KERLY JHOVELIS PITRE MORENO","3522-2020","ENFERMERA JEFE DE PROMOCIÓN Y MANTENIMIENTO DE LA SALUD","03 de agosto de 2020","   31 de Agosto de 2020",2300000,2300000,4346,5347,"WILFRAN JIMENEZ DE LA PEÑA","2020-08-17","https://www.contratos.gov.co/consultas/detalleProceso.do?numConstancia=20-4-11021791"]
[380,32879736,"LEISYS MARIA CASTRO OLARTE","3523-2020","AUXILIAR DE FACTURACION URGENCIA","03 de agosto de 2020","   31 de Agosto de 2020",1680000,1680000,4347,5348,"SANDRA SANMARTIN","2020-08-17","https://www.contratos.gov.co/consultas/detalleProceso.do?numConstancia=20-4-11021792"]
[381,1002157167,"LEODALIZ SALGADO GUERRERO","3524-2020","AGENTE CALL CENTER","03 de agosto de 2020","   31 de Agosto de 2020",1400000,1400000,4348,5349,"SANDRA SANMARTIN","2020-08-17","https://www.contratos.gov.co/consultas/detalleProceso.do?numConstancia=20-4-11021795"]
[382,32772357,"LIDYS ESTHER REALES CASTRO ","3525-2020","AUXILIAR DE ENFERMERIA URGENCIAS","03 de agosto de 2020","   31 de Agosto de 2020",1653600,1653600,4349,5350,"WILFRAN JIMENEZ DE LA PEÑA","2020-08-17","https://www.contratos.gov.co/consultas/detalleProceso.do?numConstancia=20-4-11021796"]
[383,1042436897,"LIZETH PATRICIA BLANQUICETT FERRER","3526-2020","AGENTE CALL CENTER","03 de agosto de 2020","   31 de Agosto de 2020",1378000,1378000,4350,5351,"SANDRA SANMARTIN","2020-08-17","https://www.contratos.gov.co/consultas/detalleProceso.do?numConstancia=20-4-11021798"]
[384,32761353,"LORENZA BARRIOS ESTRADA","3527-2020","AUXILIAR DE ENFERMERIA URGENCIAS","03 de agosto de 2020","   31 de Agosto de 2020",1653600,1653600,4351,5352,"WILFRAN JIMENEZ DE LA PEÑA","2020-08-17","https://www.contratos.gov.co/consultas/detalleProceso.do?numConstancia=20-4-11021801"]
[385,72346265,"LUIS VASQUEZ BALLESTAS","3528-2020","LIDER DE  FACTURACION  EN CENTROS DE SALUD","03 de agosto de 2020","   31 de Agosto de 2020",2160000,2160000,4352,5353,"SANDRA SANMARTIN","2020-08-17","https://www.contratos.gov.co/consultas/detalleProceso.do?numConstancia=20-4-11021802"]
[386,1042447096,"MARBELYS AHELL RANGEL MERCADO ","3529-2020","AGENTE CALL CENTER","03 de agosto de 2020","   31 de Agosto de 2020",1378000,1378000,4353,5354,"SANDRA SANMARTIN","2020-08-17","https://www.contratos.gov.co/consultas/detalleProceso.do?numConstancia=20-4-11021804"]
[{"$f":"+A388+1","v":387},22605801,"MARCELA PATRICIA TORRES CARROLL","3530-2020","AUXILIAR DE FACTURACION URGENCIA","03 de agosto de 2020","   31 de Agosto de 2020",1680000,1680000,4354,5355,"SANDRA SANMARTIN","2020-08-17","https://www.contratos.gov.co/consultas/detalleProceso.do?numConstancia=20-4-11021806"]
[388,1047341586,"MARIA GUADALUPE MUÑOZ MORALES","3531-2020","ODONTOLOGO","03 de agosto de 2020","   31 de Agosto de 2020",1900000,1900000,4355,5356,"WILFRAN JIMENEZ DE LA PEÑA","2020-08-17","https://www.contratos.gov.co/consultas/detalleProceso.do?numConstancia=20-4-11021809"]
[389,32668810,"MARIA ISABEL ALVARADO LOBOS","3532-2020","ASISTENTE COORDINACIÓN MÉDICA","03 de agosto de 2020","   31 de Agosto de 2020",2400000,2400000,4356,5357,"WILFRAN JIMENEZ DE LA PEÑA","2020-08-17","https://www.contratos.gov.co/consultas/detalleProceso.do?numConstancia=20-4-11021812"]
[390,72043527,"MARIANO DE JESUS BARRIOS ELLES ","3533-2020","LIDER CALL CENTER ","03 de agosto de 2020","   31 de Agosto de 2020",3000000,3000000,4357,5358,"SANDRA SANMARTIN","2020-08-17","https://www.contratos.gov.co/consultas/detalleProceso.do?numConstancia=20-4-11021816"]
[391,1140867598,"MARLA HERRERA MERIÑO","3534-2020","AUXILIAR DE ENFERMERIA URGENCIAS","03 de agosto de 2020","   31 de Agosto de 2020",1653600,1653600,4358,5359,"WILFRAN JIMENEZ DE LA PEÑA","2020-08-17","https://www.contratos.gov.co/consultas/detalleProceso.do?numConstancia=20-4-11021817"]
[392,55227166,"MARYI PEREZ CASSIANI","3535-2020","ENFERMERA JEFE URGENCIAS ","03 de agosto de 2020","   31 de Agosto de 2020",2280000,2280000,4359,5360,"WILFRAN JIMENEZ DE LA PEÑA","2020-08-17","https://www.contratos.gov.co/consultas/detalleProceso.do?numConstancia=20-4-11021820"]
[393,32769980,"MARYORIS POLO HERRERA","3536-2020","AUXILIAR DE ENFERMERIA URGENCIAS","03 de agosto de 2020","   31 de Agosto de 2020",1653600,1653600,4360,5361,"WILFRAN JIMENEZ DE LA PEÑA","2020-08-17","https://www.contratos.gov.co/consultas/detalleProceso.do?numConstancia=20-4-11021821"]
[394,32787314,"MILENA HERRERA BENAVIDES","3537-2020","AUXILIAR DE ENFERMERIA MATERNIDAD SEGURA ","03 de agosto de 2020","   31 de Agosto de 2020",1399200,1399200,4361,5362,"WILFRAN JIMENEZ DE LA PEÑA","2020-08-17","https://www.contratos.gov.co/consultas/detalleProceso.do?numConstancia=20-4-11021826"]
[395,1045689538,"MILLER TEDYS MEDRANO CASTRO","3538-2020","TECNOLOGO EN RADIOLOGIA","03 de agosto de 2020","   31 de Agosto de 2020",1800000,1800000,4362,5363,"WILFRAN JIMENEZ DE LA PEÑA","2020-08-17","https://www.contratos.gov.co/consultas/detalleProceso.do?numConstancia=20-4-11021827"]
[396,32814938,"MOIRA SANDOVAL PEDRAZA","3539-2020","AUXILIAR DE ENFERMERIA PROMOTORA EN SALUD","03 de agosto de 2020","   31 de Agosto de 2020",1458000,1458000,4363,5364,"WILFRAN JIMENEZ DE LA PEÑA","2020-08-17","https://www.contratos.gov.co/consultas/detalleProceso.do?numConstancia=20-4-11021833"]
[397,22443679,"MONICA PEREZ RODRIGUEZ ","3540-2020","FISIOTERAPEUTA ","03 de agosto de 2020","   31 de Agosto de 2020",2700000,2700000,4364,5365,"WILFRAN JIMENEZ DE LA PEÑA","2020-08-17","https://www.contratos.gov.co/consultas/detalleProceso.do?numConstancia=20-4-11021836"]
[398,32756032,"MONICA RAMIREZ CORREAL","3541-2020","AUXILIAR DE ENFERMERIA URGENCIAS","03 de agosto de 2020","   31 de Agosto de 2020",1653600,1653600,4365,5366,"WILFRAN JIMENEZ DE LA PEÑA","2020-08-17","https://www.contratos.gov.co/consultas/detalleProceso.do?numConstancia=20-4-11021837"]
[399,1140877960,"NICAULIS RODRIGUEZ GOMEZ","3542-2020","AUXILIAR DE FACTURACION URGENCIA","03 de agosto de 2020","   31 de Agosto de 2020",1680000,1680000,4366,5367,"SANDRA SANMARTIN","2020-08-17","https://www.contratos.gov.co/consultas/detalleProceso.do?numConstancia=20-4-11021932"]
[400,1048267612,"OLGA DE AVILA ARRIETA","3543-2020","MEDICO DE RUTA INTEGRAL MATERNO PERINATAL ","03 de agosto de 2020","   31 de Agosto de 2020",5088000,5088000,4367,5368,"WILFRAN JIMENEZ DE LA PEÑA","2020-08-17","https://www.contratos.gov.co/consultas/detalleProceso.do?numConstancia=20-4-11021937"]
[401,1081799915,"PAULA ANDREA PIMIENTA ANDRADES","3544-2020","AUXILIAR DE ENFERMERIA URGENCIAS","03 de agosto de 2020","   31 de Agosto de 2020",1653600,1653600,4368,5369,"WILFRAN JIMENEZ DE LA PEÑA","2020-08-17","https://www.contratos.gov.co/consultas/detalleProceso.do?numConstancia=20-4-11021942"]
[402,72231273,"PEDRO RAFAEL PEREZ HERNANDEZ","3545-2020","AGENTE CALL CENTER","03 de agosto de 2020","   31 de Agosto de 2020",1378000,1378000,4369,5370,"SANDRA SANMARTIN","2020-08-17","https://www.contratos.gov.co/consultas/detalleProceso.do?numConstancia=20-4-11021947"]
[403,9191876,"RAFAEL MOLINA CASTILLO","3546-2020","AUXILIAR DE FACTURACION URGENCIA","03 de agosto de 2020","   31 de Agosto de 2020",1680000,1680000,4370,5371,"SANDRA SANMARTIN","2020-08-17","https://www.contratos.gov.co/consultas/detalleProceso.do?numConstancia=20-4-11021948"]
[404,72147873,"RAMIRO ANTONIO SALAS LARA ","3547-2020","REGENTE DE FARMACIA ","03 de agosto de 2020","   31 de Agosto de 2020",2280000,2280000,4371,5372,"BETTY PERTUZ ","2020-08-17","https://www.contratos.gov.co/consultas/detalleProceso.do?numConstancia=20-4-11021951"]
[405,32613493,"ROSA ESCOBAR FANDIÑO","3548-2020","AUXILIAR DE ENFERMERIA URGENCIAS","03 de agosto de 2020","   31 de Agosto de 2020",1653600,1653600,4372,5373,"WILFRAN JIMENEZ DE LA PEÑA","2020-08-17","https://www.contratos.gov.co/consultas/detalleProceso.do?numConstancia=20-4-11021953"]
[406,1042435408,"SANDY PATRICIA BRUJES GUERRERO","3549-2020","AGENTE CALL CENTER","03 de agosto de 2020","   31 de Agosto de 2020",1378000,1378000,4373,5374,"SANDRA SANMARTIN","2020-08-17","https://www.contratos.gov.co/consultas/detalleProceso.do?numConstancia=20-4-11021956"]
[407,1045724863,"SERGIO ANDRES SALAS SALAS  ","3550-2020","MEDICO DE URGENCIA","03 de agosto de 2020","   31 de Agosto de 2020",3072000,3072000,4374,5375,"WILFRAN JIMENEZ DE LA PEÑA","2020-08-17","https://www.contratos.gov.co/consultas/detalleProceso.do?numConstancia=20-4-11021958"]
[408,1143143512,"TAIDETH ALEXANDRA BRACHO DAVILA","3551-2020","AUXILIAR DE ENFERMERIA URGENCIAS","03 de agosto de 2020","   31 de Agosto de 2020",1653600,1653600,4375,5376,"WILFRAN JIMENEZ DE LA PEÑA","2020-08-17","https://www.contratos.gov.co/consultas/detalleProceso.do?numConstancia=20-4-11021960"]
[409,1045692313,"VANESSA CASSIANI PEREZ","3552-2020","RESOLUCION 0273","03 de agosto de 2020","   31 de Agosto de 2020",1653000,1653000,4376,5377,"WILFRAN JIMENEZ DE LA PEÑA","2020-08-17","https://www.contratos.gov.co/consultas/detalleProceso.do?numConstancia=20-4-11021963"]
[410,52703063,"XIOMARA  BELLO ORTEGA","3553-2020","AUXILIAR DE ENFERMERIA URGENCIAS","03 de agosto de 2020","   31 de Agosto de 2020",1653600,1653600,4377,5378,"WILFRAN JIMENEZ DE LA PEÑA","2020-08-17","https://www.contratos.gov.co/consultas/detalleProceso.do?numConstancia=20-4-11021966"]
[411,32816824,"YANETH CARO VITOLA","3554-2020","AUXILIAR DE ENFERMERIA DE PROMOCIÓN Y MANTENIMIENTO DE LA SALUD","03 de agosto de 2020","   31 de Agosto de 2020",1166000,1166000,4378,5379,"WILFRAN JIMENEZ DE LA PEÑA","2020-08-17","https://www.contratos.gov.co/consultas/detalleProceso.do?numConstancia=20-4-11021967"]
[412,1129516318,"YEIMIS PATRICIA GONZALEZ ARAGON ","3555-2020","AGENTE CALL CENTER","03 de agosto de 2020","   31 de Agosto de 2020",1378000,1378000,4379,5380,"SANDRA SANMARTIN","2020-08-17","https://www.contratos.gov.co/consultas/detalleProceso.do?numConstancia=20-4-11021969"]
[413,1143452684,"YEISON MISAEL DUARTE CALDERON","3556-2020","CONDUCTOR DE AMBULANCIA","03 de agosto de 2020","   31 de Agosto de 2020",2160000,2160000,4380,5381,"BETTY PERTUZ ","2020-08-17","https://www.contratos.gov.co/consultas/detalleProceso.do?numConstancia=20-4-11021971"]
[414,55246222,"YESIKA ANGULO MADRID","3557-2020","FISIOTERAPEUTA ","03 de agosto de 2020","   31 de Agosto de 2020",2280000,2280000,4381,5382,"WILFRAN JIMENEZ DE LA PEÑA","2020-08-17","https://www.contratos.gov.co/consultas/detalleProceso.do?numConstancia=20-4-11021972"]
[415,1042436116,"YURANIS SOTO OSORIO","3558-2020","AUXILIAR DE ENFERMERIA URGENCIAS","03 de agosto de 2020","   31 de Agosto de 2020",1653600,{"$f":"+H417*1","v":1653600},4382,5383,"WILFRAN JIMENEZ DE LA PEÑA","2020-08-17","https://www.contratos.gov.co/consultas/detalleProceso.do?numConstancia=20-4-11021973"]
[416,1045226744,"YURISABEL CERVANTES VESGA ","3559-2020","MEDICO DE URGENCIA","03 de agosto de 2020","   31 de Agosto de 2020",3072000,3072000,4383,5384,"WILFRAN JIMENEZ DE LA PEÑA","2020-08-17","https://www.contratos.gov.co/consultas/detalleProceso.do?numConstancia=20-4-11021977"]
[417,1085110564,"LISBETH JOHANA VIVIC GARCIA","3560-2020","AUXILIAR DE ODONTOLOGIA","03 de agosto de 2020","   31 de Agosto de 2020",1166000,1166000,4384,5385,"WILFRAN JIMENEZ DE LA PEÑA","2020-08-17","https://www.contratos.gov.co/consultas/detalleProceso.do?numConstancia=20-4-11021980"]
[418,19535725,"RAFAEL  ALFONSO PALACIO BLANCO","3561-2020","MEDICO DE URGENCIA","03 de agosto de 2020","   31 de Agosto de 2020",3072000,3072000,4385,5386,"WILFRAN JIMENEZ DE LA PEÑA","2020-08-17","https://www.contratos.gov.co/consultas/detalleProceso.do?numConstancia=20-4-11021984"]
[419,72193875,"CRISTIAN DE JESUS BARRAZA VILLALBA","3562-2020","CONDUCTOR DE AMBULANCIA","03 de agosto de 2020","   31 de Agosto de 2020",2160000,2160000,4386,5387,"BETTY PERTUZ ","2020-08-17","https://www.contratos.gov.co/entidades/InsertarProcesoRegEspConDire.do"]
[420,72203756,"GUILLERMO DE JESUS MEDINA VASQUEZ ","3563-2020","AGENTE CALL CENTER","03 de agosto de 2020","   31 de Agosto de 2020",1378000,1378000,4387,5388,"SANDRA SANMARTIN","2020-08-17","https://www.contratos.gov.co/consultas/detalleProceso.do?numConstancia=20-4-11021988"]
[421,32862578,"MILDRIS PATRICIA QUIJANO VILORIA","3564-2020","HIGIENISTA ORAL","03 de agosto de 2020","   31 de Agosto de 2020",1166000,1166000,4388,5389,"WILFRAN JIMENEZ DE LA PEÑA","2020-08-17","https://www.contratos.gov.co/consultas/detalleProceso.do?numConstancia=20-4-11021990"]
[422,1045731190,"FELIX  ALFONSO ORTIZ GARCIA ","3565-2020","ORIENTADOR","03 de agosto de 2020","   31 de Agosto de 2020",1524000,1524000,4389,5390,"WILFRAN JIMENEZ DE LA PEÑA","2020-08-17","https://www.contratos.gov.co/consultas/detalleProceso.do?numConstancia=20-4-11021991"]
[423,1047230116,"NORIS MARIA GUTIERREZ ACOSTA","3566-2020","AUXILIAR FACTURACION URGENCIAS","03 de agosto de 2020","   31 de Agosto de 2020",1680000,1680000,4390,5391,"SANDRA SANMARTIN","2020-08-17","https://www.contratos.gov.co/consultas/detalleProceso.do?numConstancia=20-4-11021993"]
[424,1042454836,"YARLEYDIS SMITH LIZARAZO MOLINA","3567-2020","PSICOLOGA","03 de agosto de 2020","   31 de Agosto de 2020",3000000,3000000,4391,5392,"WILFRAN JIMENEZ DE LA PEÑA","2020-08-17","https://www.contratos.gov.co/consultas/detalleProceso.do?numConstancia=20-4-11021994"]
[425,1006745656,"ANGIE FERNANDA BELEÑO RIVERO","3568-2020","MEDICO DE URGENCIA","03 de agosto de 2020","   31 de Agosto de 2020",3072000,3072000,4392,5393,"WILFRAN JIMENEZ DE LA PEÑA","2020-08-17","https://www.contratos.gov.co/consultas/detalleProceso.do?numConstancia=20-4-11021998"]
[426,1129529382,"DAVID ALEJANDRO MIRANDA TORO","3569-2020","MEDICO DE URGENCIA","03 de agosto de 2020","   31 de Agosto de 2020",3072000,3072000,4393,5394,"WILFRAN JIMENEZ DE LA PEÑA","2020-08-17","https://www.contratos.gov.co/consultas/detalleProceso.do?numConstancia=20-4-11022000"]
[427,1052949649,"DILIANA GARCIA JIMENEZ","3570-2020","ENFERMERA JEFE URGENCIAS ","03 de agosto de 2020","   31 de Agosto de 2020",2280000,2280000,4394,5395,"WILFRAN JIMENEZ DE LA PEÑA","2020-08-17","https://www.contratos.gov.co/consultas/detalleProceso.do?numConstancia=20-4-11022001"]
[428,7469739,"LEOVALDO MENDOZA PAREJO","3571-2020","ORIENTADOR","03 de agosto de 2020","   31 de Agosto de 2020",1524000,1524000,4395,5396,"WILFRAN JIMENEZ DE LA PEÑA","2020-08-17","https://www.contratos.gov.co/consultas/detalleProceso.do?numConstancia=20-4-11022008"]
[429,1129570673,"JOSE ANTONIO ZAMORA CERA","3572-2020","MEDICO  URGENCIA ","03 de agosto de 2020","   31 de Agosto de 2020",{"$f":"3072000+1536000","v":4608000},4608000,4396,5397,"WILFRAN JIMENEZ DE LA PEÑA","2020-08-17","https://www.contratos.gov.co/consultas/detalleProceso.do?numConstancia=20-4-11022011"]
[430,15074329,"RAFAEL ANTONIO RICO","3573-2020","ORIENTADOR","03 de agosto de 2020","   31 de Agosto de 2020",1524000,1524000,4397,5398,"WILFRAN JIMENEZ DE LA PEÑA","2020-08-17","https://www.contratos.gov.co/consultas/detalleProceso.do?numConstancia=20-4-11022013"]
[431,1042440221,"MARIA DEL PILAR DE LA HOZ DE LA HOZ","3574-2020","AGENTE CALL CENTER","03 de agosto de 2020","   31 de Agosto de 2020",1378000,1378000,4398,5399,"SANDRA SANMARTIN","2020-08-17","https://www.contratos.gov.co/consultas/detalleProceso.do?numConstancia=20-4-11022015"]
[432,1001781737,"YAMILE CECILIA PAREJO PACHECO ","3575-2020","AGENTE CALL CENTER","03 de agosto de 2020","   31 de Agosto de 2020",1378000,1378000,4399,5400,"SANDRA SANMARTIN","2020-08-17","https://www.contratos.gov.co/consultas/detalleProceso.do?numConstancia=20-4-11022016"]
[433,32822389,"ISABEL AMÉRICA DE ALBA RODRIGUEZ","3576-2020","AUXILIAR  DE  FACTURACION  URGENCIA ","03 de agosto de 2020","   31 de Agosto de 2020",1400000,1400000,4400,5401,"SANDRA SANMARTIN","2020-08-17","https://www.contratos.gov.co/consultas/detalleProceso.do?numConstancia=20-4-11022017"]
[434,1143159118,"LEYDY KAREN FUENTES MORALES","3577-2020","AGENTE CALL CENTER","03 de agosto de 2020","   31 de Agosto de 2020",1378000,1378000,4401,5402,"SANDRA SANMARTIN","2020-08-17","https://www.contratos.gov.co/consultas/detalleProceso.do?numConstancia=20-4-11022021"]
[435,1042451687,"ADRIANA SOFIA PEREZ CERVANTES","3578-2020","AGENTE CALL CENTER","03 de agosto de 2020","   31 de Agosto de 2020",1378000,1378000,4402,5403,"SANDRA SANMARTIN","2020-08-17","https://www.contratos.gov.co/consultas/detalleProceso.do?numConstancia=20-4-11022026"]
[436,33309749,"MELVIS PALENCIA SOLIS","3579-2020","AGENTE CALL CENTER","03 de agosto de 2020","   31 de Agosto de 2020",1378000,1378000,4403,5404,"SANDRA SANMARTIN","2020-08-17","https://www.contratos.gov.co/consultas/detalleProceso.do?numConstancia=20-4-11022027"]
[437,32891063,"LILIBETH PACHECO ACERO","3580-2020","ODONTOLOGA ","03 de agosto de 2020","   31 de Agosto de 2020",1900000,1900000,4404,5405,"WILFRAN JIMENEZ DE LA PEÑA","2020-08-17","https://www.contratos.gov.co/consultas/detalleProceso.do?numConstancia=20-4-11022030"]
[438,32862644,"NURYS GARCIA DELGADO","3581-2020","AGENTE CALL CENTER","03 de agosto de 2020","   31 de Agosto de 2020",1378000,1378000,4405,5406,"SANDRA SANMARTIN","2020-08-17","https://www.contratos.gov.co/consultas/detalleProceso.do?numConstancia=20-4-11022031"]
[439,32771752,"ANETHS CECILIA ARGOTE TORRES","3582-2020","AGENTE CALL CENTER","03 de agosto de 2020","   31 de Agosto de 2020",1378000,1378000,4406,5407,"SANDRA SANMARTIN","2020-08-17","https://www.contratos.gov.co/consultas/detalleProceso.do?numConstancia=20-4-11022037"]
[440,1001876000,"MARTHA JOSEFA SOLANO GUTIERREZ","3583-2020","AGENTE CALL CENTER ","03 de agosto de 2020","   31 de Agosto de 2020",1378000,1378000,4407,5408,"SANDRA SANMARTIN","2020-08-17","https://www.contratos.gov.co/consultas/detalleProceso.do?numConstancia=20-4-11022040"]
[441,9143862,"JOSE LUIS LEAL CORREA","3584-2020","AUXILIAR DE FARMACIA ","03 de agosto de 2020","   31 de Agosto de 2020",1270000,1270000,4408,5409,"BETTY PERTUZ ","2020-08-17","https://www.contratos.gov.co/consultas/detalleProceso.do?numConstancia=20-4-11022041"]
[442,72303740,"ANDRES JOSE NAVARRO CARBONELL","3585-2020","AUXILIAR  ADMINISTRATIVO  DE FARMACIA ","03 de agosto de 2020","   31 de Agosto de 2020",3000000,3000000,4409,5410,"BETTY PERTUZ ","2020-08-17","https://www.contratos.gov.co/consultas/detalleProceso.do?numConstancia=20-4-11022043"]
[443,9132998,"GABRIEL ARIAS RAMIREZ","3586-2020","QUIMICO FARMACEUTICO","03 de agosto de 2020","   31 de Agosto de 2020",3600000,3600000,4410,5411,"BETTY PERTUZ ","2020-08-17","https://www.contratos.gov.co/consultas/detalleProceso.do?numConstancia=20-4-11022045"]
[444,22515180,"YEIMY JHOANA SALTARIN ACUÑA","3587-2020","AUXILIAR  ADMINISTRATIVO  DE FARMACIA ","03 de agosto de 2020","   31 de Agosto de 2020",1900000,1900000,4411,5412,"BETTY PERTUZ ","2020-08-17","https://www.contratos.gov.co/consultas/detalleProceso.do?numConstancia=20-4-11022047"]
[445,55225095,"YURAIMA GUTIERREZ HERNANDEZ","3588-2020","REGENTE DE FARMACIA ","03 de agosto de 2020","   31 de Agosto de 2020",2280000,2280000,4412,5413,"BETTY PERTUZ ","2020-08-17","https://www.contratos.gov.co/consultas/detalleProceso.do?numConstancia=20-4-11022049"]
[446,72432974,"EDER JOSE CASTRO PINTO","3589-2020","ORIENTADOR","03 de agosto de 2020","   31 de Agosto de 2020",1524000,1524000,4413,5414,"BETTY PERTUZ ","2020-08-17","https://www.contratos.gov.co/consultas/detalleProceso.do?numConstancia=20-4-11022051"]
[447,37577926,"ALCIRA CAMPO ALCOZER","3590-2020","PERSONAL  LIMPIEZA Y ASEO","03 de agosto de 2020","   31 de Agosto de 2020",1215000,1215000,4414,5415,"JAIME ALVAREZ NORIEGA","2020-08-17","https://www.contratos.gov.co/consultas/detalleProceso.do?numConstancia=20-4-11022052"]
[448,22694020,"LEDIS DEL SOCORRO BACA ORTIZ","3591-2020","AUXILIAR DE ENFERMERIA","03 de agosto de 2020","   31 de Agosto de 2020",1166000,1166000,4415,5416,"BETTY PERTUZ ","2020-08-17","https://www.contratos.gov.co/consultas/detalleProceso.do?numConstancia=20-4-11022054"]
[449,7438585,"NESTOR CHARRIS MARIN","3592-2020","ORIENTADOR","03 de agosto de 2020","   31 de Agosto de 2020",1270000,1270000,4416,5417,"SANDRA SANMARTIN","2020-08-17","https://www.contratos.gov.co/consultas/detalleProceso.do?numConstancia=20-4-11022055"]
[450,8750360,"OSCAR HUMBERTO  GERALDINO CAPDEVILLA","3593-2020","MEDICO CONSULTA EXTERNA Y APOYO COORDINACION MEDICA ","03 de agosto de 2020","   31 de Agosto de 2020",4240000,4240000,4417,5418,"BETTY PERTUZ ","2020-08-17","https://www.contratos.gov.co/consultas/detalleProceso.do?numConstancia=20-4-11022057"]
[{"$f":"+A452+1","v":451},1010137665,"KAROLINE JUDITH MORENO VARELO","3594-2020","AUXILIAR   ADMINISTRATIVO COORDINACION PAI","03 de agosto de 2020","   31 de Agosto de 2020",2000000,2000000,4418,5419,"ALCIRA DEL SOCORRO GOMEZ ARRIETA","2020-08-17","https://www.contratos.gov.co/consultas/detalleProceso.do?numConstancia=20-4-11022060"]
[452,32811232,"YOLANDA SOFIA MORALES BERMUDEZ","3595-2020","VACUNADOR(A) CUARTO FRIO","03 de agosto de 2020","   31 de Agosto de 2020",1600000,1600000,4419,5420,"ALCIRA DEL SOCORRO GOMEZ ARRIETA","2020-08-17","https://www.contratos.gov.co/consultas/detalleProceso.do?numConstancia=20-4-11022061"]
[453,60355382,"YEIGNE CONTRERAS BAYONA","3596-2020","VACUNADOR(A)","03 de agosto de 2020","   31 de Agosto de 2020",1400000,1400000,4420,5421,"ALCIRA DEL SOCORRO GOMEZ ARRIETA","2020-08-17","https://www.contratos.gov.co/consultas/detalleProceso.do?numConstancia=20-4-11022063"]
[454,64543985,"ALCIRA GOMEZ ARRIETA ","3597-2020"," COORDINADORA PAI ","03 de agosto de 2020","   31 de Agosto de 2020",4000000,4000000,4421,5422,"NILSA ARIZA MARQUEZ","2020-08-17","https://www.contratos.gov.co/consultas/detalleProceso.do?numConstancia=20-4-11022064"]
[455,55236945,"ADRIANA PATRICIA MARQUEZ CANTILLO","3598-2020","VACUNADOR(A)","03 de agosto de 2020","   31 de Agosto de 2020",1400000,1400000,4422,5423,"ALCIRA DEL SOCORRO GOMEZ ARRIETA","2020-08-17","https://www.contratos.gov.co/consultas/detalleProceso.do?numConstancia=20-4-11022065"]
[456,22643912,"ANGELA ROSA MORALES SANMARTIN","3599-2020","VACUNADOR(A)","03 de agosto de 2020","   31 de Agosto de 2020",1400000,1400000,4423,5424,"ALCIRA DEL SOCORRO GOMEZ ARRIETA","2020-08-17","https://www.contratos.gov.co/consultas/detalleProceso.do?numConstancia=20-4-11022068"]
[457,22467133,"ESMERALDA COTE BORNACELY ","3600-2020","VACUNADOR(A)","03 de agosto de 2020","   31 de Agosto de 2020",1400000,1400000,4424,5425,"ALCIRA DEL SOCORRO GOMEZ ARRIETA","2020-08-17","https://www.contratos.gov.co/consultas/detalleProceso.do?numConstancia=20-4-11022071"]
[458,8767993,"HAROLD MANUEL CABARCAS GONZALEZ","3601-2020","VACUNADOR(A)","03 de agosto de 2020","   31 de Agosto de 2020",1400000,1400000,4425,5426,"ALCIRA DEL SOCORRO GOMEZ ARRIETA","2020-08-17","https://www.contratos.gov.co/consultas/detalleProceso.do?numConstancia=20-4-11022073"]
[459,64578458,"ILDA DEL PILAR PACHECO AGUIRRE","3602-2020","VACUNADOR(A)","03 de agosto de 2020","   31 de Agosto de 2020",1400000,1400000,4426,5427,"ALCIRA DEL SOCORRO GOMEZ ARRIETA","2020-08-17","https://www.contratos.gov.co/consultas/detalleProceso.do?numConstancia=20-4-11022075"]
[460,32865375,"LEDIA DEL CARMEN MARTINEZ DE MOYA","3603-2020","VACUNADOR(A)","03 de agosto de 2020","   31 de Agosto de 2020",1400000,1400000,4427,5428,"ALCIRA DEL SOCORRO GOMEZ ARRIETA","2020-08-17","https://www.contratos.gov.co/consultas/detalleProceso.do?numConstancia=20-4-11022077"]
[461,44159904,"LIZLEIDYS OSORIO DOMINGUEZ","3604-2020","ENFERMERA-JEFE TERRENO PAI","03 de agosto de 2020","   31 de Agosto de 2020",2120000,2120000,4428,5429,"ALCIRA DEL SOCORRO GOMEZ ARRIETA","2020-08-17","https://www.contratos.gov.co/consultas/detalleProceso.do?numConstancia=20-4-11022078"]
[462,32812585,"NESLIE OSORIO PARODIS","3605-2020","VACUNADOR(A)","03 de agosto de 2020","   31 de Agosto de 2020",1400000,1400000,4429,5430,"ALCIRA DEL SOCORRO GOMEZ ARRIETA","2020-08-17","https://www.contratos.gov.co/consultas/detalleProceso.do?numConstancia=20-4-11022079"]
[463,32863854,"OLGA BARRIOS BACCA","3606-2020","VACUNADOR(A)","03 de agosto de 2020","   31 de Agosto de 2020",1400000,1400000,4430,5431,"ALCIRA DEL SOCORRO GOMEZ ARRIETA","2020-08-17","https://www.contratos.gov.co/consultas/detalleProceso.do?numConstancia=20-4-11022082"]
[464,22528921,"ROSARIO DEL CARMEN CAMARGO GOMEZ","3607-2020","VACUNADOR(A)","03 de agosto de 2020","   31 de Agosto de 2020",1400000,1400000,4431,5432,"ALCIRA DEL SOCORRO GOMEZ ARRIETA","2020-08-17","https://www.contratos.gov.co/consultas/detalleProceso.do?numConstancia=20-4-11022083"]
[465,32684298,"XIOMARA RODRIGUEZ CANTILLO","3608-2020","VACUNADOR(A)","03 de agosto de 2020","   31 de Agosto de 2020",1400000,1400000,4432,5433,"ALCIRA DEL SOCORRO GOMEZ ARRIETA","2020-08-17","https://www.contratos.gov.co/consultas/detalleProceso.do?numConstancia=20-4-11022084"]
[466,1042428053,"YURANIS DEL CARMEN BLANQUICETT MORENO","3609-2020","VACUNADOR(A)","03 de agosto de 2020","   31 de Agosto de 2020",1400000,1400000,4433,5434,"ALCIRA DEL SOCORRO GOMEZ ARRIETA","2020-08-17","https://www.contratos.gov.co/consultas/detalleProceso.do?numConstancia=20-4-11022086"]
[467,32867404,"PATRICIA DEL CARMEN IBAÑEZ OSORIO","3610-2020","VACUNADOR(A)","03 de agosto de 2020","   31 de Agosto de 2020",1400000,1400000,4434,5435,"ALCIRA DEL SOCORRO GOMEZ ARRIETA","2020-08-17","https://www.contratos.gov.co/consultas/detalleProceso.do?numConstancia=20-4-11022087"]
[468,8772224,"OLAINER MONTERO CASTRO ","3611-2020","LIDER DE  FACTURACION  EN CENTROS DE SALUD","03 de agosto de 2020","   31 de Agosto de 2020",2160000,2160000,4435,5436,"SANDRA SANMARTIN","2020-08-17","https://www.contratos.gov.co/consultas/detalleProceso.do?numConstancia=20-4-11022089"]
[469,8737936,"NOE ANIBAL PELAEZ GONZALEZ","3612-2020","REGENTE DE FARMACIA ","03 de agosto de 2020","   15  de Agosto de 2020",{"$f":"2280000/30*15","v":1140000},1140000,4460,5462,"BETTY PERTUZ ","31/08(/2020","https://www.contratos.gov.co/consultas/detalleProceso.do?numConstancia=20-4-11062306"]
[470,1143437950,"ALBA KARINA  ARIAS  ESCOBAR ","3613-2020","MEDICO CONSULTA EXTERNA","15 de agosto de 2020","31 de Agosto de 2020",1342666,{"$f":"+H472*1","v":1342666},4497,5520,"UIS GRANADOS","31/08(/2020","https://www.contratos.gov.co/consultas/detalleProceso.do?numConstancia=20-4-11068499"]
[471,1002028047,"ESTEBAN MEDINA QUIROZ","3614-2020","AUXILIAR RECURSOS FISICOS","15 de agosto de 2020","31 de Agosto de 2020",{"$f":"1900000/30*19","v":1203333.3333333335},{"$f":"+H473*1","v":1203333.3333333335},4494,5517,"SANDRA SANMARTIN","31/08(/2020","https://www.contratos.gov.co/consultas/detalleProceso.do?numConstancia=20-4-11068531"]
[472,1042445376,"INDIRA DAYANA CERVANTES MENDIVILL","3615-2020","PSICOLOGA","15 de agosto de 2020","31 de Agosto de 2020",{"$f":"3000000/30*15","v":1500000},1500000,4495,5518,"YARELIS GUERRA","31/08(/2020","https://www.contratos.gov.co/consultas/detalleProceso.do?numConstancia=20-4-11068546"]
[473,8601031,"EDILBERTO SANJUAN ZAMORA","3616-2020","REGENTE DE FARMACIA ","15 de agosto de 2020","31 de Agosto de 2020",{"$f":"2280000/30*15","v":1140000},1140000,4496,5519,"BETTY PERTUZ ","31/08(/2020","https://www.contratos.gov.co/consultas/detalleProceso.do?numConstancia=20-4-11068557"]
[474,57449491,"MILENA PATRICIA GOMEZ SALAS ","3617-2020","ASESOR FINANCIERO ","03 de agosto de 2020","31 de Agosto de 2020",5000000,{"$f":"+H476*3","v":15000000},4459,5460,"JORGE OLMOS NAVARRO",null,"https://www.contratos.gov.co/consultas/detalleProceso.do?numConstancia=20-4-11090159"]

{"sheet":"PIC AGOSTO ","index":1,"n_rows":43,"n_cols":18,"rows_kept":43,"cut":false,"hidden":false,"merged":[]}
["No","CEDULA","NOMBRE Y APELLIDO","OPS","año","#OPS AÑO","OBJETO DEL CONTRATO","FECHA INICIO","FECHA TERMINACION ","VALOR MENSUAL","VALOR TOTAL ","SUPERVISOR ","CARGO","RUBRO PRESUPUESTAL ","CDP","RP","FECHA SECOP ","LINK SECOP "]
[1,22668428,"ANABELL VELASQUEZ FERNANDEZ ",249,"2020 -PIC",{"$f":"CONCATENATE(D2,\"-\",E2)","v":"249-2020 -PIC"},"COORDINADORA  PIC ","03 de  Agosto de 2020","31 de Agosto de 2020",5800000,{"$f":"J2*1","v":5800000},"BETTY PERTUZ","SUBGERENTE CIENTIFICO","PIC",3925,4926,"2020-08-23","https://www.contratos.gov.co/consultas/detalleProceso.do?numConstancia=20-4-11040447"]
[{"$f":"+A2+1","v":2},32874188,"JALICSSA ARRIETA ORTEGA",{"$f":"+D2+1","v":250},"2020 -PIC","250-2020 -PIC","APOYO  GESTION  PIC ","03 de  Agosto de 2020","31 de Agosto de 2020",3500000,3500000,"ANABELL VELASQUEZ","COORDINADORA PIC ","PIC",3926,4927,"2020-08-23","https://www.contratos.gov.co/consultas/detalleProceso.do?numConstancia=20-4-11040452"]
[{"$f":"+A3+1","v":3},32744712,"CARMEN MARIA CORONADO ESCORCIA",251,"2020 -PIC","251-2020 -PIC","ENFERMERA JEFE -PIC","03 de  Agosto de 2020","31 de Agosto de 2020",2500000,2500000,"ANABELL VELASQUEZ","COORDINADORA PIC ","PIC",3927,4928,"2020-08-23","https://www.contratos.gov.co/consultas/detalleProceso.do?numConstancia=20-4-11040457"]
[4,22506781,"MILDRED TATIANA GOENAGA ALVARADO",252,"2020 -PIC","252-2020 -PIC","ENFERMERA  JEFE  VACUNACION ","03 de  Agosto de 2020","31 de Agosto de 2020",2500000,2500000,"ANABELL VELASQUEZ","COORDINADORA PIC ","PIC",3928,4929,"2020-08-23","https://www.contratos.gov.co/consultas/detalleProceso.do?numConstancia=20-4-11040458"]
[5,22645320,"ADRIANA CRISTINA GARCIA CARRILLO",253,"2020 -PIC","253-2020 -PIC","FISIOTERAPEUTA","03 de  Agosto de 2020","31 de Agosto de 2020",2500000,2500000,"ANABELL VELASQUEZ","COORDINADORA PIC ","PIC",3929,4930,"2020-08-23","https://www.contratos.gov.co/consultas/detalleProceso.do?numConstancia=20-4-11040459"]
[6,32777087,"ROSA MARGARITA SEVILLA",254,"2020 -PIC","254-2020 -PIC","NUTRICIONISTA ","03 de  Agosto de 2020","31 de Agosto de 2020",2500000,2500000,"ANABELL VELASQUEZ","COORDINADORA PIC ","PIC",3930,4931,"2020-08-23","https://www.contratos.gov.co/consultas/detalleProceso.do?numConstancia=20-4-11040462"]
[7,1065575009,"ANDREA TATIANA SERRANO MOLINA ",255,"2020 -PIC","255-2020 -PIC","PSICOLOGO ","03 de  Agosto de 2020","31 de Agosto de 2020",2500000,2500000,"ANABELL VELASQUEZ","COORDINADORA PIC ","PIC",3931,4932,"2020-08-23","https://www.contratos.gov.co/consultas/detalleProceso.do?numConstancia=20-4-11040464"]
[8,22617307,"ETILVIA TERESA DONADO CABALLERO ",256,"2020 -PIC","256-2020 -PIC","PSICOLOGO ","03 de  Agosto de 2020","31 de Agosto de 2020",2500000,2500000,"ANABELL VELASQUEZ","COORDINADORA PIC ","PIC",3932,4933,"2020-08-23","https://www.contratos.gov.co/consultas/detalleProceso.do?numConstancia=20-4-11040467"]
[9,1140873504,"OLMAN JOSHUA BULA TORRES",257,"2020 -PIC","257-2020 -PIC","PSICOLOGO ","03 de  Agosto de 2020","31 de Agosto de 2020",2500000,2500000,"ANABELL VELASQUEZ","COORDINADORA PIC ","PIC",3933,4934,"2020-08-23","https://www.contratos.gov.co/consultas/detalleProceso.do?numConstancia=20-4-11040468"]
[10,1046872703,"LUCELIS DE LA HOZ ESCORCIA",258,"2020 -PIC","258-2020 -PIC","AUXILIAR ADMINISTRATIVO-PIC","03 de  Agosto de 2020","31 de Agosto de 2020",1900000,1900000,"ANABELL VELASQUEZ","COORDINADORA PIC ","PIC",3934,4935,"2020-08-23","https://www.contratos.gov.co/consultas/detalleProceso.do?numConstancia=20-4-11040471"]
[11,72271553,"DAVID ENRIQUE AGRESOT DE LA CRUZ",259,"2020 -PIC","259-2020 -PIC","LIDER DE ZOONOSIS ","03 de  Agosto de 2020","31 de Agosto de 2020",1900000,1900000,"ANABELL VELASQUEZ","COORDINADORA PIC ","PIC",3935,4936,"2020-08-23","https://www.contratos.gov.co/consultas/detalleProceso.do?numConstancia=20-4-11040473"]
[12,1140814733,"KATHERINE PATRICIA URUETA VERGARA ",260,"2020 -PIC","260-2020 -PIC","LIDER APS","03 de  Agosto de 2020","31 de Agosto de 2020",2500000,2500000,"ANABELL VELASQUEZ","COORDINADORA PIC ","PIC",3936,4937,"2020-08-23","https://www.contratos.gov.co/consultas/detalleProceso.do?numConstancia=20-4-11040475"]
[13,72304633,"SAMUEL EDUARDO URUETA HURTADO",261,"2020 -PIC","261-2020 -PIC","LIDER AMBIENTAL","03 de  Agosto de 2020","31 de Agosto de 2020",2500000,2500000,"ANABELL VELASQUEZ","COORDINADORA PIC ","PIC",3937,4938,"2020-08-23","https://www.contratos.gov.co/consultas/detalleProceso.do?numConstancia=20-4-11040480"]
[14,72429089,"EDER DE JESUS SEGURA BRAVO",262,"2020-PIC ","262-2020-PIC ","HIGIENISTA ORAL","03 de  Agosto de 2020","31 de Agosto de 2020",1900000,1900000,"ANABELL VELASQUEZ","COORDINADORA PIC ","PIC",3938,4939,"2020-08-23","https://www.contratos.gov.co/consultas/detalleProceso.do?numConstancia=20-4-11040482"]
[15,32876278,"CLAUDIA MARTINEZ RIVAS ",263,"2020 -PIC","263-2020 -PIC","AGENTE PRIMARIA EN SALUD-APS","03 de  Agosto de 2020","31 de Agosto de 2020",1400000,1400000,"ANABELL VELASQUEZ","COORDINADORA PIC ","PIC",3939,4940,"2020-08-23","https://www.contratos.gov.co/consultas/detalleProceso.do?numConstancia=20-4-11040484"]
[16,1143136225,"MARTA CECILIA MARIN ZAPATA",264,"2020 -PIC","264-2020 -PIC","AGENTE PRIMARIA EN SALUD-APS","03 de  Agosto de 2020","31 de Agosto de 2020",1400000,1400000,"ANABELL VELASQUEZ","COORDINADORA PIC ","PIC",3940,4941,"2020-08-23","https://www.contratos.gov.co/consultas/detalleProceso.do?numConstancia=20-4-11040485"]
[17,1043931882,"AREIDIS MEDINA SANJUAN ",265,"2020 -PIC","265-2020 -PIC","AGENTE PRIMARIA EN SALUD-APS","03 de  Agosto de 2020","31 de Agosto de 2020",1400000,1400000,"ANABELL VELASQUEZ","COORDINADORA PIC ","PIC",3941,4942,"2020-08-23","https://www.contratos.gov.co/consultas/detalleProceso.do?numConstancia=20-4-11040490"]
[18,22543666,"DENNYS MARIELA ARZUZAR GALVIS",266,"2020 -PIC","266-2020 -PIC","AGENTE PRIMARIA EN SALUD-APS","03 de  Agosto de 2020","31 de Agosto de 2020",1400000,1400000,"ANABELL VELASQUEZ","COORDINADORA PIC ","PIC",3942,4943,"2020-08-23","https://www.contratos.gov.co/consultas/detalleProceso.do?numConstancia=20-4-11040491"]
[19,44160070,"GLORIA ZAPATA REZA",267,"2020 -PIC","267-2020 -PIC","AGENTE PRIMARIA EN SALUD-APS","03 de  Agosto de 2020","31 de Agosto de 2020",1400000,1400000,"ANABELL VELASQUEZ","COORDINADORA PIC ","PIC",3943,4944,"2020-08-23","https://www.contratos.gov.co/consultas/detalleProceso.do?numConstancia=20-4-11040511"]
[20,44152281,"KAREN JOHANA JIMENEZ RAMOS",268,"2020 -PIC","268-2020 -PIC","AGENTE PRIMARIA EN SALUD-APS","03 de  Agosto de 2020","31 de Agosto de 2020",1400000,1400000,"ANABELL VELASQUEZ","COORDINADORA PIC ","PIC",3944,4945,"2020-08-23","https://www.contratos.gov.co/consultas/detalleProceso.do?numConstancia=20-4-11040516"]
[21,44150081,"MARY LUZ GUERRERO CERVANTES ",269,"2020 -PIC","269-2020 -PIC","AGENTE PRIMARIA EN SALUD-APS","03 de  Agosto de 2020","31 de Agosto de 2020",1400000,1400000,"ANABELL VELASQUEZ","COORDINADORA PIC ","PIC",3945,4946,"2020-08-23","https://www.contratos.gov.co/consultas/detalleProceso.do?numConstancia=20-4-11040518"]
[22,1002162856,"NICOLL PATRICIA NIEBLES RIVERA",270,"2020 -PIC","270-2020 -PIC","AGENTE PRIMARIA EN SALUD-APS","03 de  Agosto de 2020","31 de Agosto de 2020",1400000,1400000,"ANABELL VELASQUEZ","COORDINADORA PIC ","PIC",3946,4947,"2020-08-23","https://www.contratos.gov.co/consultas/detalleProceso.do?numConstancia=20-4-11040525"]
[23,32758730,"NUBIA ESTELA CANO GUILLEN",271,"2020 -PIC","271-2020 -PIC","AGENTE PRIMARIA EN SALUD-APS","03 de  Agosto de 2020","31 de Agosto de 2020",1400000,1400000,"ANABELL VELASQUEZ","COORDINADORA PIC ","PIC",3947,4948,"2020-08-23","https://www.contratos.gov.co/consultas/detalleProceso.do?numConstancia=20-4-11040528"]
[24,1042449446,"SAILIS MARIA FRIA VEGA",272,"2020 -PIC","272-2020 -PIC","AGENTE PRIMARIA EN SALUD-APS","03 de  Agosto de 2020","31 de Agosto de 2020",1400000,1400000,"ANABELL VELASQUEZ","COORDINADORA PIC ","PIC",3948,4949,"2020-08-23","https://www.contratos.gov.co/consultas/detalleProceso.do?numConstancia=20-4-11040531"]
[25,1047337919,"CANDY ISABEL ROJAS SARMIENTO",273,"2020 -PIC","273-2020 -PIC","AGENTE PRIMARIA EN SALUD-ZOONOSIS","03 de  Agosto de 2020","31 de Agosto de 2020",1400000,1400000,"ANABELL VELASQUEZ","COORDINADORA PIC ","PIC",3949,4950,"2020-08-23","https://www.contratos.gov.co/consultas/detalleProceso.do?numConstancia=20-4-11040535"]
[26,8784783,"DAIRO MANRIQUEZ MORALES BOVEA",274,"2020 -PIC","274-2020 -PIC","AGENTE PRIMARIA EN SALUD-ZOONOSIS","03 de  Agosto de 2020","31 de Agosto de 2020",1400000,1400000,"ANABELL VELASQUEZ","COORDINADORA PIC ","PIC",3950,4951,"2020-08-23","https://www.contratos.gov.co/consultas/detalleProceso.do?numConstancia=20-4-11040537"]
[27,32829868,"JUDITH ISABEL ARCON MEDINA",275,"2020 -PIC","275-2020 -PIC","AGENTE PRIMARIA EN SALUD-ZOONOSIS","03 de  Agosto de 2020","31 de Agosto de 2020",1400000,1400000,"ANABELL VELASQUEZ","COORDINADORA PIC ","PIC",3951,4952,"2020-08-23","https://www.contratos.gov.co/consultas/detalleProceso.do?numConstancia=20-4-11040541"]
[28,1046698080,"LUIS ALFREDO CANTILLO CABALLERO",276,"2020 -PIC","276-2020 -PIC","AGENTE PRIMARIA EN SALUD-ZOONOSIS","03 de  Agosto de 2020","31 de Agosto de 2020",1400000,1400000,"ANABELL VELASQUEZ","COORDINADORA PIC ","PIC",3952,4953,"2020-08-23","https://www.contratos.gov.co/consultas/detalleProceso.do?numConstancia=20-4-11040543"]
[29,30895455,"MARIA CONCEPCION ESPRIELLA BUELVAS",277,"2020 -PIC","277-2020 -PIC","AGENTE PRIMARIA EN SALUD-ZOONOSIS","03 de  Agosto de 2020","31 de Agosto de 2020",1400000,1400000,"ANABELL VELASQUEZ","COORDINADORA PIC ","PIC",3953,4954,"2020-08-23","https://www.contratos.gov.co/consultas/detalleProceso.do?numConstancia=20-4-11040545"]
[30,1143442239,"SAYURIS OCAMPO GARCIA",278,"2020 -PIC","278-2020 -PIC","AGENTE PRIMARIA EN SALUD-ZOONOSIS","03 de  Agosto de 2020","31 de Agosto de 2020",1400000,1400000,"ANABELL VELASQUEZ","COORDINADORA PIC ","PIC",3954,4955,"2020-08-23","https://www.contratos.gov.co/consultas/detalleProceso.do?numConstancia=20-4-11040548"]
[31,32872420,"LUZ MARINA GARIZAO TAPIA",279,"2020 -PIC","279-2020 -PIC","AGENTE PRIMARIA EN SALUD-ZOONOSIS","03 de  Agosto de 2020","31 de Agosto de 2020",1400000,1400000,"ANABELL VELASQUEZ","COORDINADORA PIC ","PIC",3955,4956,"2020-08-23","https://www.contratos.gov.co/consultas/detalleProceso.do?numConstancia=20-4-11040550"]
[32,1042417608,"KELLY DEL CARMEN PARDO RODRIGUEZ",{"$f":"+D32+1","v":280},"2020 -PIC",{"$f":"CONCATENATE(D33,\"-\",E33)","v":"280-2020 -PIC"},"AUXILIAR DE  ENFERMERIA - VACUNACION ","03 de  Agosto de 2020","31 de Agosto de 2020",1400000,{"$f":"J33*1","v":1400000},"ANABELL VELASQUEZ","COORDINADORA PIC ","PIC",3958,4959,"2020-08-23","https://www.contratos.gov.co/consultas/detalleProceso.do?numConstancia=20-4-11040551"]
[33,32870003,"DALGIS ESTHER BADILLO FONTALVO",{"$f":"+D33+1","v":281},"2020 -PIC","281-2020 -PIC","AGENTE PRIMARIA EN SALUD-ZOONOSIS","03 de  Agosto de 2020","31 de Agosto de 2020",1400000,1400000,"ANABELL VELASQUEZ","COORDINADORA PIC ","PIC",3957,4958,"2020-08-23","https://www.contratos.gov.co/consultas/detalleProceso.do?numConstancia=20-4-11040553"]
[34,1129542324,"VANESSA ESTHER  TEVENIN VERGARA",{"$f":"+D34+1","v":282},"2020-PIC","282-2020-PIC","AUXILIAR DE  ENFERMERIA - VACUNACION ","03 de  Agosto de 2020","31 de Agosto de 2020",1400000,1400000,"ANABELL VELASQUEZ","COORDINADORA PIC ","PIC",3959,4960,"2020-08-23","https://www.contratos.gov.co/consultas/detalleProceso.do?numConstancia=20-4-11040554"]
[35,50846336,"MIRIAM DEL SOCORRO FLOREZ ESPITIA ",{"$f":"+D35+1","v":283},"2020-PIC ","283-2020-PIC ","AUXILIAR DE  ENFERMERIA - VACUNACION ","03 de  Agosto de 2020","31 de Agosto de 2020",1400000,1400000,"ANABELL VELASQUEZ","COORDINADORA PIC ","PIC",3960,4961,"2020-08-23","https://www.contratos.gov.co/consultas/detalleProceso.do?numConstancia=20-4-11040557"]
[36,32886799,"NAIROVIS ESCOBAR VILLAFAÑE",284,"2020-PIC ","284-2020-PIC ","AUXILIAR DE  ENFERMERIA - VACUNACION ","03 de  Agosto de 2020","31 de Agosto de 2020",1400000,1400000,"ANABELL VELASQUEZ","COORDINADORA PIC ","PIC",3961,4962,"2020-08-23","https://www.contratos.gov.co/consultas/detalleProceso.do?numConstancia=20-4-11040558"]
[37,22570955,"FARLEY DEL CARMEN OSORIO REYES",{"$f":"+#REF!+1","v":{"$error":"#REF!"}},"2020-PIC ","287-2020-PIC ","AUXILIAR DE  ENFERMERIA - VACUNACION ","03 de  Agosto de 2020","31 de Agosto de 2020",1400000,1400000,"ANABELL VELASQUEZ","COORDINADORA PIC ","PIC",3964,4965,"2020-08-23","https://www.contratos.gov.co/consultas/detalleProceso.do?numConstancia=20-4-11040562"]
[38,32697649,"CELEDENIA DEL CARMEN DE MOYA GARCES ",{"$error":"#REF!"},"2020-PIC ","288-2020-PIC ","AUXILIAR DE  ENFERMERIA - VACUNACION ","03 de  Agosto de 2020","31 de Agosto de 2020",1400000,1400000,"ANABELL VELASQUEZ","COORDINADORA PIC ","PIC",3965,4966,"2020-08-23","https://www.contratos.gov.co/consultas/detalleProceso.do?numConstancia=20-4-11040564"]
[39,55222617,"OLGA REBECA SANDOVAL PEDRAZA",{"$error":"#REF!"},"2020-PIC ","289-2020-PIC ","AUXILIAR DE  ENFERMERIA - VACUNACION ","03 de  Agosto de 2020","31 de Agosto de 2020",1400000,1400000,"ANABELL VELASQUEZ","COORDINADORA PIC ","PIC",3966,4967,"2020-08-23","https://www.contratos.gov.co/consultas/detalleProceso.do?numConstancia=20-4-11040566"]
[40,55249422,"YULIETH DEL CARMEN VILORIA CALDERA",{"$error":"#REF!"},"2020-PIC ","290-2020-PIC ","AUXILIAR DE  ENFERMERIA - VACUNACION ","03 de  Agosto de 2020","31 de Agosto de 2020",1400000,1400000,"ANABELL VELASQUEZ","COORDINADORA PIC ","PIC",3967,4968,"2020-08-23","https://www.contratos.gov.co/consultas/detalleProceso.do?numConstancia=20-4-11040568"]
[41,3779189,"JAIME  ENRIQUE MARQUEZ VILLAFAÑE",{"$f":"+D41+1","v":{"$error":"#REF!"}},"2020-PIC ","291-2020-PIC ","AGENTE PRIMARIA EN SALUD-ZOONOSIS","03 de  Agosto de 2020","31 de Agosto de 2020",1400000,{"$f":"J42*1","v":1400000},"ANABELL VELASQUEZ","COORDINADORA PIC ","PIC",3956,4957,"2020-08-23","https://www.contratos.gov.co/consultas/detalleProceso.do?numConstancia=20-4-11040570"]
[42,"1.046.873.150 d","NILBA SOFÍA BARRAZA JIMÉNEZ",null,null,"292-2020-PIC","TECNICO SALUD OCUPACIONAL PIC ","03 de  Agosto de 2020","31 de Agosto de 2020",1900000,{"$f":"J43*1","v":1900000},"ANABELL VELASQUEZ","COORDINADORA PIC ","PIC",4474,5477,"2020-08-23","https://www.contratos.gov.co/consultas/detalleProceso.do?numConstancia=20-4-11040570"]